Workbook

Sheet 은평구 성별 전체인구(2011~2017년추이)
A1: 은평구 성별 전체인구(2011~2017년추이)
A3: 행정구역(동읍면)별(1) | B3: 행정구역(동읍면)별(2) | C3: 행정구역(동읍면)별(3) | D3: 항목 | E3: 2011 | F3: 2011 | G3: 2011 | H3: 2011 | I3: 2011 | J3: 2011 | K3: 2011 | L3: 2011 | M3: 2011 | N3: 2011 | O3: 2011 | P3: 2011 | Q3: 2011 | R3: 2011 | S3: 2011 | T3: 2011 | U3: 2011 | V3: 2011 | W3: 2011 | X3: 2011 | Y3: 2011 | Z3: 2011 | AA3: 2012 | AB3: 2012 | AC3: 2012 | AD3: 2012 | AE3: 2012 | AF3: 2012 | AG3: 2012 | AH3: 2012 | AI3: 2012 | AJ3: 2012 | AK3: 2012 | AL3: 2012 | AM3: 2012 | AN3: 2012 | AO3: 2012 | AP3: 2012 | AQ3: 2012 | AR3: 2012 | AS3: 2012 | AT3: 2012 | AU3: 2012 | AV3: 2012 | AW3: 2013 | AX3: 2013 | AY3: 2013 | AZ3: 2013 | BA3: 2013 | BB3: 2013 | BC3: 2013 | BD3: 2013 | BE3: 2013 | BF3: 2013 | BG3: 2013 | BH3: 2013 | BI3: 2013 | BJ3: 2013 | BK3: 2013 | BL3: 2013 | BM3: 2013 | BN3: 2013 | BO3: 2013 | BP3: 2013 | BQ3: 2013 | BR3: 2013 | BS3: 2014 | BT3: 2014 | BU3: 2014 | BV3: 2014 | BW3: 2014 | BX3: 2014 | BY3: 2014 | BZ3: 2014 | CA3: 2014 | CB3: 2014 | CC3: 2014 | CD3: 2014 | CE3: 2014 | CF3: 2014 | CG3: 2014 | CH3: 2014 | CI3: 2014 | CJ3: 2014 | CK3: 2014 | CL3: 2014 | CM3: 2014 | CN3: 2014 | CO3: 2015 | CP3: 2015 | CQ3: 2015 | CR3: 2015 | CS3: 2015 | CT3: 2015 | CU3: 2015 | CV3: 2015 | CW3: 2015 | CX3: 2015 | CY3: 2015 | CZ3: 2015 | DA3: 2015 | DB3: 2015 | DC3: 2015 | DD3: 2015 | DE3: 2015 | DF3: 2015 | DG3: 2015 | DH3: 2015 | DI3: 2015 | DJ3: 2015 | DK3: 2016 | DL3: 2016 | DM3: 2016 | DN3: 2016 | DO3: 2016 | DP3: 2016 | DQ3: 2016 | DR3: 2016 | DS3: 2016 | DT3: 2016 | DU3: 2016 | DV3: 2016 | DW3: 2016 | DX3: 2016 | DY3: 2016 | DZ3: 2016 | EA3: 2016 | EB3: 2016 | EC3: 2016 | ED3: 2016 | EE3: 2016 | EF3: 2016 | EG3: 2017 | EH3: 2017 | EI3: 2017 | EJ3: 2017 | EK3: 2017 | EL3: 2017 | EM3: 2017 | EN3: 2017 | EO3: 2017 | EP3: 2017 | EQ3: 2017 | ER3: 2017 | ES3: 2017 | ET3: 2017 | EU3: 2017 | EV3: 2017 | EW3: 2017 | EX3: 2017 | EY3: 2017 | EZ3: 2017 | FA3: 2017 | FB3: 2017
A4: 행정구역(동읍면)별(1) | B4: 행정구역(동읍면)별(2) | C4: 행정구역(동읍면)별(3) | D4: 항목 | E4: 계 | F4: 0 - 4세 | G4: 5 - 9세 | H4: 10 - 14세 | I4: 15 - 19세 | J4: 20 - 24세 | K4: 25 - 29세 | L4: 30 - 34세 | M4: 35 - 39세 | N4: 40 - 44세 | O4: 45 - 49세 | P4: 50 - 54세 | Q4: 55 - 59세 | R4: 60 - 64세 | S4: 65 - 69세 | T4: 70 - 74세 | U4: 75 - 79세 | V4: 80 - 84세 | W4: 85 - 89세 | X4: 90 - 94세 | Y4: 95 - 99세 | Z4: 100+ | AA4: 계 | AB4: 0 - 4세 | AC4: 5 - 9세 | AD4: 10 - 14세 | AE4: 15 - 19세 | AF4: 20 - 24세 | AG4: 25 - 29세 | AH4: 30 - 34세 | AI4: 35 - 39세 | AJ4: 40 - 44세 | AK4: 45 - 49세 | AL4: 50 - 54세 | AM4: 55 - 59세 | AN4: 60 - 64세 | AO4: 65 - 69세 | AP4: 70 - 74세 | AQ4: 75 - 79세 | AR4: 80 - 84세 | AS4: 85 - 89세 | AT4: 90 - 94세 | AU4: 95 - 99세 | AV4: 100+ | AW4: 계 | AX4: 0 - 4세 | AY4: 5 - 9세 | AZ4: 10 - 14세 | BA4: 15 - 19세 | BB4: 20 - 24세 | BC4: 25 - 29세 | BD4: 30 - 34세 | BE4: 35 - 39세 | BF4: 40 - 44세 | BG4: 45 - 49세 | BH4: 50 - 54세 | BI4: 55 - 59세 | BJ4: 60 - 64세 | BK4: 65 - 69세 | BL4: 70 - 74세 | BM4: 75 - 79세 | BN4: 80 - 84세 | BO4: 85 - 89세 | BP4: 90 - 94세 | BQ4: 95 - 99세 | BR4: 100+ | BS4: 계 | BT4: 0 - 4세 | BU4: 5 - 9세 | BV4: 10 - 14세 | BW4: 15 - 19세 | BX4: 20 - 24세 | BY4: 25 - 29세 | BZ4: 30 - 34세 | CA4: 35 - 39세 | CB4: 40 - 44세 | CC4: 45 - 49세 | CD4: 50 - 54세 | CE4: 55 - 59세 | CF4: 60 - 64세 | CG4: 65 - 69세 | CH4: 70 - 74세 | CI4: 75 - 79세 | CJ4: 80 - 84세 | CK4: 85 - 89세 | CL4: 90 - 94세 | CM4: 95 - 99세 | CN4: 100+ | CO4: 계 | CP4: 0 - 4세 | CQ4: 5 - 9세 | CR4: 10 - 14세 | CS4: 15 - 19세 | CT4: 20 - 24세 | CU4: 25 - 29세 | CV4: 30 - 34세 | CW4: 35 - 39세 | CX4: 40 - 44세 | CY4: 45 - 49세 | CZ4: 50 - 54세 | DA4: 55 - 59세 | DB4: 60 - 64세 | DC4: 65 - 69세 | DD4: 70 - 74세 | DE4: 75 - 79세 | DF4: 80 - 84세 | DG4: 85 - 89세 | DH4: 90 - 94세 | DI4: 95 - 99세 | DJ4: 100+ | DK4: 계 | DL4: 0 - 4세 | DM4: 5 - 9세 | DN4: 10 - 14세 | DO4: 15 - 19세 | DP4: 20 - 24세 | DQ4: 25 - 29세 | DR4: 30 - 34세 | DS4: 35 - 39세 | DT4: 40 - 44세 | DU4: 45 - 49세 | DV4: 50 - 54세 | DW4: 55 - 59세 | DX4: 60 - 64세 | DY4: 65 - 69세 | DZ4: 70 - 74세 | EA4: 75 - 79세 | EB4: 80 - 84세 | EC4: 85 - 89세 | ED4: 90 - 94세 | EE4: 95 - 99세 | EF4: 100+ | EG4: 계 | EH4: 0 - 4세 | EI4: 5 - 9세 | EJ4: 10 - 14세 | EK4: 15 - 19세 | EL4: 20 - 24세 | EM4: 25 - 29세 | EN4: 30 - 34세 | EO4: 35 - 39세 | EP4: 40 - 44세 | EQ4: 45 - 49세 | ER4: 50 - 54세 | ES4: 55 - 59세 | ET4: 60 - 64세 | EU4: 65 - 69세 | EV4: 70 - 74세 | EW4: 75 - 79세 | EX4: 80 - 84세 | EY4: 85 - 89세 | EZ4: 90 - 94세 | FA4: 95 - 99세 | FB4: 100+
A5: 서울특별시 | B5: 은평구 | C5: 소계 | D5: 총인구수 (명) | E5: 493634 | F5: 21059 | G5: 20900 | H5: 26778 | I5: 31241 | J5: 29916 | K5: 36149 | L5: 43055 | M5: 44110 | N5: 44795 | O5: 38786 | P5: 41447 | Q5: 33505 | R5: 25408 | S5: 21224 | T5: 16652 | U5: 9865 | V5: 5112 | W5: 2309 | X5: 811 | Y5: 237 | Z5: 275 | AA5: 501480 | AB5: 21512 | AC5: 21287 | AD5: 25646 | AE5: 30824 | AF5: 31248 | AG5: 34546 | AH5: 44194 | AI5: 43330 | AJ5: 46212 | AK5: 38880 | AL5: 41829 | AM5: 35087 | AN5: 26236 | AO5: 21667 | AP5: 18603 | AQ5: 10888 | AR5: 5490 | AS5: 2548 | AT5: 906 | AU5: 256 | AV5: 291 | AW5: 503660 | AX5: 21228 | AY5: 20740 | AZ5: 24645 | BA5: 29969 | BB5: 32137 | BC5: 33183 | BD5: 44784 | BE5: 40997 | BF5: 46540 | BG5: 39949 | BH5: 41678 | BI5: 37075 | BJ5: 26547 | BK5: 22671 | BL5: 19357 | BM5: 11841 | BN5: 5941 | BO5: 2720 | BP5: 1076 | BQ5: 266 | BR5: 316 | BS5: 498644 | BT5: 20230 | BU5: 19941 | BV5: 23079 | BW5: 28926 | BX5: 32578 | BY5: 32475 | BZ5: 42024 | CA5: 39958 | CB5: 45555 | CC5: 40563 | CD5: 40605 | CE5: 38395 | CF5: 27451 | CG5: 23466 | CH5: 19431 | CI5: 12870 | CJ5: 6371 | CK5: 2979 | CL5: 1137 | CM5: 279 | CN5: 331 | CO5: 497920 | CP5: 19482 | CQ5: 19984 | CR5: 21024 | CS5: 28432 | CT5: 33027 | CU5: 32184 | CV5: 39680 | CW5: 40333 | CX5: 43968 | CY5: 41663 | CZ5: 39488 | DA5: 39477 | DB5: 29568 | DC5: 24227 | DD5: 19676 | DE5: 13641 | DF5: 7065 | DG5: 3199 | DH5: 1171 | DI5: 290 | DJ5: 341 | DK5: 491476 | DL5: 18242 | DM5: 19443 | DN5: 19962 | DO5: 26995 | DP5: 32347 | DQ5: 32574 | DR5: 36008 | DS5: 40266 | DT5: 41410 | DU5: 43079 | DV5: 37954 | DW5: 40233 | DX5: 31659 | DY5: 23873 | DZ5: 19576 | EA5: 14649 | EB5: 7871 | EC5: 3450 | ED5: 1209 | EE5: 315 | EF5: 361 | EG5: 486794 | EH5: 16630 | EI5: 18806 | EJ5: 19609 | EK5: 25309 | EL5: 31695 | EM5: 33512 | EN5: 33534 | EO5: 39679 | EP5: 39508 | EQ5: 43700 | ER5: 37538 | ES5: 40092 | ET5: 32782 | EU5: 24149 | EV5: 19773 | EW5: 16119 | EX5: 8641 | EY5: 3668 | EZ5: 1331 | FA5: 350 | FB5: 369
D6: 남자인구수 (명) | E6: 242779 | F6: 10793 | G6: 10767 | H6: 13731 | I6: 16229 | J6: 15055 | K6: 17916 | L6: 21570 | M6: 22470 | N6: 22515 | O6: 19383 | P6: 19880 | Q6: 15967 | R6: 11883 | S6: 9876 | T6: 7874 | U6: 4151 | V6: 1764 | W6: 675 | X6: 200 | Y6: 46 | Z6: 34 | AA6: 246318 | AB6: 11066 | AC6: 10980 | AD6: 13258 | AE6: 15893 | AF6: 15824 | AG6: 16939 | AH6: 22162 | AI6: 21986 | AJ6: 23438 | AK6: 19227 | AL6: 20129 | AM6: 16616 | AN6: 12300 | AO6: 9976 | AP6: 8825 | AQ6: 4679 | AR6: 1963 | AS6: 737 | AT6: 226 | AU6: 61 | AV6: 33 | AW6: 246858 | AX6: 10911 | AY6: 10707 | AZ6: 12729 | BA6: 15403 | BB6: 16307 | BC6: 16180 | BD6: 22452 | BE6: 20734 | BF6: 23547 | BG6: 19714 | BH6: 20167 | BI6: 17603 | BJ6: 12431 | BK6: 10479 | BL6: 9010 | BM6: 5131 | BN6: 2176 | BO6: 777 | BP6: 295 | BQ6: 62 | BR6: 43 | BS6: 243977 | BT6: 10450 | BU6: 10294 | BV6: 11884 | BW6: 14840 | BX6: 16537 | BY6: 15904 | BZ6: 20993 | CA6: 20147 | CB6: 23026 | CC6: 19985 | CD6: 19690 | CE6: 18208 | CF6: 12856 | CG6: 10780 | CH6: 9032 | CI6: 5630 | CJ6: 2393 | CK6: 894 | CL6: 312 | CM6: 74 | CN6: 48 | CO6: 242975 | CP6: 9982 | CQ6: 10273 | CR6: 10874 | CS6: 14527 | CT6: 16775 | CU6: 15666 | CV6: 19861 | CW6: 20313 | CX6: 22187 | CY6: 20594 | CZ6: 19122 | DA6: 18693 | DB6: 13782 | DC6: 11080 | DD6: 9018 | DE6: 6043 | DF6: 2753 | DG6: 983 | DH6: 318 | DI6: 83 | DJ6: 48 | DK6: 239183 | DL6: 9403 | DM6: 9996 | DN6: 10299 | DO6: 13805 | DP6: 16375 | DQ6: 15885 | DR6: 17908 | DS6: 20205 | DT6: 20816 | DU6: 21174 | DV6: 18533 | DW6: 19045 | DX6: 14788 | DY6: 10868 | DZ6: 8796 | EA6: 6563 | EB6: 3163 | EC6: 1096 | ED6: 331 | EE6: 82 | EF6: 52 | EG6: 236353 | EH6: 8541 | EI6: 9673 | EJ6: 10194 | EK6: 12922 | EL6: 15928 | EM6: 16450 | EN6: 16604 | EO6: 19996 | EP6: 19750 | EQ6: 21596 | ER6: 18126 | ES6: 19077 | ET6: 15251 | EU6: 11027 | EV6: 8763 | EW6: 7245 | EX6: 3517 | EY6: 1211 | EZ6: 339 | FA6: 89 | FB6: 54
D7: 여자인구수 (명) | E7: 250855 | F7: 10266 | G7: 10133 | H7: 13047 | I7: 15012 | J7: 14861 | K7: 18233 | L7: 21485 | M7: 21640 | N7: 22280 | O7: 19403 | P7: 21567 | Q7: 17538 | R7: 13525 | S7: 11348 | T7: 8778 | U7: 5714 | V7: 3348 | W7: 1634 | X7: 611 | Y7: 191 | Z7: 241 | AA7: 255162 | AB7: 10446 | AC7: 10307 | AD7: 12388 | AE7: 14931 | AF7: 15424 | AG7: 17607 | AH7: 22032 | AI7: 21344 | AJ7: 22774 | AK7: 19653 | AL7: 21700 | AM7: 18471 | AN7: 13936 | AO7: 11691 | AP7: 9778 | AQ7: 6209 | AR7: 3527 | AS7: 1811 | AT7: 680 | AU7: 195 | AV7: 258 | AW7: 256802 | AX7: 10317 | AY7: 10033 | AZ7: 11916 | BA7: 14566 | BB7: 15830 | BC7: 17003 | BD7: 22332 | BE7: 20263 | BF7: 22993 | BG7: 20235 | BH7: 21511 | BI7: 19472 | BJ7: 14116 | BK7: 12192 | BL7: 10347 | BM7: 6710 | BN7: 3765 | BO7: 1943 | BP7: 781 | BQ7: 204 | BR7: 273 | BS7: 254667 | BT7: 9780 | BU7: 9647 | BV7: 11195 | BW7: 14086 | BX7: 16041 | BY7: 16571 | BZ7: 21031 | CA7: 19811 | CB7: 22529 | CC7: 20578 | CD7: 20915 | CE7: 20187 | CF7: 14595 | CG7: 12686 | CH7: 10399 | CI7: 7240 | CJ7: 3978 | CK7: 2085 | CL7: 825 | CM7: 205 | CN7: 283 | CO7: 254945 | CP7: 9500 | CQ7: 9711 | CR7: 10150 | CS7: 13905 | CT7: 16252 | CU7: 16518 | CV7: 19819 | CW7: 20020 | CX7: 21781 | CY7: 21069 | CZ7: 20366 | DA7: 20784 | DB7: 15786 | DC7: 13147 | DD7: 10658 | DE7: 7598 | DF7: 4312 | DG7: 2216 | DH7: 853 | DI7: 207 | DJ7: 293 | DK7: 252293 | DL7: 8839 | DM7: 9447 | DN7: 9663 | DO7: 13190 | DP7: 15972 | DQ7: 16689 | DR7: 18100 | DS7: 20061 | DT7: 20594 | DU7: 21905 | DV7: 19421 | DW7: 21188 | DX7: 16871 | DY7: 13005 | DZ7: 10780 | EA7: 8086 | EB7: 4708 | EC7: 2354 | ED7: 878 | EE7: 233 | EF7: 309 | EG7: 250441 | EH7: 8089 | EI7: 9133 | EJ7: 9415 | EK7: 12387 | EL7: 15767 | EM7: 17062 | EN7: 16930 | EO7: 19683 | EP7: 19758 | EQ7: 22104 | ER7: 19412 | ES7: 21015 | ET7: 17531 | EU7: 13122 | EV7: 11010 | EW7: 8874 | EX7: 5124 | EY7: 2457 | EZ7: 992 | FA7: 261 | FB7: 315

Sheet 은평구 성별 1인 가구(2016)
A1: 은평구 성별 1인 가구(2016년)
A3: 행정구역별(시군구) | B3: 연령별 | C3: 2016 | D3: 2016 | E3: 2016
A4: 행정구역별(시군구) | B4: 연령별 | C4: 계 | D4: 남자 | E4: 여자
A5: 은평구 | B5: 합계 | C5: 44440 | D5: 19908 | E5: 24532
B6: 20세 미만 | C6: 207 | D6: 82 | E6: 125
B7: 20~24 | C7: 1773 | D7: 613 | E7: 1160
B8: 25~29 | C8: 4511 | D8: 2199 | E8: 2312
B9: 30~34 | C9: 5106 | D9: 2774 | E9: 2332
B10: 35~39 | C10: 4227 | D10: 2349 | E10: 1878
B11: 40~44 | C11: 3890 | D11: 2188 | E11: 1702
B12: 45~49 | C12: 3667 | D12: 2051 | E12: 1616
B13: 50~54 | C13: 3345 | D13: 1853 | E13: 1492
B14: 55~59 | C14: 3938 | D14: 1788 | E14: 2150
B15: 60~64 | C15: 3445 | D15: 1399 | E15: 2046
B16: 65~69 | C16: 3049 | D16: 951 | E16: 2098
B17: 70~74 | C17: 2853 | D17: 738 | E17: 2115
B18: 75~79 | C18: 2340 | D18: 536 | E18: 1804
B19: 80~84 | C19: 1379 | D19: 248 | E19: 1131
B20: 85세 이상 | C20: 710 | D20: 139 | E20: 571

Sheet 은평구 성별 1인 가구 추이별(2000~2016년)
A1: 은평구 성별 1인 가구 추이별(2000~2016년)
A3: 행정구역별 | B3: 성별 | C3: 2000 | D3: 2005 | E3: 2010 | F3: 2015 | G3: 2016
A4: 행정구역별 | B4: 성별 | C4: 계 | D4: 계 | E4: 계 | F4: 계 | G4: 계
A5: 은평구 | B5: 계 | C5: 17824 | D5: 23461 | E5: 29795 | F5: 43936 | G5: 44440
B6: 남자 | C6: 7906 | D6: 10063 | E6: 13060 | F6: 20042 | G6: 19908
B7: 여자 | C7: 9918 | D7: 13398 | E7: 16735 | F7: 23894 | G7: 24532
A8: 은평전체가구 | B8: 계 | C8: 133971 | D8: 145845 | E8: 154923 | F8: 179752 | G8: 178775
A9: 여성1인가구비율(전체가구비) | C9: =C7/C8*100 -> 7.4030947 | D9: =D7/D8*100 -> 9.186465083 | E9: =E7/E8*100 -> 10.80214042 | F9: =F7/F8*100 -> 13.29275891 | G9: =G7/G8*100 -> 13.7222766
A10: 남성1인가구비율(전체가구비) | C10: =C6/C8*100 -> 5.901277142 | D10: =D6/D8*100 -> 6.899790874 | E10: =E6/E8*100 -> 8.429994255 | F10: =F6/F8*100 -> 11.1498064 | G10: =G6/G8*100 -> 11.1357852
A11: 여성1인가구비율(1인가구비) | C11: =C7/C5*100 -> 55.6440754 | D11: =D7/D5*100 -> 57.10754017 | E11: =E7/E5*100 -> 56.16714214 | F11: =F7/F5*100 -> 54.38364894 | G11: =G7/G5*100 -> 55.20252025
A12: 남성1인가구비율(1인가구비) | C12: =C6/C5*100 -> 44.3559246 | D12: =D6/D5*100 -> 42.89245983 | E12: =E6/E5*100 -> 43.83285786 | F12: =F6/F5*100 -> 45.61635106 | G12: =G6/G5*100 -> 44.79747975

Sheet 거처의 종류별 여성 1인가구(2016년)
A1: 거처의 종류별 여성 1인가구(2016년)
A3: 행정구역별(시군구) | B3: 성별 | C3: 연령 | D3: 2016 | E3: 2016 | F3: 2016 | G3: 2016 | H3: 2016 | I3: 2016 | J3: 2016
A4: 행정구역별(시군구) | B4: 성별 | C4: 연령 | D4: 거처의 종류_계 | E4: 주택_단독주택 | F4: 주택_아파트 | G4: 주택_연립주택 | H4: 주택_다세대 주택 | I4: 주택_비거주용건물내 주택 | J4: 주택이외의 거처
A5: 은평구 | B5: 여자 | C5: 합계 | D5: 24532 | E5: 9418 | F5: 4001 | G5: 508 | H5: 7706 | I5: 462 | J5: 2437
B6: 비율 | C6: 합계 | D6: =SUM(E6:J6) -> 100 | E6: =E5/D5*100 -> 38.39067341 | F6: =F5/D5*100 -> 16.30931029 | G6: =G5/D5*100 -> 2.070764715 | H6: =H5/D5*100 -> 31.41203326 | I6: =I5/D5*100 -> 1.883254525 | J6: =J5/D5*100 -> 9.933963802

Sheet 성별, 연령별 가구주 현황(2016년)
A1: 성별, 연령별 가구주 현황(2016년)
A3: 행정구역별(시군구) | B3: 성별 | C3: 연령별 | D3: 2016 | E3: 2016 | F3: 2016 | G3: 2016 | H3: 2016 | I3: 2016 | J3: 2016 | K3: 2016 | L3: 2016 | M3: 2016 | N3: 2016 | O3: 2016 | P3: 2016 | Q3: 2016 | R3: 2016 | S3: 2016
A4: 행정구역별(시군구) | B4: 성별 | C4: 연령별 | D4: 일반가구원 | E4: 가구주 | F4: 가구주의 배우자 | G4: 자녀 | H4: 자녀의 배우자 | I4: 가구주의 부모 | J4: 배우자의 부모 | K4: 친손자녀·그 배우자 | L4: 외손자녀·그 배우자 | M4: 증손자녀·그 배우자 | N4: 조부모 | O4: 형제자매·그 배우자 | P4: 형제자매의 자녀·그 배우자 | Q4: 부모의 형제자매·그 배우자 | R4: 기타 친·인척 | S4: 기타 동거인
A5: 은평구 | B5: 계 | C5: 합계 | D5: 458783 | E5: 178775 | F5: 97245 | G5: 142313 | H5: 1953 | I5: 14533 | J5: 2597 | K5: 3391 | L5: 1767 | M5: 11 | N5: 467 | O5: 9523 | P5: 1541 | Q5: 268 | R5: 590 | S5: 3809
C6: 15세미만 | D6: 55895 | E6: X | F6: X | G6: 52226 | H6: X | I6: X | J6: X | K6: 2002 | L6: 1143 | M6: 10 | N6: X | O6: 37 | P6: 355 | Q6: X | R6: 54 | S6: 68
C7: 15~19세 | D7: 24244 | E7: 246 | F7: 7 | G7: 22525 | H7: X | I7: X | J7: X | K7: 616 | L7: 270 | M7: X | N7: X | O7: 302 | P7: 207 | Q7: X | R7: 23 | S7: 46
C8: 20~24세 | D8: 25857 | E8: 2597 | F8: 221 | G8: 20906 | H8: 47 | I8: X | J8: X | K8: 434 | L8: 197 | M8: X | N8: X | O8: 889 | P8: 302 | Q8: X | R8: 40 | S8: 224
C9: 25~29세 | D9: 30664 | E9: 7374 | F9: 2042 | G9: 18731 | H9: 155 | I9: X | J9: X | K9: 236 | L9: 107 | M9: X | N9: X | O9: 1232 | P9: 303 | Q9: X | R9: 50 | S9: 434
C10: 30~34세 | D10: 34810 | E10: 13394 | F10: 7590 | G10: 11362 | H10: 357 | I10: X | J10: X | K10: 87 | L10: 35 | M10: X | N10: X | O10: 1305 | P10: 180 | Q10: X | R10: 51 | S10: 449
C11: 35~39세 | D11: 38392 | E11: 17400 | F11: 11444 | G11: 7311 | H11: 459 | I11: X | J11: X | K11: 12 | L11: 12 | M11: X | N11: X | O11: 1272 | P11: 104 | Q11: X | R11: 54 | S11: 318
C12: 40~44세 | D12: 38856 | E12: 19742 | F12: 12347 | G12: 4695 | H12: 409 | I12: 5 | J12: X | K12: X | L12: X | M12: X | N12: X | O12: 1259 | P12: 46 | Q12: 10 | R12: 55 | S12: 279
C13: 45~49세 | D13: 40116 | E13: 21952 | F13: 13466 | G13: 2831 | H13: 274 | I13: 121 | J13: 5 | K13: X | L13: X | M13: X | N13: X | O13: 1078 | P13: 23 | Q13: 26 | R13: 37 | S13: 303
C14: 50~54세 | D14: 35762 | E14: 20466 | F14: 12302 | G14: 1076 | H14: 136 | I14: 570 | J14: 28 | K14: X | L14: X | M14: X | N14: X | O14: 762 | P14: 8 | Q14: 45 | R14: 43 | S14: 326
C15: 55~59세 | D15: 37891 | E15: 21778 | F15: 12931 | G15: 475 | H15: 76 | I15: 1429 | J15: 154 | K15: X | L15: X | M15: X | N15: X | O15: 646 | P15: 5 | Q15: 56 | R15: 44 | S15: 297
C16: 60~64세 | D16: 29872 | E16: 17096 | F16: 9768 | G16: 128 | H16: 33 | I16: 1848 | J16: 340 | K16: X | L16: X | M16: X | N16: X | O16: 338 | P16: 6 | Q16: 44 | R16: 33 | S16: 238
C17: 65~69세 | D17: 22864 | E17: 12801 | F17: 6858 | G17: 41 | H17: 7 | I17: 2174 | J17: 429 | K17: X | L17: X | M17: X | N17: 7 | O17: 219 | P17: X | Q17: 38 | R17: 35 | S17: 253
C18: 70~74세 | D18: 18710 | E18: 10618 | F18: 4755 | G18: 5 | H18: X | I18: 2438 | J18: 495 | K18: X | L18: X | M18: X | N18: 23 | O18: 92 | P18: X | Q18: 20 | R18: 31 | S18: 233
C19: 75~79세 | D19: 13766 | E19: 7868 | F19: 2600 | G19: X | H19: X | I19: 2508 | J19: 463 | K19: X | L19: X | M19: X | N19: 89 | O19: 64 | P19: X | Q19: 12 | R19: 18 | S19: 143
C20: 80~84세 | D20: 7110 | E20: 3788 | F20: 763 | G20: X | H20: X | I20: 1893 | J20: 356 | K20: X | L20: X | M20: X | N20: 152 | O20: 23 | P20: X | Q20: 7 | R20: 12 | S20: 116
C21: 85세 이상 | D21: 3974 | E21: 1655 | F21: 151 | G21: X | H21: X | I21: 1546 | J21: 324 | K21: X | L21: X | M21: X | N21: 196 | O21: 5 | P21: X | Q21: 5 | R21: 10 | S21: 82
C22: 15~64세 | D22: 336464 | E22: 142045 | F22: 82118 | G22: 90040 | H22: 1946 | I22: 3974 | J22: 530 | K22: 1389 | L22: 624 | M22: X | N22: X | O22: 9083 | P22: 1184 | Q22: 186 | R22: 430 | S22: 2914
C23: 65세이상 | D23: 66424 | E23: 36730 | F23: 15127 | G23: 47 | H23: 7 | I23: 10559 | J23: 2067 | K23: X | L23: X | M23: X | N23: 467 | O23: 403 | P23: X | Q23: 82 | R23: 106 | S23: 827
B24: 남자 | C24: 합계 | D24: 220012 | E24: 120744 | F24: 9596 | G24: 74290 | H24: 530 | I24: 3612 | J24: 665 | K24: 1744 | L24: 849 | M24: 6 | N24: 70 | O24: 4862 | P24: 797 | Q24: 131 | R24: 294 | S24: 1822
C25: 15세미만 | D25: 28854 | E25: X | F25: X | G25: 26994 | H25: X | I25: X | J25: X | K25: 1018 | L25: 572 | M25: 6 | N25: X | O25: 23 | P25: 170 | Q25: X | R25: 30 | S25: 41
C26: 15~19세 | D26: 12154 | E26: 102 | F26: X | G26: 11343 | H26: X | I26: X | J26: X | K26: 313 | L26: 112 | M26: X | N26: X | O26: 149 | P26: 101 | Q26: X | R26: 10 | S26: 24
C27: 20~24세 | D27: 11296 | E27: 937 | F27: 5 | G27: 9410 | H27: X | I27: X | J27: X | K27: 214 | L27: 88 | M27: X | N27: X | O27: 391 | P27: 135 | Q27: X | R27: 22 | S27: 92
C28: 25~29세 | D28: 14704 | E28: 3798 | F28: 134 | G28: 9607 | H28: 14 | I28: X | J28: X | K28: 131 | L28: 48 | M28: X | N28: X | O28: 581 | P28: 171 | Q28: X | R28: 21 | S28: 199
C29: 30~34세 | D29: 17110 | E29: 8738 | F29: 742 | G29: 6493 | H29: 80 | I29: X | J29: X | K29: 55 | L29: 22 | M29: X | N29: X | O29: 630 | P29: 106 | Q29: X | R29: 26 | S29: 218
C30: 35~39세 | D30: 19266 | E30: 12562 | F30: 1266 | G30: 4392 | H30: 129 | I30: X | J30: X | K30: 9 | L30: 6 | M30: X | N30: X | O30: 640 | P30: 64 | Q30: X | R30: 30 | S30: 166
C31: 40~44세 | D31: 19421 | E31: 14205 | F31: 1175 | G31: 2982 | H31: 131 | I31: X | J31: X | K31: X | L31: X | M31: X | N31: X | O31: 689 | P31: 23 | Q31: 5 | R31: 32 | S31: 171
C32: 45~49세 | D32: 19516 | E32: 15496 | F32: 1194 | G32: 1873 | H32: 89 | I32: 15 | J32: X | K32: X | L32: X | M32: X | N32: X | O32: 625 | P32: 17 | Q32: 19 | R32: 18 | S32: 169
C33: 50~54세 | D33: 17192 | E33: 14379 | F33: 1170 | G33: 761 | H33: 47 | I33: 114 | J33: 6 | K33: X | L33: X | M33: X | N33: X | O33: 458 | P33: X | Q33: 26 | R33: 26 | S33: 204
C34: 55~59세 | D34: 17660 | E34: 15153 | F34: 1197 | G34: 326 | H34: 25 | I34: 356 | J34: 25 | K34: X | L34: X | M34: X | N34: X | O34: 348 | P34: 5 | Q34: 26 | R34: 23 | S34: 176
C35: 60~64세 | D35: 13885 | E35: 11913 | F35: 965 | G35: 85 | H35: 10 | I35: 498 | J35: 87 | K35: X | L35: X | M35: X | N35: X | O35: 171 | P35: X | Q35: 25 | R35: 14 | S35: 114
C36: 65~69세 | D36: 10363 | E36: 8641 | F36: 730 | G36: 20 | H36: X | I36: 626 | J36: 122 | K36: X | L36: X | M36: X | N36: X | O36: 88 | P36: X | Q36: 15 | R36: 18 | S36: 99
C37: 70~74세 | D37: 8384 | E37: 6907 | F37: 555 | G37: X | H37: X | I37: 621 | J37: 156 | K37: X | L37: X | M37: X | N37: X | O37: 40 | P37: X | Q37: 7 | R37: 17 | S37: 77
C38: 75~79세 | D38: 6159 | E38: 4953 | F38: 304 | G38: X | H38: X | I38: 682 | J38: 134 | K38: X | L38: X | M38: X | N38: 16 | O38: 22 | P38: X | Q38: X | R38: 6 | S38: 38
C39: 80~84세 | D39: 2842 | E39: 2135 | F39: 125 | G39: X | H39: X | I39: 449 | J39: 80 | K39: X | L39: X | M39: X | N39: 23 | O39: X | P39: X | Q39: X | R39: X | S39: 24
C40: 85세 이상 | D40: 1206 | E40: 825 | F40: 34 | G40: X | H40: X | I40: 249 | J40: 53 | K40: X | L40: X | M40: X | N40: 31 | O40: X | P40: X | Q40: X | R40: X | S40: 10
C41: 15~64세 | D41: 162204 | E41: 97283 | F41: 7848 | G41: 47272 | H41: 527 | I41: 985 | J41: 120 | K41: 726 | L41: 277 | M41: X | N41: X | O41: 4682 | P41: 626 | Q41: 103 | R41: 222 | S41: 1533
C42: 65세이상 | D42: 28954 | E42: 23461 | F42: 1748 | G42: 24 | H42: X | I42: 2627 | J42: 545 | K42: X | L42: X | M42: X | N42: 70 | O42: 157 | P42: X | Q42: 28 | R42: 42 | S42: 248
B43: 여자 | C43: 합계 | D43: 238771 | E43: 58031 | F43: 87649 | G43: 68023 | H43: 1423 | I43: 10921 | J43: 1932 | K43: 1647 | L43: 918 | M43: 5 | N43: 397 | O43: 4661 | P43: 744 | Q43: 137 | R43: 296 | S43: 1987
C44: 15세미만 | D44: 27041 | E44: X | F44: X | G44: 25232 | H44: X | I44: X | J44: X | K44: 984 | L44: 571 | M44: X | N44: X | O44: 14 | P44: 185 | Q44: X | R44: 24 | S44: 27
C45: 15~19세 | D45: 12090 | E45: 144 | F45: 7 | G45: 11182 | H45: X | I45: X | J45: X | K45: 303 | L45: 158 | M45: X | N45: X | O45: 153 | P45: 106 | Q45: X | R45: 13 | S45: 22
C46: 20~24세 | D46: 14561 | E46: 1660 | F46: 216 | G46: 11496 | H46: 45 | I46: X | J46: X | K46: 220 | L46: 109 | M46: X | N46: X | O46: 498 | P46: 167 | Q46: X | R46: 18 | S46: 132
C47: 25~29세 | D47: 15960 | E47: 3576 | F47: 1908 | G47: 9124 | H47: 141 | I47: X | J47: X | K47: 105 | L47: 59 | M47: X | N47: X | O47: 651 | P47: 132 | Q47: X | R47: 29 | S47: 235
C48: 30~34세 | D48: 17700 | E48: 4656 | F48: 6848 | G48: 4869 | H48: 277 | I48: X | J48: X | K48: 32 | L48: 13 | M48: X | N48: X | O48: 675 | P48: 74 | Q48: X | R48: 25 | S48: 231
C49: 35~39세 | D49: 19126 | E49: 4838 | F49: 10178 | G49: 2919 | H49: 330 | I49: X | J49: X | K49: X | L49: 6 | M49: X | N49: X | O49: 632 | P49: 40 | Q49: X | R49: 24 | S49: 152
C50: 40~44세 | D50: 19435 | E50: 5537 | F50: 11172 | G50: 1713 | H50: 278 | I50: X | J50: X | K50: X | L50: X | M50: X | N50: X | O50: 570 | P50: 23 | Q50: 5 | R50: 23 | S50: 108
C51: 45~49세 | D51: 20600 | E51: 6456 | F51: 12272 | G51: 958 | H51: 185 | I51: 106 | J51: X | K51: X | L51: X | M51: X | N51: X | O51: 453 | P51: 6 | Q51: 7 | R51: 19 | S51: 134
C52: 50~54세 | D52: 18570 | E52: 6087 | F52: 11132 | G52: 315 | H52: 89 | I52: 456 | J52: 22 | K52: X | L52: X | M52: X | N52: X | O52: 304 | P52: 7 | Q52: 19 | R52: 17 | S52: 122
C53: 55~59세 | D53: 20231 | E53: 6625 | F53: 11734 | G53: 149 | H53: 51 | I53: 1073 | J53: 129 | K53: X | L53: X | M53: X | N53: X | O53: 298 | P53: X | Q53: 30 | R53: 21 | S53: 121
C54: 60~64세 | D54: 15987 | E54: 5183 | F54: 8803 | G54: 43 | H54: 23 | I54: 1350 | J54: 253 | K54: X | L54: X | M54: X | N54: X | O54: 167 | P54: X | Q54: 19 | R54: 19 | S54: 124
C55: 65~69세 | D55: 12501 | E55: 4160 | F55: 6128 | G55: 21 | H55: X | I55: 1548 | J55: 307 | K55: X | L55: X | M55: X | N55: 7 | O55: 131 | P55: X | Q55: 23 | R55: 17 | S55: 154
C56: 70~74세 | D56: 10326 | E56: 3711 | F56: 4200 | G56: X | H56: X | I56: 1817 | J56: 339 | K56: X | L56: X | M56: X | N56: 23 | O56: 52 | P56: X | Q56: 13 | R56: 14 | S56: 156
C57: 75~79세 | D57: 7607 | E57: 2915 | F57: 2296 | G57: X | H57: X | I57: 1826 | J57: 329 | K57: X | L57: X | M57: X | N57: 73 | O57: 42 | P57: X | Q57: 8 | R57: 12 | S57: 105
C58: 80~84세 | D58: 4268 | E58: 1653 | F58: 638 | G58: X | H58: X | I58: 1444 | J58: 276 | K58: X | L58: X | M58: X | N58: 129 | O58: 19 | P58: X | Q58: 6 | R58: 11 | S58: 92
C59: 85세 이상 | D59: 2768 | E59: 830 | F59: 117 | G59: X | H59: X | I59: 1297 | J59: 271 | K59: X | L59: X | M59: X | N59: 165 | O59: X | P59: X | Q59: X | R59: 10 | S59: 72
C60: 15~64세 | D60: 174260 | E60: 44762 | F60: 74270 | G60: 42768 | H60: 1419 | I60: 2989 | J60: 410 | K60: 663 | L60: 347 | M60: X | N60: X | O60: 4401 | P60: 558 | Q60: 83 | R60: 208 | S60: 1381
C61: 65세이상 | D61: 37470 | E61: 13269 | F61: 13379 | G61: 23 | H61: X | I61: 7932 | J61: 1522 | K61: X | L61: X | M61: X | N61: 397 | O61: 246 | P61: X | Q61: 54 | R61: 64 | S61: 579

Sheet 결혼(초혼) 연령 추이(2007~2017년)
A1: 결혼(초혼) 연령 추이(2007~2017년)
C3: 2007 | D3: 2008 | E3: 2009 | F3: 2010 | G3: 2011 | H3: 2012 | I3: 2013 | J3: 2014 | K3: 2015 | L3: 2016 | M3: 2017 | N3: 증감*
N4: 전년 | O4: 10년전 대비
N5: 대비
A6: (은평) | B6: 남자 | C6: 31.8 | D6: 31.8 | E6: 31.9 | F6: 32.3 | G6: 32.2 | H6: 32.5 | I6: 32.6 | J6: 33.1 | K6: 33 | L6: 33.2 | M6: 33.8 | N6: 0.6 | O6: 2
A7: 초혼연령 | B7: 여자 | C7: 29.1 | D7: 29.4 | E7: 29.6 | F7: 29.9 | G7: 30 | H7: 30.2 | I7: 30.4 | J7: 30.9 | K7: 31 | L7: 30.9 | M7: 31.2 | N7: 0.3 | O7: 2.1
A8: (서울) | B8: 남자 | C8: 31.5 | D8: 31.7 | E8: 32 | F8: 32.2 | G8: 32.3 | H8: 32.4 | I8: 32.6 | J8: 32.8 | K8: 33 | L8: 33.2 | M8: 33.4 | N8: 0.2 | O8: 1.9
A9: 초혼연령 | B9: 여자 | C9: 29 | D9: 29.3 | E9: 29.6 | F9: 29.8 | G9: 30 | H9: 30.2 | I9: 30.4 | J9: 30.7 | K9: 30.8 | L9: 31 | M9: 31.2 | N9: 0.2 | O9: 2.2
A10: (전국) | B10: 남자 | C10: 31.1 | D10: 31.4 | E10: 31.6 | F10: 31.8 | G10: 31.9 | H10: 32.1 | I10: 32.2 | J10: 32.4 | K10: 32.6 | L10: 32.8 | M10: 32.9 | N10: 0.1 | O10: 1.8
A11: 초혼연령 | B11: 여자 | C11: 28.1 | D11: 28.3 | E11: 28.7 | F11: 28.9 | G11: 29.1 | H11: 29.4 | I11: 29.6 | J11: 29.8 | K11: 30 | L11: 30.1 | M11: 30.2 | N11: 0.1 | O11: 2.1

Sheet 동별 성별 연령별 전체인구 추이(2011~2018.3월)
A1: 동별 성별 연령별 전체인구 추이(2011~2018.3월)
A3: ○ 행정구역(읍면동)별/5세별 주민등록인구(2011년~) [명]
A4: 행정구역(동읍면)별 | B4: 5세별 | C4: 항목 | D4: 단위 | E4: 2011 년 | F4: 2012 년 | G4: 2013 년 | H4: 2014 년 | I4: 2015 년 | J4: 2016 년 | K4: 2017 년 | L4: 2018. 03 월
A5: 녹번동 | B5: 계 | C5: 총인구수 | D5: 명 | E5: 33630 | F5: 32958 | G5: 32482 | H5: 30728 | I5: 31904 | J5: 32631 | K5: 32645 | L5: 32741
A6: 녹번동 | B6: 계 | C6: 남자인구수 | D6: 명 | E6: 16336 | F6: 16026 | G6: 15743 | H6: 14883 | I6: 15452 | J6: 15812 | K6: 15782 | L6: 15817
A7: 녹번동 | B7: 계 | C7: 여자인구수 | D7: 명 | E7: 17294 | F7: 16932 | G7: 16739 | H7: 15845 | I7: 16452 | J7: 16819 | K7: 16863 | L7: 16924
A8: 녹번동 | B8: 0 - 4세 | C8: 총인구수 | D8: 명 | E8: 1346 | F8: 1311 | G8: 1276 | H8: 1152 | I8: 1202 | J8: 1232 | K8: 1125 | L8: 1105
A9: 녹번동 | B9: 0 - 4세 | C9: 남자인구수 | D9: 명 | E9: 680 | F9: 668 | G9: 654 | H9: 606 | I9: 616 | J9: 643 | K9: 581 | L9: 570
A10: 녹번동 | B10: 0 - 4세 | C10: 여자인구수 | D10: 명 | E10: 666 | F10: 643 | G10: 622 | H10: 546 | I10: 586 | J10: 589 | K10: 544 | L10: 535
A11: 녹번동 | B11: 5 - 9세 | C11: 총인구수 | D11: 명 | E11: 1224 | F11: 1190 | G11: 1082 | H11: 1037 | I11: 1061 | J11: 1089 | K11: 1136 | L11: 1107
A12: 녹번동 | B12: 5 - 9세 | C12: 남자인구수 | D12: 명 | E12: 623 | F12: 605 | G12: 541 | H12: 506 | I12: 530 | J12: 550 | K12: 572 | L12: 560
A13: 녹번동 | B13: 5 - 9세 | C13: 여자인구수 | D13: 명 | E13: 601 | F13: 585 | G13: 541 | H13: 531 | I13: 531 | J13: 539 | K13: 564 | L13: 547
A14: 녹번동 | B14: 10 - 14세 | C14: 총인구수 | D14: 명 | E14: 1588 | F14: 1420 | G14: 1317 | H14: 1161 | I14: 1110 | J14: 1067 | K14: 1073 | L14: 1051
A15: 녹번동 | B15: 10 - 14세 | C15: 남자인구수 | D15: 명 | E15: 833 | F15: 738 | G15: 663 | H15: 588 | I15: 570 | J15: 554 | K15: 575 | L15: 553
A16: 녹번동 | B16: 10 - 14세 | C16: 여자인구수 | D16: 명 | E16: 755 | F16: 682 | G16: 654 | H16: 573 | I16: 540 | J16: 513 | K16: 498 | L16: 498
A17: 녹번동 | B17: 15 - 19세 | C17: 총인구수 | D17: 명 | E17: 1807 | F17: 1757 | G17: 1641 | H17: 1521 | I17: 1580 | J17: 1518 | K17: 1410 | L17: 1401
A18: 녹번동 | B18: 15 - 19세 | C18: 남자인구수 | D18: 명 | E18: 935 | F18: 915 | G18: 875 | H18: 792 | I18: 816 | J18: 771 | K18: 710 | L18: 701
A19: 녹번동 | B19: 15 - 19세 | C19: 여자인구수 | D19: 명 | E19: 872 | F19: 842 | G19: 766 | H19: 729 | I19: 764 | J19: 747 | K19: 700 | L19: 700
A20: 녹번동 | B20: 20 - 24세 | C20: 총인구수 | D20: 명 | E20: 1889 | F20: 1900 | G20: 1911 | H20: 1839 | I20: 1947 | J20: 2020 | K20: 2002 | L20: 2023
A21: 녹번동 | B21: 20 - 24세 | C21: 남자인구수 | D21: 명 | E21: 951 | F21: 960 | G21: 930 | H21: 900 | I21: 966 | J21: 1025 | K21: 990 | L21: 993
A22: 녹번동 | B22: 20 - 24세 | C22: 여자인구수 | D22: 명 | E22: 938 | F22: 940 | G22: 981 | H22: 939 | I22: 981 | J22: 995 | K22: 1012 | L22: 1030
A23: 녹번동 | B23: 25 - 29세 | C23: 총인구수 | D23: 명 | E23: 2732 | F23: 2462 | G23: 2362 | H23: 2144 | I23: 2234 | J23: 2262 | K23: 2277 | L23: 2312
A24: 녹번동 | B24: 25 - 29세 | C24: 남자인구수 | D24: 명 | E24: 1352 | F24: 1242 | G24: 1187 | H24: 1041 | I24: 1090 | J24: 1106 | K24: 1096 | L24: 1113
A25: 녹번동 | B25: 25 - 29세 | C25: 여자인구수 | D25: 명 | E25: 1380 | F25: 1220 | G25: 1175 | H25: 1103 | I25: 1144 | J25: 1156 | K25: 1181 | L25: 1199
A26: 녹번동 | B26: 30 - 34세 | C26: 총인구수 | D26: 명 | E26: 3148 | F26: 3124 | G26: 3163 | H26: 2812 | I26: 2743 | J26: 2604 | K26: 2399 | L26: 2413
A27: 녹번동 | B27: 30 - 34세 | C27: 남자인구수 | D27: 명 | E27: 1541 | F27: 1543 | G27: 1581 | H27: 1417 | I27: 1368 | J27: 1315 | K27: 1237 | L27: 1268
A28: 녹번동 | B28: 30 - 34세 | C28: 여자인구수 | D28: 명 | E28: 1607 | F28: 1581 | G28: 1582 | H28: 1395 | I28: 1375 | J28: 1289 | K28: 1162 | L28: 1145
A29: 녹번동 | B29: 35 - 39세 | C29: 총인구수 | D29: 명 | E29: 3099 | F29: 2890 | G29: 2648 | H29: 2539 | I29: 2718 | J29: 2732 | K29: 2782 | L29: 2763
A30: 녹번동 | B30: 35 - 39세 | C30: 남자인구수 | D30: 명 | E30: 1600 | F30: 1471 | G30: 1346 | H30: 1287 | I30: 1394 | J30: 1382 | K30: 1431 | L30: 1405
A31: 녹번동 | B31: 35 - 39세 | C31: 여자인구수 | D31: 명 | E31: 1499 | F31: 1419 | G31: 1302 | H31: 1252 | I31: 1324 | J31: 1350 | K31: 1351 | L31: 1358
A32: 녹번동 | B32: 40 - 44세 | C32: 총인구수 | D32: 명 | E32: 3026 | F32: 3031 | G32: 2943 | H32: 2731 | I32: 2735 | J32: 2660 | K32: 2581 | L32: 2512
A33: 녹번동 | B33: 40 - 44세 | C33: 남자인구수 | D33: 명 | E33: 1550 | F33: 1569 | G33: 1500 | H33: 1400 | I33: 1414 | J33: 1354 | K33: 1327 | L33: 1281
A34: 녹번동 | B34: 40 - 44세 | C34: 여자인구수 | D34: 명 | E34: 1476 | F34: 1462 | G34: 1443 | H34: 1331 | I34: 1321 | J34: 1306 | K34: 1254 | L34: 1231
A35: 녹번동 | B35: 45 - 49세 | C35: 총인구수 | D35: 명 | E35: 2460 | F35: 2420 | G35: 2486 | H35: 2403 | I35: 2603 | J35: 2767 | K35: 2826 | L35: 2841
A36: 녹번동 | B36: 45 - 49세 | C36: 남자인구수 | D36: 명 | E36: 1251 | F36: 1233 | G36: 1251 | H36: 1202 | I36: 1274 | J36: 1370 | K36: 1383 | L36: 1408
A37: 녹번동 | B37: 45 - 49세 | C37: 여자인구수 | D37: 명 | E37: 1209 | F37: 1187 | G37: 1235 | H37: 1201 | I37: 1329 | J37: 1397 | K37: 1443 | L37: 1433
A38: 녹번동 | B38: 50 - 54세 | C38: 총인구수 | D38: 명 | E38: 2845 | F38: 2765 | G38: 2651 | H38: 2457 | I38: 2546 | J38: 2520 | K38: 2483 | L38: 2521
A39: 녹번동 | B39: 50 - 54세 | C39: 남자인구수 | D39: 명 | E39: 1297 | F39: 1266 | G39: 1245 | H39: 1177 | I39: 1247 | J39: 1236 | K39: 1214 | L39: 1225
A40: 녹번동 | B40: 50 - 54세 | C40: 여자인구수 | D40: 명 | E40: 1548 | F40: 1499 | G40: 1406 | H40: 1280 | I40: 1299 | J40: 1284 | K40: 1269 | L40: 1296
A41: 녹번동 | B41: 55 - 59세 | C41: 총인구수 | D41: 명 | E41: 2357 | F41: 2422 | G41: 2534 | H41: 2447 | I41: 2626 | J41: 2811 | K41: 2825 | L41: 2825
A42: 녹번동 | B42: 55 - 59세 | C42: 남자인구수 | D42: 명 | E42: 1058 | F42: 1084 | G42: 1169 | H42: 1139 | I42: 1211 | J42: 1319 | K42: 1330 | L42: 1330
A43: 녹번동 | B43: 55 - 59세 | C43: 여자인구수 | D43: 명 | E43: 1299 | F43: 1338 | G43: 1365 | H43: 1308 | I43: 1415 | J43: 1492 | K43: 1495 | L43: 1495
A44: 녹번동 | B44: 60 - 64세 | C44: 총인구수 | D44: 명 | E44: 1862 | F44: 1844 | G44: 1808 | H44: 1821 | I44: 1982 | J44: 2203 | K44: 2259 | L44: 2300
A45: 녹번동 | B45: 60 - 64세 | C45: 남자인구수 | D45: 명 | E45: 808 | F45: 801 | G45: 803 | H45: 814 | I45: 880 | J45: 990 | K45: 1011 | L45: 1047
A46: 녹번동 | B46: 60 - 64세 | C46: 여자인구수 | D46: 명 | E46: 1054 | F46: 1043 | G46: 1005 | H46: 1007 | I46: 1102 | J46: 1213 | K46: 1248 | L46: 1253
A47: 녹번동 | B47: 65 - 69세 | C47: 총인구수 | D47: 명 | E47: 1611 | F47: 1615 | G47: 1633 | H47: 1611 | I47: 1649 | J47: 1680 | K47: 1741 | L47: 1761
A48: 녹번동 | B48: 65 - 69세 | C48: 남자인구수 | D48: 명 | E48: 735 | F48: 723 | G48: 696 | H48: 716 | I48: 734 | J48: 753 | K48: 773 | L48: 783
A49: 녹번동 | B49: 65 - 69세 | C49: 여자인구수 | D49: 명 | E49: 876 | F49: 892 | G49: 937 | H49: 895 | I49: 915 | J49: 927 | K49: 968 | L49: 978
A50: 녹번동 | B50: 70 - 74세 | C50: 총인구수 | D50: 명 | E50: 1270 | F50: 1380 | G50: 1433 | H50: 1378 | I50: 1371 | J50: 1429 | K50: 1484 | L50: 1484
A51: 녹번동 | B51: 70 - 74세 | C51: 남자인구수 | D51: 명 | E51: 604 | F51: 655 | G51: 657 | H51: 629 | I51: 617 | J51: 614 | K51: 654 | L51: 649
A52: 녹번동 | B52: 70 - 74세 | C52: 여자인구수 | D52: 명 | E52: 666 | F52: 725 | G52: 776 | H52: 749 | I52: 754 | J52: 815 | K52: 830 | L52: 835
A53: 녹번동 | B53: 75 - 79세 | C53: 총인구수 | D53: 명 | E53: 764 | F53: 795 | G53: 884 | H53: 891 | I53: 945 | J53: 1078 | K53: 1200 | L53: 1236
A54: 녹번동 | B54: 75 - 79세 | C54: 남자인구수 | D54: 명 | E54: 331 | F54: 350 | G54: 402 | H54: 399 | I54: 432 | J54: 494 | K54: 540 | L54: 553
A55: 녹번동 | B55: 75 - 79세 | C55: 여자인구수 | D55: 명 | E55: 433 | F55: 445 | G55: 482 | H55: 492 | I55: 513 | J55: 584 | K55: 660 | L55: 683
A56: 녹번동 | B56: 80 - 84세 | C56: 총인구수 | D56: 명 | E56: 355 | F56: 374 | G56: 430 | H56: 460 | I56: 516 | J56: 589 | K56: 624 | L56: 644
A57: 녹번동 | B57: 80 - 84세 | C57: 남자인구수 | D57: 명 | E57: 114 | F57: 130 | G57: 158 | H57: 182 | I57: 194 | J57: 231 | K57: 249 | L57: 267
A58: 녹번동 | B58: 80 - 84세 | C58: 여자인구수 | D58: 명 | E58: 241 | F58: 244 | G58: 272 | H58: 278 | I58: 322 | J58: 358 | K58: 375 | L58: 377
A59: 녹번동 | B59: 85 - 89세 | C59: 총인구수 | D59: 명 | E59: 151 | F59: 159 | G59: 170 | H59: 206 | I59: 211 | J59: 248 | K59: 276 | L59: 284
A60: 녹번동 | B60: 85 - 89세 | C60: 남자인구수 | D60: 명 | E60: 50 | F60: 47 | G60: 51 | H60: 54 | I60: 60 | J60: 77 | K60: 79 | L60: 79
A61: 녹번동 | B61: 85 - 89세 | C61: 여자인구수 | D61: 명 | E61: 101 | F61: 112 | G61: 119 | H61: 152 | I61: 151 | J61: 171 | K61: 197 | L61: 205
A62: 녹번동 | B62: 90 - 94세 | C62: 총인구수 | D62: 명 | E62: 63 | F62: 66 | G62: 73 | H62: 82 | I62: 88 | J62: 80 | K62: 98 | L62: 110
A63: 녹번동 | B63: 90 - 94세 | C63: 남자인구수 | D63: 명 | E63: 16 | F63: 17 | G63: 22 | H63: 24 | I63: 28 | J63: 19 | K63: 21 | L63: 21
A64: 녹번동 | B64: 90 - 94세 | C64: 여자인구수 | D64: 명 | E64: 47 | F64: 49 | G64: 51 | H64: 58 | I64: 60 | J64: 61 | K64: 77 | L64: 89
A65: 녹번동 | B65: 95 - 99세 | C65: 총인구수 | D65: 명 | E65: 22 | F65: 22 | G65: 23 | H65: 20 | I65: 22 | J65: 25 | K65: 27 | L65: 31
A66: 녹번동 | B66: 95 - 99세 | C66: 남자인구수 | D66: 명 | E66: 5 | F66: 7 | G66: 7 | H66: 6 | I66: 6 | J66: 5 | K66: 5 | L66: 7
A67: 녹번동 | B67: 95 - 99세 | C67: 여자인구수 | D67: 명 | E67: 17 | F67: 15 | G67: 16 | H67: 14 | I67: 16 | J67: 20 | K67: 22 | L67: 24
A68: 녹번동 | B68: 100+ | C68: 총인구수 | D68: 명 | E68: 11 | F68: 11 | G68: 14 | H68: 16 | I68: 15 | J68: 17 | K68: 17 | L68: 17
A69: 녹번동 | B69: 100+ | C69: 남자인구수 | D69: 명 | E69: 2 | F69: 2 | G69: 5 | H69: 4 | I69: 5 | J69: 4 | K69: 4 | L69: 4
A70: 녹번동 | B70: 100+ | C70: 여자인구수 | D70: 명 | E70: 9 | F70: 9 | G70: 9 | H70: 12 | I70: 10 | J70: 13 | K70: 13 | L70: 13
A71: 불광제1동 | B71: 계 | C71: 총인구수 | D71: 명 | E71: 41694 | F71: 41805 | G71: 42847 | H71: 42904 | I71: 42386 | J71: 42482 | K71: 42038 | L71: 41924
A72: 불광제1동 | B72: 계 | C72: 남자인구수 | D72: 명 | E72: 20383 | F72: 20328 | G72: 20740 | H72: 20754 | I72: 20353 | J72: 20332 | K72: 20114 | L72: 20050
A73: 불광제1동 | B73: 계 | C73: 여자인구수 | D73: 명 | E73: 21311 | F73: 21477 | G73: 22107 | H73: 22150 | I73: 22033 | J73: 22150 | K73: 21924 | L73: 21874
A74: 불광제1동 | B74: 0 - 4세 | C74: 총인구수 | D74: 명 | E74: 1995 | F74: 2002 | G74: 2054 | H74: 2032 | I74: 1897 | J74: 1863 | K74: 1643 | L74: 1575
A75: 불광제1동 | B75: 0 - 4세 | C75: 남자인구수 | D75: 명 | E75: 1084 | F75: 1074 | G75: 1066 | H75: 1054 | I75: 972 | J75: 937 | K75: 841 | L75: 803
A76: 불광제1동 | B76: 0 - 4세 | C76: 여자인구수 | D76: 명 | E76: 911 | F76: 928 | G76: 988 | H76: 978 | I76: 925 | J76: 926 | K76: 802 | L76: 772
A77: 불광제1동 | B77: 5 - 9세 | C77: 총인구수 | D77: 명 | E77: 1761 | F77: 1773 | G77: 1750 | H77: 1693 | I77: 1617 | J77: 1625 | K77: 1569 | L77: 1558
A78: 불광제1동 | B78: 5 - 9세 | C78: 남자인구수 | D78: 명 | E78: 911 | F78: 937 | G78: 947 | H78: 918 | I78: 872 | J78: 863 | K78: 827 | L78: 826
A79: 불광제1동 | B79: 5 - 9세 | C79: 여자인구수 | D79: 명 | E79: 850 | F79: 836 | G79: 803 | H79: 775 | I79: 745 | J79: 762 | K79: 742 | L79: 732
A80: 불광제1동 | B80: 10 - 14세 | C80: 총인구수 | D80: 명 | E80: 1988 | F80: 1902 | G80: 1787 | H80: 1711 | I80: 1524 | J80: 1490 | K80: 1472 | L80: 1435
A81: 불광제1동 | B81: 10 - 14세 | C81: 남자인구수 | D81: 명 | E81: 1004 | F81: 960 | G81: 923 | H81: 894 | I81: 769 | J81: 772 | K81: 779 | L81: 758
A82: 불광제1동 | B82: 10 - 14세 | C82: 여자인구수 | D82: 명 | E82: 984 | F82: 942 | G82: 864 | H82: 817 | I82: 755 | J82: 718 | K82: 693 | L82: 677
A83: 불광제1동 | B83: 15 - 19세 | C83: 총인구수 | D83: 명 | E83: 2518 | F83: 2466 | G83: 2404 | H83: 2249 | I83: 2156 | J83: 2011 | K83: 1850 | L83: 1803
A84: 불광제1동 | B84: 15 - 19세 | C84: 남자인구수 | D84: 명 | E84: 1298 | F84: 1232 | G84: 1179 | H84: 1099 | I84: 1061 | J84: 977 | K84: 907 | L84: 902
A85: 불광제1동 | B85: 15 - 19세 | C85: 여자인구수 | D85: 명 | E85: 1220 | F85: 1234 | G85: 1225 | H85: 1150 | I85: 1095 | J85: 1034 | K85: 943 | L85: 901
A86: 불광제1동 | B86: 20 - 24세 | C86: 총인구수 | D86: 명 | E86: 2524 | F86: 2631 | G86: 2773 | H86: 2861 | I86: 2803 | J86: 2766 | K86: 2729 | L86: 2734
A87: 불광제1동 | B87: 20 - 24세 | C87: 남자인구수 | D87: 명 | E87: 1282 | F87: 1327 | G87: 1416 | H87: 1472 | I87: 1426 | J87: 1385 | K87: 1373 | L87: 1377
A88: 불광제1동 | B88: 20 - 24세 | C88: 여자인구수 | D88: 명 | E88: 1242 | F88: 1304 | G88: 1357 | H88: 1389 | I88: 1377 | J88: 1381 | K88: 1356 | L88: 1357
A89: 불광제1동 | B89: 25 - 29세 | C89: 총인구수 | D89: 명 | E89: 3023 | F89: 2861 | G89: 2828 | H89: 2807 | I89: 2757 | J89: 2860 | K89: 2906 | L89: 2910
A90: 불광제1동 | B90: 25 - 29세 | C90: 남자인구수 | D90: 명 | E90: 1496 | F90: 1402 | G90: 1350 | H90: 1309 | I90: 1295 | J90: 1378 | K90: 1448 | L90: 1441
A91: 불광제1동 | B91: 25 - 29세 | C91: 여자인구수 | D91: 명 | E91: 1527 | F91: 1459 | G91: 1478 | H91: 1498 | I91: 1462 | J91: 1482 | K91: 1458 | L91: 1469
A92: 불광제1동 | B92: 30 - 34세 | C92: 총인구수 | D92: 명 | E92: 3913 | F92: 3862 | G92: 4060 | H92: 3753 | I92: 3516 | J92: 3172 | K92: 2930 | L92: 2846
A93: 불광제1동 | B93: 30 - 34세 | C93: 남자인구수 | D93: 명 | E93: 1935 | F93: 1880 | G93: 1976 | H93: 1860 | I93: 1745 | J93: 1572 | K93: 1415 | L93: 1385
A94: 불광제1동 | B94: 30 - 34세 | C94: 여자인구수 | D94: 명 | E94: 1978 | F94: 1982 | G94: 2084 | H94: 1893 | I94: 1771 | J94: 1600 | K94: 1515 | L94: 1461
A95: 불광제1동 | B95: 35 - 39세 | C95: 총인구수 | D95: 명 | E95: 3920 | F95: 3780 | G95: 3671 | H95: 3628 | I95: 3579 | J95: 3662 | K95: 3477 | L95: 3505
A96: 불광제1동 | B96: 35 - 39세 | C96: 남자인구수 | D96: 명 | E96: 2021 | F96: 1907 | G96: 1840 | H96: 1812 | I96: 1761 | J96: 1816 | K96: 1710 | L96: 1726
A97: 불광제1동 | B97: 35 - 39세 | C97: 여자인구수 | D97: 명 | E97: 1899 | F97: 1873 | G97: 1831 | H97: 1816 | I97: 1818 | J97: 1846 | K97: 1767 | L97: 1779
A98: 불광제1동 | B98: 40 - 44세 | C98: 총인구수 | D98: 명 | E98: 3761 | F98: 3791 | G98: 3850 | H98: 3874 | I98: 3636 | J98: 3497 | K98: 3380 | L98: 3274
A99: 불광제1동 | B99: 40 - 44세 | C99: 남자인구수 | D99: 명 | E99: 1870 | F99: 1934 | G99: 1976 | H99: 1989 | I99: 1840 | J99: 1754 | K99: 1683 | L99: 1620
A100: 불광제1동 | B100: 40 - 44세 | C100: 여자인구수 | D100: 명 | E100: 1891 | F100: 1857 | G100: 1874 | H100: 1885 | I100: 1796 | J100: 1743 | K100: 1697 | L100: 1654
A101: 불광제1동 | B101: 45 - 49세 | C101: 총인구수 | D101: 명 | E101: 3298 | F101: 3315 | G101: 3356 | H101: 3381 | I101: 3433 | J101: 3587 | K101: 3608 | L101: 3608
A102: 불광제1동 | B102: 45 - 49세 | C102: 남자인구수 | D102: 명 | E102: 1620 | F102: 1615 | G102: 1617 | H102: 1616 | I102: 1684 | J102: 1708 | K102: 1745 | L102: 1742
A103: 불광제1동 | B103: 45 - 49세 | C103: 여자인구수 | D103: 명 | E103: 1678 | F103: 1700 | G103: 1739 | H103: 1765 | I103: 1749 | J103: 1879 | K103: 1863 | L103: 1866
A104: 불광제1동 | B104: 50 - 54세 | C104: 총인구수 | D104: 명 | E104: 3418 | F104: 3411 | G104: 3611 | H104: 3631 | I104: 3433 | J104: 3346 | K104: 3357 | L104: 3344
A105: 불광제1동 | B105: 50 - 54세 | C105: 남자인구수 | D105: 명 | E105: 1630 | F105: 1628 | G105: 1718 | H105: 1723 | I105: 1607 | J105: 1599 | K105: 1592 | L105: 1567
A106: 불광제1동 | B106: 50 - 54세 | C106: 여자인구수 | D106: 명 | E106: 1788 | F106: 1783 | G106: 1893 | H106: 1908 | I106: 1826 | J106: 1747 | K106: 1765 | L106: 1777
A107: 불광제1동 | B107: 55 - 59세 | C107: 총인구수 | D107: 명 | E107: 2673 | F107: 2793 | G107: 3005 | H107: 3129 | I107: 3353 | J107: 3510 | K107: 3595 | L107: 3647
A108: 불광제1동 | B108: 55 - 59세 | C108: 남자인구수 | D108: 명 | E108: 1287 | F108: 1341 | G108: 1427 | H108: 1495 | I108: 1553 | J108: 1605 | K108: 1647 | L108: 1677
A109: 불광제1동 | B109: 55 - 59세 | C109: 여자인구수 | D109: 명 | E109: 1386 | F109: 1452 | G109: 1578 | H109: 1634 | I109: 1800 | J109: 1905 | K109: 1948 | L109: 1970
A110: 불광제1동 | B110: 60 - 64세 | C110: 총인구수 | D110: 명 | E110: 2037 | F110: 2056 | G110: 2126 | H110: 2260 | I110: 2483 | J110: 2696 | K110: 2787 | L110: 2828
A111: 불광제1동 | B111: 60 - 64세 | C111: 남자인구수 | D111: 명 | E111: 859 | F111: 890 | G111: 932 | H111: 1006 | I111: 1134 | J111: 1247 | K111: 1297 | L111: 1322
A112: 불광제1동 | B112: 60 - 64세 | C112: 여자인구수 | D112: 명 | E112: 1178 | F112: 1166 | G112: 1194 | H112: 1254 | I112: 1349 | J112: 1449 | K112: 1490 | L112: 1506
A113: 불광제1동 | B113: 65 - 69세 | C113: 총인구수 | D113: 명 | E113: 1760 | F113: 1779 | G113: 1880 | H113: 1995 | I113: 2050 | J113: 2038 | K113: 2083 | L113: 2093
A114: 불광제1동 | B114: 65 - 69세 | C114: 남자인구수 | D114: 명 | E114: 801 | F114: 782 | G114: 829 | H114: 870 | I114: 902 | J114: 876 | K114: 895 | L114: 914
A115: 불광제1동 | B115: 65 - 69세 | C115: 여자인구수 | D115: 명 | E115: 959 | F115: 997 | G115: 1051 | H115: 1125 | I115: 1148 | J115: 1162 | K115: 1188 | L115: 1179
A116: 불광제1동 | B116: 70 - 74세 | C116: 총인구수 | D116: 명 | E116: 1458 | F116: 1579 | G116: 1678 | H116: 1707 | I116: 1751 | J116: 1750 | K116: 1787 | L116: 1801
A117: 불광제1동 | B117: 70 - 74세 | C117: 남자인구수 | D117: 명 | E117: 658 | F117: 721 | G117: 755 | H117: 758 | I117: 757 | J117: 778 | K117: 803 | L117: 788
A118: 불광제1동 | B118: 70 - 74세 | C118: 여자인구수 | D118: 명 | E118: 800 | F118: 858 | G118: 923 | H118: 949 | I118: 994 | J118: 972 | K118: 984 | L118: 1013
A119: 불광제1동 | B119: 75 - 79세 | C119: 총인구수 | D119: 명 | E119: 885 | F119: 994 | G119: 1090 | H119: 1170 | I119: 1257 | J119: 1352 | K119: 1472 | L119: 1539
A120: 불광제1동 | B120: 75 - 79세 | C120: 남자인구수 | D120: 명 | E120: 374 | F120: 421 | G120: 454 | H120: 493 | I120: 532 | J120: 567 | K120: 609 | L120: 656
A121: 불광제1동 | B121: 75 - 79세 | C121: 여자인구수 | D121: 명 | E121: 511 | F121: 573 | G121: 636 | H121: 677 | I121: 725 | J121: 785 | K121: 863 | L121: 883
A122: 불광제1동 | B122: 80 - 84세 | C122: 총인구수 | D122: 명 | E122: 452 | F122: 467 | G122: 560 | H122: 617 | I122: 705 | J122: 767 | K122: 856 | L122: 874
A123: 불광제1동 | B123: 80 - 84세 | C123: 남자인구수 | D123: 명 | E123: 176 | F123: 184 | G123: 223 | H123: 254 | I123: 297 | J123: 330 | K123: 354 | L123: 359
A124: 불광제1동 | B124: 80 - 84세 | C124: 여자인구수 | D124: 명 | E124: 276 | F124: 283 | G124: 337 | H124: 363 | I124: 408 | J124: 437 | K124: 502 | L124: 515
A125: 불광제1동 | B125: 85 - 89세 | C125: 총인구수 | D125: 명 | E125: 203 | F125: 224 | G125: 225 | H125: 266 | I125: 288 | J125: 332 | K125: 364 | L125: 369
A126: 불광제1동 | B126: 85 - 89세 | C126: 남자인구수 | D126: 명 | E126: 55 | F126: 64 | G126: 81 | H126: 98 | I126: 110 | J126: 120 | K126: 137 | L126: 133
A127: 불광제1동 | B127: 85 - 89세 | C127: 여자인구수 | D127: 명 | E127: 148 | F127: 160 | G127: 144 | H127: 168 | I127: 178 | J127: 212 | K127: 227 | L127: 236
A128: 불광제1동 | B128: 90 - 94세 | C128: 총인구수 | D128: 명 | E128: 72 | F128: 78 | G128: 91 | H128: 90 | I128: 97 | J128: 101 | K128: 116 | L128: 125
A129: 불광제1동 | B129: 90 - 94세 | C129: 남자인구수 | D129: 명 | E129: 16 | F129: 19 | G129: 19 | H129: 20 | I129: 21 | J129: 33 | K129: 36 | L129: 39
A130: 불광제1동 | B130: 90 - 94세 | C130: 여자인구수 | D130: 명 | E130: 56 | F130: 59 | G130: 72 | H130: 70 | I130: 76 | J130: 68 | K130: 80 | L130: 86
A131: 불광제1동 | B131: 95 - 99세 | C131: 총인구수 | D131: 명 | E131: 21 | F131: 26 | G131: 30 | H131: 31 | I131: 28 | J131: 32 | K131: 34 | L131: 31
A132: 불광제1동 | B132: 95 - 99세 | C132: 남자인구수 | D132: 명 | E132: 3 | F132: 7 | G132: 7 | H132: 9 | I132: 10 | J132: 9 | K132: 9 | L132: 7
A133: 불광제1동 | B133: 95 - 99세 | C133: 여자인구수 | D133: 명 | E133: 18 | F133: 19 | G133: 23 | H133: 22 | I133: 18 | J133: 23 | K133: 25 | L133: 24
A134: 불광제1동 | B134: 100+ | C134: 총인구수 | D134: 명 | E134: 14 | F134: 15 | G134: 18 | H134: 19 | I134: 23 | J134: 25 | K134: 23 | L134: 25
A135: 불광제1동 | B135: 100+ | C135: 남자인구수 | D135: 명 | E135: 3 | F135: 3 | G135: 5 | H135: 5 | I135: 5 | J135: 6 | K135: 7 | L135: 8
A136: 불광제1동 | B136: 100+ | C136: 여자인구수 | D136: 명 | E136: 11 | F136: 12 | G136: 13 | H136: 14 | I136: 18 | J136: 19 | K136: 16 | L136: 17
A137: 불광제2동 | B137: 계 | C137: 총인구수 | D137: 명 | E137: 30699 | F137: 30309 | G137: 29667 | H137: 29135 | I137: 29034 | J137: 29571 | K137: 29902 | L137: 29906
A138: 불광제2동 | B138: 계 | C138: 남자인구수 | D138: 명 | E138: 15151 | F138: 15014 | G138: 14635 | H138: 14373 | I138: 14336 | J138: 14505 | K138: 14626 | L138: 14578
A139: 불광제2동 | B139: 계 | C139: 여자인구수 | D139: 명 | E139: 15548 | F139: 15295 | G139: 15032 | H139: 14762 | I139: 14698 | J139: 15066 | K139: 15276 | L139: 15328
A140: 불광제2동 | B140: 0 - 4세 | C140: 총인구수 | D140: 명 | E140: 974 | F140: 961 | G140: 948 | H140: 871 | I140: 864 | J140: 838 | K140: 826 | L140: 807
A141: 불광제2동 | B141: 0 - 4세 | C141: 남자인구수 | D141: 명 | E141: 510 | F141: 505 | G141: 489 | H141: 451 | I141: 449 | J141: 424 | K141: 409 | L141: 400
A142: 불광제2동 | B142: 0 - 4세 | C142: 여자인구수 | D142: 명 | E142: 464 | F142: 456 | G142: 459 | H142: 420 | I142: 415 | J142: 414 | K142: 417 | L142: 407
A143: 불광제2동 | B143: 5 - 9세 | C143: 총인구수 | D143: 명 | E143: 990 | F143: 936 | G143: 886 | H143: 824 | I143: 786 | J143: 782 | K143: 763 | L143: 754
A144: 불광제2동 | B144: 5 - 9세 | C144: 남자인구수 | D144: 명 | E144: 500 | F144: 485 | G144: 459 | H144: 431 | I144: 400 | J144: 397 | K144: 388 | L144: 380
A145: 불광제2동 | B145: 5 - 9세 | C145: 여자인구수 | D145: 명 | E145: 490 | F145: 451 | G145: 427 | H145: 393 | I145: 386 | J145: 385 | K145: 375 | L145: 374
A146: 불광제2동 | B146: 10 - 14세 | C146: 총인구수 | D146: 명 | E146: 1456 | F146: 1314 | G146: 1235 | H146: 1113 | I146: 1002 | J146: 950 | K146: 922 | L146: 901
A147: 불광제2동 | B147: 10 - 14세 | C147: 남자인구수 | D147: 명 | E147: 759 | F147: 701 | G147: 638 | H147: 568 | I147: 521 | J147: 495 | K147: 500 | L147: 492
A148: 불광제2동 | B148: 10 - 14세 | C148: 여자인구수 | D148: 명 | E148: 697 | F148: 613 | G148: 597 | H148: 545 | I148: 481 | J148: 455 | K148: 422 | L148: 409
A149: 불광제2동 | B149: 15 - 19세 | C149: 총인구수 | D149: 명 | E149: 1955 | F149: 1834 | G149: 1719 | H149: 1632 | I149: 1570 | J149: 1519 | K149: 1439 | L149: 1450
A150: 불광제2동 | B150: 15 - 19세 | C150: 남자인구수 | D150: 명 | E150: 1030 | F150: 987 | G150: 938 | H150: 895 | I150: 843 | J150: 829 | K150: 741 | L150: 747
A151: 불광제2동 | B151: 15 - 19세 | C151: 여자인구수 | D151: 명 | E151: 925 | F151: 847 | G151: 781 | H151: 737 | I151: 727 | J151: 690 | K151: 698 | L151: 703
A152: 불광제2동 | B152: 20 - 24세 | C152: 총인구수 | D152: 명 | E152: 2027 | F152: 2016 | G152: 1990 | H152: 1997 | I152: 2039 | J152: 2079 | K152: 2024 | L152: 1995
A153: 불광제2동 | B153: 20 - 24세 | C153: 남자인구수 | D153: 명 | E153: 1019 | F153: 1016 | G153: 999 | H153: 1021 | I153: 1055 | J153: 1073 | K153: 1068 | L153: 1029
A154: 불광제2동 | B154: 20 - 24세 | C154: 여자인구수 | D154: 명 | E154: 1008 | F154: 1000 | G154: 991 | H154: 976 | I154: 984 | J154: 1006 | K154: 956 | L154: 966
A155: 불광제2동 | B155: 25 - 29세 | C155: 총인구수 | D155: 명 | E155: 2481 | F155: 2315 | G155: 2094 | H155: 2006 | I155: 2035 | J155: 2133 | K155: 2281 | L155: 2288
A156: 불광제2동 | B156: 25 - 29세 | C156: 남자인구수 | D156: 명 | E156: 1271 | F156: 1198 | G156: 1084 | H156: 1011 | I156: 1047 | J156: 1084 | K156: 1141 | L156: 1157
A157: 불광제2동 | B157: 25 - 29세 | C157: 여자인구수 | D157: 명 | E157: 1210 | F157: 1117 | G157: 1010 | H157: 995 | I157: 988 | J157: 1049 | K157: 1140 | L157: 1131
A158: 불광제2동 | B158: 30 - 34세 | C158: 총인구수 | D158: 명 | E158: 2615 | F158: 2642 | G158: 2613 | H158: 2416 | I158: 2281 | J158: 2210 | K158: 2122 | L158: 2101
A159: 불광제2동 | B159: 30 - 34세 | C159: 남자인구수 | D159: 명 | E159: 1381 | F159: 1405 | G159: 1396 | H159: 1290 | I159: 1243 | J159: 1157 | K159: 1098 | L159: 1081
A160: 불광제2동 | B160: 30 - 34세 | C160: 여자인구수 | D160: 명 | E160: 1234 | F160: 1237 | G160: 1217 | H160: 1126 | I160: 1038 | J160: 1053 | K160: 1024 | L160: 1020
A161: 불광제2동 | B161: 35 - 39세 | C161: 총인구수 | D161: 명 | E161: 2518 | F161: 2343 | G161: 2089 | H161: 2039 | I161: 2077 | J161: 2166 | K161: 2267 | L161: 2297
A162: 불광제2동 | B162: 35 - 39세 | C162: 남자인구수 | D162: 명 | E162: 1336 | F162: 1235 | G162: 1092 | H162: 1091 | I162: 1093 | J162: 1146 | K162: 1215 | L162: 1217
A163: 불광제2동 | B163: 35 - 39세 | C163: 여자인구수 | D163: 명 | E163: 1182 | F163: 1108 | G163: 997 | H163: 948 | I163: 984 | J163: 1020 | K163: 1052 | L163: 1080
A164: 불광제2동 | B164: 40 - 44세 | C164: 총인구수 | D164: 명 | E164: 2626 | F164: 2624 | G164: 2606 | H164: 2500 | I164: 2316 | J164: 2170 | K164: 2071 | L164: 2033
A165: 불광제2동 | B165: 40 - 44세 | C165: 남자인구수 | D165: 명 | E165: 1283 | F165: 1314 | G165: 1310 | H165: 1301 | I165: 1208 | J165: 1141 | K165: 1069 | L165: 1045
A166: 불광제2동 | B166: 40 - 44세 | C166: 여자인구수 | D166: 명 | E166: 1343 | F166: 1310 | G166: 1296 | H166: 1199 | I166: 1108 | J166: 1029 | K166: 1002 | L166: 988
A167: 불광제2동 | B167: 45 - 49세 | C167: 총인구수 | D167: 명 | E167: 2453 | F167: 2400 | G167: 2373 | H167: 2377 | I167: 2380 | J167: 2575 | K167: 2644 | L167: 2653
A168: 불광제2동 | B168: 45 - 49세 | C168: 남자인구수 | D168: 명 | E168: 1194 | F168: 1148 | G168: 1122 | H168: 1122 | I168: 1143 | J168: 1228 | K168: 1295 | L168: 1309
A169: 불광제2동 | B169: 45 - 49세 | C169: 여자인구수 | D169: 명 | E169: 1259 | F169: 1252 | G169: 1251 | H169: 1255 | I169: 1237 | J169: 1347 | K169: 1349 | L169: 1344
A170: 불광제2동 | B170: 50 - 54세 | C170: 총인구수 | D170: 명 | E170: 2788 | F170: 2757 | G170: 2632 | H170: 2581 | I170: 2466 | J170: 2408 | K170: 2451 | L170: 2460
A171: 불광제2동 | B171: 50 - 54세 | C171: 남자인구수 | D171: 명 | E171: 1330 | F171: 1315 | G171: 1284 | H171: 1228 | I171: 1142 | J171: 1129 | K171: 1124 | L171: 1131
A172: 불광제2동 | B172: 50 - 54세 | C172: 여자인구수 | D172: 명 | E172: 1458 | F172: 1442 | G172: 1348 | H172: 1353 | I172: 1324 | J172: 1279 | K172: 1327 | L172: 1329
A173: 불광제2동 | B173: 55 - 59세 | C173: 총인구수 | D173: 명 | E173: 2201 | F173: 2234 | G173: 2394 | H173: 2463 | I173: 2608 | J173: 2737 | K173: 2721 | L173: 2709
A174: 불광제2동 | B174: 55 - 59세 | C174: 남자인구수 | D174: 명 | E174: 1040 | F174: 1051 | G174: 1118 | H174: 1166 | I174: 1243 | J174: 1285 | K174: 1297 | L174: 1282
A175: 불광제2동 | B175: 55 - 59세 | C175: 여자인구수 | D175: 명 | E175: 1161 | F175: 1183 | G175: 1276 | H175: 1297 | I175: 1365 | J175: 1452 | K175: 1424 | L175: 1427
A176: 불광제2동 | B176: 60 - 64세 | C176: 총인구수 | D176: 명 | E176: 1745 | F176: 1796 | G176: 1774 | H176: 1801 | I176: 1908 | J176: 2071 | K176: 2186 | L176: 2212
A177: 불광제2동 | B177: 60 - 64세 | C177: 남자인구수 | D177: 명 | E177: 811 | F177: 829 | G177: 812 | H177: 824 | I177: 890 | J177: 967 | K177: 1011 | L177: 1029
A178: 불광제2동 | B178: 60 - 64세 | C178: 여자인구수 | D178: 명 | E178: 934 | F178: 967 | G178: 962 | H178: 977 | I178: 1018 | J178: 1104 | K178: 1175 | L178: 1183
A179: 불광제2동 | B179: 65 - 69세 | C179: 총인구수 | D179: 명 | E179: 1501 | F179: 1472 | G179: 1491 | H179: 1557 | I179: 1644 | J179: 1664 | K179: 1706 | L179: 1716
A180: 불광제2동 | B180: 65 - 69세 | C180: 남자인구수 | D180: 명 | E180: 693 | F180: 671 | G180: 669 | H180: 681 | I180: 746 | J180: 761 | K180: 770 | L180: 762
A181: 불광제2동 | B181: 65 - 69세 | C181: 여자인구수 | D181: 명 | E181: 808 | F181: 801 | G181: 822 | H181: 876 | I181: 898 | J181: 903 | K181: 936 | L181: 954
A182: 불광제2동 | B182: 70 - 74세 | C182: 총인구수 | D182: 명 | E182: 1122 | F182: 1305 | G182: 1337 | H182: 1342 | I182: 1345 | J182: 1393 | K182: 1370 | L182: 1381
A183: 불광제2동 | B183: 70 - 74세 | C183: 남자인구수 | D183: 명 | E183: 528 | F183: 614 | G183: 641 | H183: 652 | I183: 619 | J183: 626 | K183: 622 | L183: 620
A184: 불광제2동 | B184: 70 - 74세 | C184: 여자인구수 | D184: 명 | E184: 594 | F184: 691 | G184: 696 | H184: 690 | I184: 726 | J184: 767 | K184: 748 | L184: 761
A185: 불광제2동 | B185: 75 - 79세 | C185: 총인구수 | D185: 명 | E185: 684 | F185: 741 | G185: 811 | H185: 884 | I185: 937 | J185: 1012 | K185: 1160 | L185: 1188
A186: 불광제2동 | B186: 75 - 79세 | C186: 남자인구수 | D186: 명 | E186: 286 | F186: 321 | G186: 362 | H186: 400 | I186: 422 | J186: 448 | K186: 526 | L186: 542
A187: 불광제2동 | B187: 75 - 79세 | C187: 여자인구수 | D187: 명 | E187: 398 | F187: 420 | G187: 449 | H187: 484 | I187: 515 | J187: 564 | K187: 634 | L187: 646
A188: 불광제2동 | B188: 80 - 84세 | C188: 총인구수 | D188: 명 | E188: 352 | F188: 391 | G188: 414 | H188: 435 | I188: 467 | J188: 505 | K188: 574 | L188: 595
A189: 불광제2동 | B189: 80 - 84세 | C189: 남자인구수 | D189: 명 | E189: 123 | F189: 149 | G189: 141 | H189: 152 | I189: 180 | J189: 212 | K189: 240 | L189: 246
A190: 불광제2동 | B190: 80 - 84세 | C190: 여자인구수 | D190: 명 | E190: 229 | F190: 242 | G190: 273 | H190: 283 | I190: 287 | J190: 293 | K190: 334 | L190: 349
A191: 불광제2동 | B191: 85 - 89세 | C191: 총인구수 | D191: 명 | E191: 145 | F191: 146 | G191: 174 | H191: 199 | I191: 215 | J191: 255 | K191: 259 | L191: 252
A192: 불광제2동 | B192: 85 - 89세 | C192: 남자인구수 | D192: 명 | E192: 44 | F192: 51 | G192: 58 | H192: 64 | I192: 67 | J192: 80 | K192: 86 | L192: 84
A193: 불광제2동 | B193: 85 - 89세 | C193: 여자인구수 | D193: 명 | E193: 101 | F193: 95 | G193: 116 | H193: 135 | I193: 148 | J193: 175 | K193: 173 | L193: 168
A194: 불광제2동 | B194: 90 - 94세 | C194: 총인구수 | D194: 명 | E194: 45 | F194: 56 | G194: 56 | H194: 67 | I194: 65 | J194: 76 | K194: 85 | L194: 82
A195: 불광제2동 | B195: 90 - 94세 | C195: 남자인구수 | D195: 명 | E195: 8 | F195: 11 | G195: 13 | H195: 15 | I195: 17 | J195: 16 | K195: 20 | L195: 19
A196: 불광제2동 | B196: 90 - 94세 | C196: 여자인구수 | D196: 명 | E196: 37 | F196: 45 | G196: 43 | H196: 52 | I196: 48 | J196: 60 | K196: 65 | L196: 63
A197: 불광제2동 | B197: 95 - 99세 | C197: 총인구수 | D197: 명 | E197: 14 | F197: 18 | G197: 21 | H197: 20 | I197: 17 | J197: 14 | K197: 19 | L197: 19
A198: 불광제2동 | B198: 95 - 99세 | C198: 남자인구수 | D198: 명 | E198: 3 | F198: 6 | G198: 8 | H198: 7 | I198: 4 | J198: 2 | K198: 2 | L198: 2
A199: 불광제2동 | B199: 95 - 99세 | C199: 여자인구수 | D199: 명 | E199: 11 | F199: 12 | G199: 13 | H199: 13 | I199: 13 | J199: 12 | K199: 17 | L199: 17
A200: 불광제2동 | B200: 100+ | C200: 총인구수 | D200: 명 | E200: 7 | F200: 8 | G200: 10 | H200: 11 | I200: 12 | J200: 14 | K200: 12 | L200: 13
A201: 불광제2동 | B201: 100+ | C201: 남자인구수 | D201: 명 | E201: 2 | F201: 2 | G201: 2 | H201: 3 | I201: 4 | J201: 5 | K201: 4 | L201: 4
... 859 more rows

Sheet 동별 출생아수(2016년)
A1: 동별 출생아수(2016년)
A3: 기간 | B3: 자치구 | C3: 동 | D3: 출생 | E3: 출생 | F3: 출생 | G3: 출생비율 | H3: 출생비율순위 | I3: 출생아순위
A4: 기간 | B4: 자치구 | C4: 동 | D4: 계 | E4: 남자 | F4: 여자
A5: 2016 | B5: 은평구 | C5: 소계 | D5: 3522 | E5: 1825 | F5: 1697 | G5: =SUM(G6:G21) -> 100
A6: 2016 | B6: 은평구 | C6: 녹번동 | D6: 275 | E6: 152 | F6: 123 | G6: =D6/D5*100 -> 7.8080636 | H6: =RANK(G6,G$6:G$21) -> 4 | I6: =RANK(D6,$D$6:$D$21) -> 4
A7: 2016 | B7: 은평구 | C7: 불광1동 | D7: 404 | E7: 202 | F7: 202 | G7: =D7/D5*100 -> 11.47075525 | H7: =RANK(G7,G$6:G$21) -> 2 | I7: =RANK(D7,$D$6:$D$21) -> 2
A8: 2016 | B8: 은평구 | C8: 갈현1동 | D8: 198 | E8: 115 | F8: 83 | G8: =D8/D5*100 -> 5.621805792 | H8: 10 | I8: 10
A9: 2016 | B9: 은평구 | C9: 갈현2동 | D9: 204 | E9: 116 | F9: 88 | G9: =D9/D5*100 -> 5.792163543 | H9: 8 | I9: 8
A10: 2016 | B10: 은평구 | C10: 구산동 | D10: 227 | E10: 120 | F10: 107 | G10: =D10/D5*100 -> 6.44520159 | H10: 6 | I10: 6
A11: 2016 | B11: 은평구 | C11: 대조동 | D11: 253 | E11: 139 | F11: 114 | G11: =D11/D5*100 -> 7.183418512 | H11: 5 | I11: 5
A12: 2016 | B12: 은평구 | C12: 응암1동 | D12: 219 | E12: 106 | F12: 113 | G12: =D12/D5*100 -> 6.218057922 | H12: 7 | I12: 7
A13: 2016 | B13: 은평구 | C13: 응암2동 | D13: 162 | E13: 77 | F13: 85 | G13: =D13/D5*100 -> 4.599659284 | H13: 12 | I13: 12
A14: 2016 | B14: 은평구 | C14: 신사1동 | D14: 199 | E14: 90 | F14: 109 | G14: =D14/D5*100 -> 5.650198751 | H14: 9 | I14: 9
A15: 2016 | B15: 은평구 | C15: 신사2동 | D15: 161 | E15: 84 | F15: 77 | G15: =D15/D5*100 -> 4.571266326 | H15: 13 | I15: 13
A16: 2016 | B16: 은평구 | C16: 증산동 | D16: 128 | E16: 69 | F16: 59 | G16: =D16/D5*100 -> 3.634298694 | H16: 14 | I16: 14
A17: 2016 | B17: 은평구 | C17: 수색동 | D17: 100 | E17: 55 | F17: 45 | G17: =D17/D5*100 -> 2.839295855 | H17: 15 | I17: 15
A18: 2016 | B18: 은평구 | C18: 진관동 | D18: 289 | E18: 147 | F18: 142 | G18: =D18/D5*100 -> 8.20556502 | H18: 3 | I18: 3
A19: 2016 | B19: 은평구 | C19: 불광2동 | D19: 179 | E19: 88 | F19: 91 | G19: =D19/D5*100 -> 5.08233958 | H19: 11 | I19: 11
A20: 2016 | B20: 은평구 | C20: 응암3동 | D20: 96 | E20: 54 | F20: 42 | G20: =D20/D5*100 -> 2.72572402 | H20: 16 | I20: 16
A21: 2016 | B21: 은평구 | C21: 역촌동 | D21: 428 | E21: 211 | F21: 217 | G21: =D21/D5*100 -> 12.15218626 | H21: 1 | I21: 1

Sheet 모의 연령별 출산율 및 합계출산율추이(2006~2016)
A1: 모의 연령별 출산율 및 합계출산율 추이(2006~2016년)
A3: 기간 | B3: 자치구 | C3: 합계출산율 | D3: 모(母)의 연령별 출산율(연령별 여성 천명당 출생아수) | E3: 모(母)의 연령별 출산율(연령별 여성 천명당 출생아수) | F3: 모(母)의 연령별 출산율(연령별 여성 천명당 출생아수) | G3: 모(母)의 연령별 출산율(연령별 여성 천명당 출생아수) | H3: 모(母)의 연령별 출산율(연령별 여성 천명당 출생아수) | I3: 모(母)의 연령별 출산율(연령별 여성 천명당 출생아수) | J3: 모(母)의 연령별 출산율(연령별 여성 천명당 출생아수)
A4: 기간 | B4: 자치구 | C4: 합계출산율 | D4: 15-19세 | E4: 20-24세 | F4: 25-29세 | G4: 30-34세 | H4: 35-39세 | I4: 40-44세 | J4: 45-49세
A5: 2006 | B5: 서울특별시 | C5: 0.969 | D5: 1.4 | E5: 9.1 | F5: 64.3 | G5: 90.8 | H5: 24.7 | I5: 2.7 | J5: 0.1
A6: 2006 | B6: 종로구 | C6: 0.796 | D6: 0.8 | E6: 6.3 | F6: 51.1 | G6: 72.5 | H6: 22.7 | I6: 2.6 | J6: 0.1
A7: 2006 | B7: 중구 | C7: 0.926 | D7: 1.2 | E7: 9.7 | F7: 56.7 | G7: 88.6 | H7: 24.3 | I7: 4.1 | J7: 0.2
A8: 2006 | B8: 용산구 | C8: 0.938 | D8: 1.1 | E8: 10.5 | F8: 61.4 | G8: 82.1 | H8: 28.4 | I8: 3.6 | J8: 0.3
A9: 2006 | B9: 성동구 | C9: 1.024 | D9: 2.2 | E9: 9.1 | F9: 69.6 | G9: 96.8 | H9: 24 | I9: 3.7 | J9: 0.1
A10: 2006 | B10: 광진구 | C10: 0.935 | D10: 1.4 | E10: 7.8 | F10: 59 | G10: 89.3 | H10: 26.1 | I10: 2.8 | J10: 0.1
A11: 2006 | B11: 동대문구 | C11: 0.932 | D11: 2.1 | E11: 9.4 | F11: 60.2 | G11: 85.1 | H11: 23.9 | I11: 4 | J11: -
A12: 2006 | B12: 중랑구 | C12: 0.968 | D12: 1.7 | E12: 13.8 | F12: 64.4 | G12: 85.6 | H12: 22.5 | I12: 2.8 | J12: 0.1
A13: 2006 | B13: 성북구 | C13: 1.002 | D13: 2.1 | E13: 10 | F13: 67.2 | G13: 92.6 | H13: 25 | I13: 2.9 | J13: 0.1
A14: 2006 | B14: 강북구 | C14: 0.877 | D14: 1.9 | E14: 12.2 | F14: 58 | G14: 76.1 | H14: 24.2 | I14: 2.6 | J14: 0.1
A15: 2006 | B15: 도봉구 | C15: 0.98 | D15: 1.5 | E15: 9.1 | F15: 70 | G15: 86.1 | H15: 23.5 | I15: 2.1 | J15: 0.2
A16: 2006 | B16: 노원구 | C16: 1.105 | D16: 1 | E16: 8.7 | F16: 82.3 | G16: 99.8 | H16: 24.6 | I16: 2.3 | J16: 0.1
A17: 2006 | B17: 은평구 | C17: 0.984 | D17: 2.4 | E17: 11.6 | F17: 69.8 | G17: 86 | H17: 23.4 | I17: 3 | J17: 0.1
A18: 2006 | B18: 서대문구 | C18: 0.91 | D18: 1.8 | E18: 8.4 | F18: 57.9 | G18: 85.1 | H18: 25.2 | I18: 2.6 | J18: 0.3
A19: 2006 | B19: 마포구 | C19: 0.957 | D19: 1.7 | E19: 7.9 | F19: 59.6 | G19: 93 | H19: 27.9 | I19: 3 | J19: 0.1
A20: 2006 | B20: 양천구 | C20: 1.009 | D20: 1.5 | E20: 8.9 | F20: 72.2 | G20: 92.3 | H20: 21.5 | I20: 1.7 | J20: 0.2
A21: 2006 | B21: 강서구 | C21: 1.055 | D21: 1.8 | E21: 9.4 | F21: 75.4 | G21: 95.8 | H21: 26.3 | I21: 2.5 | J21: 0.1
A22: 2006 | B22: 구로구 | C22: 1.146 | D22: 1.8 | E22: 11.1 | F22: 83.4 | G22: 103.9 | H22: 26.4 | I22: 3.8 | J22: 0.1
A23: 2006 | B23: 금천구 | C23: 1.043 | D23: 1.1 | E23: 15.8 | F23: 81 | G23: 85.8 | H23: 19.6 | I23: 3.8 | J23: 0.1
A24: 2006 | B24: 영등포구 | C24: 1.09 | D24: 1 | E24: 11 | F24: 74.4 | G24: 103.1 | H24: 28.1 | I24: 2.4 | J24: 0.2
A25: 2006 | B25: 동작구 | C25: 0.996 | D25: 0.6 | E25: 9.5 | F25: 62.9 | G25: 96.4 | H25: 27.9 | I25: 3 | J25: 0.2
A26: 2006 | B26: 관악구 | C26: 0.912 | D26: 1.7 | E26: 9.7 | F26: 53.8 | G26: 89.1 | H26: 26.2 | I26: 2.7 | J26: -
A27: 2006 | B27: 서초구 | C27: 0.883 | D27: 0.1 | E27: 3.9 | F27: 51.8 | G27: 92.1 | H27: 25.3 | I27: 3.3 | J27: 0.2
A28: 2006 | B28: 강남구 | C28: 0.778 | D28: 0.7 | E28: 4.4 | F28: 44.3 | G28: 78.7 | H28: 25 | I28: 2.1 | J28: 0.3
A29: 2006 | B29: 송파구 | C29: 0.947 | D29: 1.7 | E29: 7 | F29: 62.2 | G29: 91.6 | H29: 22.7 | I29: 2.3 | J29: 0.2
A30: 2006 | B30: 강동구 | C30: 0.986 | D30: 0.6 | E30: 8.9 | F30: 63.6 | G30: 96.3 | H30: 22.7 | I30: 2.1 | J30: 0.2
A31: 2007 | B31: 서울특별시 | C31: 1.056 | D31: 1.4 | E31: 9.8 | F31: 66.7 | G31: 99.9 | H31: 29.3 | I31: 3 | J31: 0.1
A32: 2007 | B32: 종로구 | C32: 0.863 | D32: 1.4 | E32: 8.7 | F32: 53.2 | G32: 76.2 | H32: 26 | I32: 3.7 | J32: 0.3
A33: 2007 | B33: 중구 | C33: 1.062 | D33: 0.9 | E33: 12.5 | F33: 64.6 | G33: 98.1 | H33: 31.1 | I33: 3.8 | J33: 0.2
A34: 2007 | B34: 용산구 | C34: 1.055 | D34: 1.4 | E34: 11.9 | F34: 63.9 | G34: 97.6 | H34: 33.2 | I34: 3 | J34: -
A35: 2007 | B35: 성동구 | C35: 1.141 | D35: 1.6 | E35: 11.5 | F35: 74.5 | G35: 106.5 | H35: 30.2 | I35: 3.5 | J35: 0.3
A36: 2007 | B36: 광진구 | C36: 0.981 | D36: 1.7 | E36: 9.6 | F36: 59.7 | G36: 94.9 | H36: 26.7 | I36: 2.3 | J36: 0.4
A37: 2007 | B37: 동대문구 | C37: 0.997 | D37: 2.2 | E37: 10.5 | F37: 59.9 | G37: 91.7 | H37: 29.3 | I37: 4 | J37: 0.1
A38: 2007 | B38: 중랑구 | C38: 1.038 | D38: 2.1 | E38: 13.3 | F38: 70 | G38: 90.2 | H38: 25.8 | I38: 3.2 | J38: 0.1
A39: 2007 | B39: 성북구 | C39: 1.107 | D39: 1.6 | E39: 9.5 | F39: 72.6 | G39: 104 | H39: 29.3 | I39: 3.1 | J39: 0.1
A40: 2007 | B40: 강북구 | C40: 1.021 | D40: 1.5 | E40: 14.5 | F40: 68.6 | G40: 91.8 | H40: 23.6 | I40: 3.5 | J40: 0.2
A41: 2007 | B41: 도봉구 | C41: 1.069 | D41: 1.4 | E41: 10.4 | F41: 72.4 | G41: 94.7 | H41: 27.7 | I41: 2.6 | J41: 0.1
A42: 2007 | B42: 노원구 | C42: 1.203 | D42: 1.1 | E42: 9.3 | F42: 84.7 | G42: 111.5 | H42: 28.8 | I42: 2.3 | J42: 0.1
A43: 2007 | B43: 은평구 | C43: 1.062 | D43: 1.2 | E43: 13.1 | F43: 71.3 | G43: 93.5 | H43: 29 | I43: 3.2 | J43: 0.2
A44: 2007 | B44: 서대문구 | C44: 1.001 | D44: 1.5 | E44: 10.4 | F44: 58.5 | G44: 94.1 | H44: 30.8 | I44: 3.4 | J44: 0.1
A45: 2007 | B45: 마포구 | C45: 1.07 | D45: 1.5 | E45: 8.4 | F45: 64.6 | G45: 100.9 | H45: 36 | I45: 4.2 | J45: 0.2
A46: 2007 | B46: 양천구 | C46: 1.113 | D46: 0.6 | E46: 10.5 | F46: 73.4 | G46: 105.6 | H46: 25.5 | I46: 2.7 | J46: -
A47: 2007 | B47: 강서구 | C47: 1.157 | D47: 1.8 | E47: 10.6 | F47: 78.6 | G47: 104.3 | H47: 32 | I47: 3.2 | J47: 0.1
A48: 2007 | B48: 구로구 | C48: 1.222 | D48: 1.9 | E48: 13.3 | F48: 79.9 | G48: 117.9 | H48: 29.6 | I48: 2.7 | J48: 0.1
A49: 2007 | B49: 금천구 | C49: 1.065 | D49: 2 | E49: 15.9 | F49: 70.9 | G49: 91.9 | H49: 27.5 | I49: 3.4 | J49: -
A50: 2007 | B50: 영등포구 | C50: 1.197 | D50: 1.3 | E50: 10.6 | F50: 80.7 | G50: 111.4 | H50: 33.2 | I50: 3.6 | J50: 0.1
A51: 2007 | B51: 동작구 | C51: 1.05 | D51: 0.9 | E51: 7.9 | F51: 62.3 | G51: 105.3 | H51: 32 | I51: 2.3 | J51: 0.1
A52: 2007 | B52: 관악구 | C52: 0.996 | D52: 2.4 | E52: 9.6 | F52: 58.7 | G52: 94.4 | H52: 30.6 | I52: 3.8 | J52: -
A53: 2007 | B53: 서초구 | C53: 0.951 | D53: 0.7 | E53: 4.3 | F53: 53.9 | G53: 100 | H53: 27.8 | I53: 3 | J53: 0.1
A54: 2007 | B54: 강남구 | C54: 0.854 | D54: 0.8 | E54: 4.8 | F54: 46 | G54: 87 | H54: 28.9 | I54: 2.5 | J54: 0.1
A55: 2007 | B55: 송파구 | C55: 1.031 | D55: 0.9 | E55: 7 | F55: 63 | G55: 102.3 | H55: 28.6 | I55: 2.5 | J55: 0.2
A56: 2007 | B56: 강동구 | C56: 1.063 | D56: 1.1 | E56: 8.7 | F56: 66.8 | G56: 101.6 | H56: 29.3 | I56: 2.6 | J56: 0.2
A57: 2008 | B57: 서울특별시 | C57: 1.01 | D57: 1.1 | E57: 9.1 | F57: 58.5 | G57: 99.5 | H57: 30.2 | I57: 3.4 | J57: 0.1
A58: 2008 | B58: 종로구 | C58: 0.857 | D58: 0.2 | E58: 7.8 | F58: 42.8 | G58: 84.8 | H58: 28.3 | I58: 5.1 | J58: 0.1
A59: 2008 | B59: 중구 | C59: 0.978 | D59: 1.2 | E59: 8.1 | F59: 53.9 | G59: 94.1 | H59: 33 | I59: 4.9 | J59: 0.6
A60: 2008 | B60: 용산구 | C60: 1.017 | D60: 1.7 | E60: 9.5 | F60: 55.4 | G60: 97.3 | H60: 36 | I60: 4.1 | J60: -
A61: 2008 | B61: 성동구 | C61: 1.091 | D61: 1.9 | E61: 10.9 | F61: 62 | G61: 107.7 | H61: 32.1 | I61: 3.5 | J61: 0.1
A62: 2008 | B62: 광진구 | C62: 0.939 | D62: 2.2 | E62: 8.3 | F62: 52 | G62: 92.3 | H62: 30.3 | I62: 2.7 | J62: 0.2
A63: 2008 | B63: 동대문구 | C63: 0.993 | D63: 1.8 | E63: 8.6 | F63: 55 | G63: 96.4 | H63: 32.3 | I63: 3.4 | J63: 0.2
A64: 2008 | B64: 중랑구 | C64: 1.01 | D64: 1.9 | E64: 12.4 | F64: 60.9 | G64: 93.8 | H64: 28 | I64: 3.6 | J64: 0.2
A65: 2008 | B65: 성북구 | C65: 1.042 | D65: 2.2 | E65: 8.1 | F65: 62.2 | G65: 100.3 | H65: 30.7 | I65: 3.8 | J65: 0.2
A66: 2008 | B66: 강북구 | C66: 0.971 | D66: 1.9 | E66: 12.7 | F66: 58.9 | G66: 86.6 | H66: 29.8 | I66: 3.8 | J66: 0.1
A67: 2008 | B67: 도봉구 | C67: 1.015 | D67: 2.1 | E67: 9.6 | F67: 63.1 | G67: 95.7 | H67: 26.7 | I67: 3 | J67: 0.1
A68: 2008 | B68: 노원구 | C68: 1.134 | D68: 1.3 | E68: 9.1 | F68: 71.5 | G68: 112.9 | H68: 27.3 | I68: 2.5 | J68: 0.1
A69: 2008 | B69: 은평구 | C69: 0.966 | D69: 1.2 | E69: 12.1 | F69: 59.7 | G69: 88.4 | H69: 28.4 | I69: 3.2 | J69: 0.2
A70: 2008 | B70: 서대문구 | C70: 0.958 | D70: 1.1 | E70: 9 | F70: 49.7 | G70: 93.3 | H70: 32.5 | I70: 4.3 | J70: 0.1
A71: 2008 | B71: 마포구 | C71: 0.997 | D71: 0.9 | E71: 9.1 | F71: 56 | G71: 98.6 | H71: 31.8 | I71: 4.3 | J71: 0.1
A72: 2008 | B72: 양천구 | C72: 1.043 | D72: 0.7 | E72: 10.3 | F72: 66.3 | G72: 99.7 | H72: 26.4 | I72: 2.7 | J72: 0.1
A73: 2008 | B73: 강서구 | C73: 1.123 | D73: 0.8 | E73: 11.9 | F73: 68.7 | G73: 107.8 | H73: 33 | I73: 3.2 | J73: 0.2
A74: 2008 | B74: 구로구 | C74: 1.202 | D74: 1 | E74: 13.2 | F74: 76.6 | G74: 117.2 | H74: 32.2 | I74: 3 | J74: 0.1
A75: 2008 | B75: 금천구 | C75: 1.01 | D75: 1.1 | E75: 13.8 | F75: 68.4 | G75: 89 | H75: 24.6 | I75: 4.2 | J75: 0.2
A76: 2008 | B76: 영등포구 | C76: 1.116 | D76: 0.8 | E76: 9.8 | F76: 65.6 | G76: 115 | H76: 30.4 | I76: 3.4 | J76: 0.3
A77: 2008 | B77: 동작구 | C77: 1.008 | D77: 0.5 | E77: 7.5 | F77: 55.3 | G77: 103.6 | H77: 31.6 | I77: 3.8 | J77: 0.2
A78: 2008 | B78: 관악구 | C78: 0.942 | D78: 1.1 | E78: 9 | F78: 51.3 | G78: 93.1 | H78: 30.5 | I78: 3.9 | J78: 0.2
A79: 2008 | B79: 서초구 | C79: 0.972 | D79: 0.2 | E79: 4.7 | F79: 52.4 | G79: 101.4 | H79: 31.5 | I79: 4.3 | J79: 0.2
A80: 2008 | B80: 강남구 | C80: 0.823 | D80: 0.2 | E80: 3.9 | F80: 41.2 | G80: 87.7 | H80: 28.7 | I80: 3 | J80: -
A81: 2008 | B81: 송파구 | C81: 0.996 | D81: 0.6 | E81: 6.5 | F81: 57.1 | G81: 99.5 | H81: 32.1 | I81: 3.5 | J81: 0.1
A82: 2008 | B82: 강동구 | C82: 1.008 | D82: 0.5 | E82: 7.5 | F82: 59 | G82: 103.3 | H82: 28.4 | I82: 2.7 | J82: -
A83: 2009 | B83: 서울특별시 | C83: 0.962 | D83: 1 | E83: 8.2 | F83: 53.9 | G83: 95.9 | H83: 31.2 | I83: 3.6 | J83: 0.2
A84: 2009 | B84: 종로구 | C84: 0.796 | D84: - | E84: 7.7 | F84: 39.2 | G84: 79.5 | H84: 28.1 | I84: 4.1 | J84: -
A85: 2009 | B85: 중구 | C85: 0.921 | D85: 2.4 | E85: 8.6 | F85: 51.9 | G85: 89.2 | H85: 30.1 | I85: 3.6 | J85: 0.2
A86: 2009 | B86: 용산구 | C86: 0.939 | D86: 1.7 | E86: 7.6 | F86: 54.1 | G86: 89.6 | H86: 32.3 | I86: 4.6 | J86: -
A87: 2009 | B87: 성동구 | C87: 0.971 | D87: 2 | E87: 7.6 | F87: 52.7 | G87: 97.1 | H87: 32.3 | I87: 4.1 | J87: 0.2
A88: 2009 | B88: 광진구 | C88: 0.891 | D88: 2 | E88: 7.7 | F88: 48.6 | G88: 90.6 | H88: 27.4 | I88: 2.6 | J88: 0.4
A89: 2009 | B89: 동대문구 | C89: 0.917 | D89: 1.5 | E89: 8.8 | F89: 49.2 | G89: 89.1 | H89: 29.9 | I89: 4.8 | J89: 0.3
A90: 2009 | B90: 중랑구 | C90: 0.963 | D90: 2.4 | E90: 10.1 | F90: 57.9 | G90: 90.6 | H90: 28.9 | I90: 3.2 | J90: -
A91: 2009 | B91: 성북구 | C91: 1.001 | D91: 1.5 | E91: 8.4 | F91: 57.5 | G91: 96.4 | H91: 33.7 | I91: 3.6 | J91: -
A92: 2009 | B92: 강북구 | C92: 0.971 | D92: 1.7 | E92: 12.1 | F92: 56.3 | G92: 91.5 | H92: 29.9 | I92: 3.5 | J92: 0.1
A93: 2009 | B93: 도봉구 | C93: 1.032 | D93: 1.3 | E93: 9.6 | F93: 63.1 | G93: 100.1 | H93: 28.9 | I93: 3.2 | J93: 0.1
A94: 2009 | B94: 노원구 | C94: 1.046 | D94: 1 | E94: 7.1 | F94: 65.5 | G94: 104.8 | H94: 27.9 | I94: 3.2 | J94: 0.1
A95: 2009 | B95: 은평구 | C95: 0.958 | D95: 0.9 | E95: 11 | F95: 57.3 | G95: 88.3 | H95: 31 | I95: 4.5 | J95: 0.2
A96: 2009 | B96: 서대문구 | C96: 0.896 | D96: 1.2 | E96: 8.5 | F96: 45.9 | G96: 88.4 | H96: 31.3 | I96: 4.1 | J96: 0.2
A97: 2009 | B97: 마포구 | C97: 0.917 | D97: 0.4 | E97: 8.1 | F97: 48.1 | G97: 90.8 | H97: 34.2 | I97: 4 | J97: 0.5
A98: 2009 | B98: 양천구 | C98: 0.947 | D98: 0.5 | E98: 7.3 | F98: 55.5 | G98: 94.6 | H98: 27.9 | I98: 2.4 | J98: 0.2
A99: 2009 | B99: 강서구 | C99: 1.067 | D99: 0.7 | E99: 10.7 | F99: 64.1 | G99: 103.9 | H99: 33.2 | I99: 3.6 | J99: -
A100: 2009 | B100: 구로구 | C100: 1.124 | D100: 0.6 | E100: 11.5 | F100: 72.5 | G100: 109.3 | H100: 32.6 | I100: 3.4 | J100: 0.1
A101: 2009 | B101: 금천구 | C101: 0.974 | D101: 1.4 | E101: 13.1 | F101: 58.1 | G101: 91.2 | H101: 27.6 | I101: 3.4 | J101: 0.1
A102: 2009 | B102: 영등포구 | C102: 1.056 | D102: 0.7 | E102: 9.4 | F102: 62.5 | G102: 102.1 | H102: 35.4 | I102: 4.1 | J102: 0.2
A103: 2009 | B103: 동작구 | C103: 0.975 | D103: 1 | E103: 6.1 | F103: 49.3 | G103: 102.3 | H103: 33.1 | I103: 5.1 | J103: 0.1
A104: 2009 | B104: 관악구 | C104: 0.879 | D104: 1 | E104: 8.8 | F104: 42 | G104: 87.1 | H104: 34 | I104: 4.4 | J104: 0.3
A105: 2009 | B105: 서초구 | C105: 0.929 | D105: 0.4 | E105: 3.5 | F105: 46.1 | G105: 101.9 | H105: 31.6 | I105: 3.7 | J105: 0.2
A106: 2009 | B106: 강남구 | C106: 0.785 | D106: 0.1 | E106: 3.4 | F106: 37.8 | G106: 82.9 | H106: 30.3 | I106: 3.6 | J106: 0.2
A107: 2009 | B107: 송파구 | C107: 1 | D107: 0.7 | E107: 6.4 | F107: 56.7 | G107: 104.3 | H107: 31.2 | I107: 2.9 | J107: 0.2
A108: 2009 | B108: 강동구 | C108: 1.028 | D108: 0.6 | E108: 8.3 | F108: 59 | G108: 103.2 | H108: 32.6 | I108: 3.5 | J108: -
A109: 2010 | B109: 서울특별시 | C109: 1.015 | D109: 1.1 | E109: 8.1 | F109: 52 | G109: 103.3 | H109: 36 | I109: 4.6 | J109: 0.2
A110: 2010 | B110: 종로구 | C110: 0.837 | D110: 1 | E110: 5.8 | F110: 38 | G110: 86.1 | H110: 30.7 | I110: 5.2 | J110: 0.1
A111: 2010 | B111: 중구 | C111: 1.055 | D111: 2.3 | E111: 7.7 | F111: 49.4 | G111: 104.9 | H111: 42.8 | I111: 5.7 | J111: 0.2
A112: 2010 | B112: 용산구 | C112: 1.017 | D112: 0.8 | E112: 9.5 | F112: 55.5 | G112: 95.3 | H112: 39.9 | I112: 6.6 | J112: 0.1
A113: 2010 | B113: 성동구 | C113: 1.029 | D113: 0.8 | E113: 7.8 | F113: 52.9 | G113: 107.3 | H113: 34.9 | I113: 4.4 | J113: 0.4
A114: 2010 | B114: 광진구 | C114: 0.935 | D114: 1.4 | E114: 6.4 | F114: 44.6 | G114: 96 | H114: 35.3 | I114: 5.1 | J114: 0.2
A115: 2010 | B115: 동대문구 | C115: 0.941 | D115: 1 | E115: 7.4 | F115: 44.9 | G115: 95.9 | H115: 35.7 | I115: 4.3 | J115: 0.2
A116: 2010 | B116: 중랑구 | C116: 1.01 | D116: 1.4 | E116: 11.4 | F116: 52 | G116: 97.7 | H116: 36.2 | I116: 4.2 | J116: 0.1
A117: 2010 | B117: 성북구 | C117: 1.048 | D117: 1.3 | E117: 7.7 | F117: 53.1 | G117: 105.6 | H117: 38.7 | I117: 4.8 | J117: 0.2
A118: 2010 | B118: 강북구 | C118: 0.996 | D118: 1.2 | E118: 13 | F118: 55.4 | G118: 91.9 | H118: 35.2 | I118: 4.2 | J118: 0.3
A119: 2010 | B119: 도봉구 | C119: 1.104 | D119: 1.1 | E119: 10.6 | F119: 62.6 | G119: 109.1 | H119: 34.6 | I119: 3.9 | J119: 0.1
A120: 2010 | B120: 노원구 | C120: 1.1 | D120: 0.8 | E120: 7.3 | F120: 60.5 | G120: 115.6 | H120: 32.9 | I120: 4 | J120: -
A121: 2010 | B121: 은평구 | C121: 1.02 | D121: 1.2 | E121: 11.9 | F121: 57.5 | G121: 98.4 | H121: 33.5 | I121: 4 | J121: 0.1
A122: 2010 | B122: 서대문구 | C122: 0.971 | D122: 1.6 | E122: 8.1 | F122: 46.2 | G122: 98.6 | H122: 34.4 | I122: 6 | J122: 0.3
A123: 2010 | B123: 마포구 | C123: 0.955 | D123: 1.1 | E123: 7.3 | F123: 45.3 | G123: 97.3 | H123: 37.2 | I123: 5.4 | J123: 0.3
A124: 2010 | B124: 양천구 | C124: 0.974 | D124: 0.5 | E124: 7.2 | F124: 51.4 | G124: 105.1 | H124: 27.5 | I124: 3.1 | J124: 0.1
A125: 2010 | B125: 강서구 | C125: 1.085 | D125: 1.2 | E125: 9.8 | F125: 60.1 | G125: 107.7 | H125: 37.2 | I125: 4.4 | J125: 0.2
A126: 2010 | B126: 구로구 | C126: 1.197 | D126: 2.1 | E126: 10.3 | F126: 64.8 | G126: 120.9 | H126: 41.5 | I126: 4.9 | J126: 0.2
A127: 2010 | B127: 금천구 | C127: 1.011 | D127: 2.1 | E127: 11.2 | F127: 55.5 | G127: 97.1 | H127: 31.6 | I127: 4.6 | J127: 0.5
A128: 2010 | B128: 영등포구 | C128: 1.128 | D128: 1.5 | E128: 7.1 | F128: 61.4 | G128: 114.2 | H128: 40.1 | I128: 4.8 | J128: 0.1
A129: 2010 | B129: 동작구 | C129: 0.989 | D129: 0.8 | E129: 6.1 | F129: 47.6 | G129: 102.3 | H129: 39.1 | I129: 4.4 | J129: 0.3
A130: 2010 | B130: 관악구 | C130: 0.881 | D130: 1.9 | E130: 9.2 | F130: 39.2 | G130: 87.2 | H130: 35 | I130: 5.6 | J130: 0.3
A131: 2010 | B131: 서초구 | C131: 1.068 | D131: 0.4 | E131: 4.7 | F131: 49.9 | G131: 110.9 | H131: 43.7 | I131: 6.3 | J131: 0.2
A132: 2010 | B132: 강남구 | C132: 0.862 | D132: 0.6 | E132: 3.7 | F132: 39.3 | G132: 90.9 | H132: 35.1 | I132: 4 | J132: 0.2
A133: 2010 | B133: 송파구 | C133: 1.058 | D133: 0.8 | E133: 7 | F133: 55.7 | G133: 111.7 | H133: 35.4 | I133: 4.1 | J133: 0.1
A134: 2010 | B134: 강동구 | C134: 1.096 | D134: 1.3 | E134: 8.8 | F134: 61.5 | G134: 112.3 | H134: 34.6 | I134: 4.1 | J134: 0.2
A135: 2011 | B135: 서울특별시 | C135: 1.014 | D135: 1 | E135: 8.3 | F135: 50.2 | G135: 102.1 | H135: 38.5 | I135: 4.9 | J135: 0.2
A136: 2011 | B136: 종로구 | C136: 0.86 | D136: 0.6 | E136: 7.9 | F136: 39.5 | G136: 84.6 | H136: 34 | I136: 5.4 | J136: -
A137: 2011 | B137: 중구 | C137: 1.017 | D137: 0.6 | E137: 10 | F137: 47.2 | G137: 95.7 | H137: 42.8 | I137: 8.6 | J137: 0.8
A138: 2011 | B138: 용산구 | C138: 1.039 | D138: 0.3 | E138: 8.9 | F138: 46 | G138: 102.2 | H138: 44.4 | I138: 7.6 | J138: 0.2
A139: 2011 | B139: 성동구 | C139: 1.026 | D139: 1.3 | E139: 5.9 | F139: 48.4 | G139: 106.8 | H139: 39.9 | I139: 5.3 | J139: 0.2
A140: 2011 | B140: 광진구 | C140: 0.9 | D140: 0.9 | E140: 6.5 | F140: 40.9 | G140: 94.5 | H140: 34.4 | I140: 4.8 | J140: 0.1
A141: 2011 | B141: 동대문구 | C141: 0.975 | D141: 1 | E141: 8.8 | F141: 47 | G141: 95.4 | H141: 38.3 | I141: 6 | J141: 0.3
A142: 2011 | B142: 중랑구 | C142: 0.996 | D142: 1.2 | E142: 12.7 | F142: 50.3 | G142: 95.6 | H142: 36.7 | I142: 4.5 | J142: -
A143: 2011 | B143: 성북구 | C143: 1.062 | D143: 0.5 | E143: 7.4 | F143: 52.2 | G143: 109.8 | H143: 38.4 | I143: 5.3 | J143: 0.3
A144: 2011 | B144: 강북구 | C144: 1.018 | D144: 1.6 | E144: 13.9 | F144: 55.5 | G144: 91.2 | H144: 37.1 | I144: 5.9 | J144: 0.1
A145: 2011 | B145: 도봉구 | C145: 1.079 | D145: 0.9 | E145: 11 | F145: 59.1 | G145: 102.8 | H145: 38.6 | I145: 4.2 | J145: 0.2
A146: 2011 | B146: 노원구 | C146: 1.083 | D146: 0.7 | E146: 8 | F146: 58 | G146: 112.5 | H146: 34.8 | I146: 3.6 | J146: 0.2
A147: 2011 | B147: 은평구 | C147: 1.064 | D147: 1.3 | E147: 10.7 | F147: 57.5 | G147: 100.2 | H147: 40.1 | I147: 4.7 | J147: 0.2
A148: 2011 | B148: 서대문구 | C148: 0.894 | D148: 2.1 | E148: 6.6 | F148: 43 | G148: 88.7 | H148: 34.1 | I148: 4.9 | J148: 0.2
A149: 2011 | B149: 마포구 | C149: 0.977 | D149: 0.9 | E149: 7.6 | F149: 46.8 | G149: 95.9 | H149: 42.8 | I149: 4.8 | J149: 0.1
A150: 2011 | B150: 양천구 | C150: 1.002 | D150: 0.7 | E150: 7.6 | F150: 52.1 | G150: 103.1 | H150: 32.6 | I150: 4.2 | J150: 0.2
A151: 2011 | B151: 강서구 | C151: 1.113 | D151: 0.4 | E151: 10.6 | F151: 61.5 | G151: 111.5 | H151: 38 | I151: 4.5 | J151: 0.1
A152: 2011 | B152: 구로구 | C152: 1.177 | D152: 1.8 | E152: 9.8 | F152: 65.3 | G152: 114.9 | H152: 43.2 | I152: 5.2 | J152: 0.3
A153: 2011 | B153: 금천구 | C153: 1.001 | D153: 2.3 | E153: 12.2 | F153: 51.1 | G153: 95 | H153: 37 | I153: 4.2 | J153: 0.3
A154: 2011 | B154: 영등포구 | C154: 1.103 | D154: 1 | E154: 8.4 | F154: 56.8 | G154: 115.8 | H154: 38.1 | I154: 4.7 | J154: 0.2
A155: 2011 | B155: 동작구 | C155: 1.001 | D155: 0.8 | E155: 6.3 | F155: 47.9 | G155: 99 | H155: 42.8 | I155: 6.1 | J155: 0.1
A156: 2011 | B156: 관악구 | C156: 0.897 | D156: 1.3 | E156: 9 | F156: 36.7 | G156: 90.2 | H156: 38.1 | I156: 6.1 | J156: 0.2
A157: 2011 | B157: 서초구 | C157: 1.025 | D157: 0.6 | E157: 4.4 | F157: 47.8 | G157: 108.7 | H157: 41.4 | I157: 4.5 | J157: 0.3
A158: 2011 | B158: 강남구 | C158: 0.855 | D158: 0.1 | E158: 3.9 | F158: 37.8 | G158: 87.9 | H158: 37.8 | I158: 5 | J158: 0.2
A159: 2011 | B159: 송파구 | C159: 1.042 | D159: 0.6 | E159: 6.8 | F159: 51.1 | G159: 109.3 | H159: 38.7 | I159: 4.8 | J159: 0.1
A160: 2011 | B160: 강동구 | C160: 1.104 | D160: 1.9 | E160: 8.5 | F160: 57.3 | G160: 111.6 | H160: 40 | I160: 4.2 | J160: 0.3
A161: 2012 | B161: 서울특별시 | C161: 1.059 | D161: 1.2 | E161: 7.9 | F161: 49.2 | G161: 108 | H161: 42 | I161: 5.4 | J161: 0.2
A162: 2012 | B162: 종로구 | C162: 0.89 | D162: 0.2 | E162: 5.9 | F162: 33.6 | G162: 92.6 | H162: 38.1 | I162: 5.8 | J162: 0.2
A163: 2012 | B163: 중구 | C163: 1.121 | D163: 2.7 | E163: 8.4 | F163: 55.3 | G163: 106.5 | H163: 46.3 | I163: 7.5 | J163: -
A164: 2012 | B164: 용산구 | C164: 1.098 | D164: 0.8 | E164: 6.7 | F164: 49.2 | G164: 109.6 | H164: 50.1 | I164: 6.6 | J164: -
A165: 2012 | B165: 성동구 | C165: 1.077 | D165: 1.6 | E165: 8.1 | F165: 49.6 | G165: 108.4 | H165: 45 | I165: 5 | J165: 0.1
A166: 2012 | B166: 광진구 | C166: 0.957 | D166: 0.9 | E166: 6.7 | F166: 41.3 | G166: 98.1 | H166: 41.8 | I166: 4.1 | J166: 0.1
A167: 2012 | B167: 동대문구 | C167: 0.998 | D167: 1.2 | E167: 7.2 | F167: 46.2 | G167: 98.5 | H167: 42.3 | I167: 5.6 | J167: 0.1
A168: 2012 | B168: 중랑구 | C168: 1.082 | D168: 2 | E168: 10.8 | F168: 52.6 | G168: 106.8 | H168: 40.2 | I168: 5.1 | J168: 0.2
A169: 2012 | B169: 성북구 | C169: 1.044 | D169: 1.4 | E169: 7.9 | F169: 48.8 | G169: 106.8 | H169: 39.7 | I169: 5.3 | J169: 0.2
A170: 2012 | B170: 강북구 | C170: 1.051 | D170: 2.2 | E170: 12 | F170: 54.4 | G170: 100.9 | H170: 37.8 | I170: 5.2 | J170: 0.2
A171: 2012 | B171: 도봉구 | C171: 1.137 | D171: 1.3 | E171: 9.8 | F171: 54.8 | G171: 114.5 | H171: 43.2 | I171: 3.5 | J171: -
A172: 2012 | B172: 노원구 | C172: 1.162 | D172: 0.4 | E172: 7.2 | F172: 56 | G172: 123.8 | H172: 40.8 | I172: 5.1 | J172: 0.1
A173: 2012 | B173: 은평구 | C173: 1.139 | D173: 1.8 | E173: 12.1 | F173: 55.7 | G173: 110.4 | H173: 43.7 | I173: 6.4 | J173: 0.2
A174: 2012 | B174: 서대문구 | C174: 0.967 | D174: 1.6 | E174: 6.8 | F174: 41.4 | G174: 97.6 | H174: 40 | I174: 5.6 | J174: 0.4
A175: 2012 | B175: 마포구 | C175: 0.991 | D175: 2 | E175: 7.4 | F175: 43.8 | G175: 98.8 | H175: 42.4 | I175: 6.6 | J175: 0.1
A176: 2012 | B176: 양천구 | C176: 1.055 | D176: 0.8 | E176: 6.1 | F176: 50.2 | G176: 115.5 | H176: 34.3 | I176: 4.2 | J176: -
A177: 2012 | B177: 강서구 | C177: 1.151 | D177: 0.5 | E177: 9.3 | F177: 60.5 | G177: 116 | H177: 42.3 | I177: 5.1 | J177: -
A178: 2012 | B178: 구로구 | C178: 1.258 | D178: 1.6 | E178: 11.2 | F178: 63.7 | G178: 125.4 | H178: 48.2 | I178: 6.3 | J178: 0.1
A179: 2012 | B179: 금천구 | C179: 1.104 | D179: 1.3 | E179: 13.1 | F179: 54 | G179: 107.3 | H179: 40.8 | I179: 5 | J179: 0.1
A180: 2012 | B180: 영등포구 | C180: 1.142 | D180: 1.6 | E180: 7.5 | F180: 53.8 | G180: 119.2 | H180: 44.7 | I180: 5.2 | J180: 0.3
A181: 2012 | B181: 동작구 | C181: 1.017 | D181: 0.8 | E181: 7.3 | F181: 44 | G181: 105.1 | H181: 42.2 | I181: 7.1 | J181: 0.1
A182: 2012 | B182: 관악구 | C182: 0.891 | D182: 1.7 | E182: 9.8 | F182: 36.1 | G182: 87.1 | H182: 38.6 | I182: 6.3 | J182: 0.4
A183: 2012 | B183: 서초구 | C183: 1.095 | D183: 0.7 | E183: 3.7 | F183: 48.2 | G183: 116.2 | H183: 46.4 | I183: 6.6 | J183: 0.4
A184: 2012 | B184: 강남구 | C184: 0.886 | D184: 0.9 | E184: 3.1 | F184: 37 | G184: 91.8 | H184: 41.4 | I184: 4.9 | J184: 0.4
A185: 2012 | B185: 송파구 | C185: 1.099 | D185: 0.8 | E185: 6.2 | F185: 52 | G185: 115.7 | H185: 43 | I185: 5.2 | J185: 0.1
A186: 2012 | B186: 강동구 | C186: 1.101 | D186: 0.9 | E186: 8.6 | F186: 53.7 | G186: 113.7 | H186: 40.5 | I186: 5.2 | J186: 0.2
A187: 2013 | B187: 서울특별시 | C187: 0.968 | D187: 1.2 | E187: 7.1 | F187: 41.6 | G187: 96.9 | H187: 42.4 | I187: 5 | J187: 0.1
A188: 2013 | B188: 종로구 | C188: 0.729 | D188: - | E188: 4.9 | F188: 30.3 | G188: 72.2 | H188: 32.1 | I188: 5.5 | J188: 0.2
A189: 2013 | B189: 중구 | C189: 0.955 | D189: 1.6 | E189: 7 | F189: 47.7 | G189: 89.3 | H189: 39.9 | I189: 5.9 | J189: -
A190: 2013 | B190: 용산구 | C190: 1.008 | D190: 0.9 | E190: 5.6 | F190: 42.2 | G190: 100.5 | H190: 46.4 | I190: 7.1 | J190: 0.2
A191: 2013 | B191: 성동구 | C191: 1.079 | D191: 0.8 | E191: 6.1 | F191: 45.7 | G191: 112 | H191: 46.7 | I191: 5.4 | J191: -
A192: 2013 | B192: 광진구 | C192: 0.877 | D192: 0.8 | E192: 7.5 | F192: 36.2 | G192: 86 | H192: 41.3 | I192: 4.2 | J192: -
A193: 2013 | B193: 동대문구 | C193: 0.909 | D193: 1.3 | E193: 7.5 | F193: 36.6 | G193: 91.3 | H193: 41.6 | I193: 4.2 | J193: -
A194: 2013 | B194: 중랑구 | C194: 0.991 | D194: 2.1 | E194: 10.9 | F194: 41.8 | G194: 96.4 | H194: 42.4 | I194: 4.7 | J194: 0.2
A195: 2013 | B195: 성북구 | C195: 0.983 | D195: 1.8 | E195: 6.9 | F195: 42.4 | G195: 96.8 | H195: 42.9 | I195: 5.6 | J195: 0.1
A196: 2013 | B196: 강북구 | C196: 0.963 | D196: 1.8 | E196: 11 | F196: 43.9 | G196: 91.9 | H196: 38.2 | I196: 6.4 | J196: -
A197: 2013 | B197: 도봉구 | C197: 0.956 | D197: 1.1 | E197: 8.4 | F197: 43.7 | G197: 97.5 | H197: 36.7 | I197: 3.5 | J197: 0.1
A198: 2013 | B198: 노원구 | C198: 1.057 | D198: 0.7 | E198: 6.5 | F198: 47.8 | G198: 111.1 | H198: 41.2 | I198: 3.6 | J198: 0.1
A199: 2013 | B199: 은평구 | C199: 1.024 | D199: 0.9 | E199: 11.7 | F199: 47.9 | G199: 96.5 | H199: 43.6 | I199: 5.1 | J199: 0.1
A200: 2013 | B200: 서대문구 | C200: 0.938 | D200: 3.1 | E200: 5.2 | F200: 36 | G200: 93.4 | H200: 43.2 | I200: 6.1 | J200: -
A201: 2013 | B201: 마포구 | C201: 0.892 | D201: 1.6 | E201: 5.2 | F201: 38.1 | G201: 88.2 | H201: 40 | I201: 6.4 | J201: 0.1
... 89 more rows

Sheet 서울시전체 합계출산율(2016년)
A1: 서울시 전체 합계출산율(2016년)
A3: 2016 | B3: 서울특별시 | C3: 0.94 | D3: 순위
A4: 2016 | B4: 종로구 | C4: 0.784 | D4: =RANK(C4,$C$4:$C$28) -> 24
A5: 2016 | B5: 중구 | C5: 0.974 | D5: =RANK(C5,$C$4:$C$28) -> 8
A6: 2016 | B6: 용산구 | C6: 0.907 | D6: 19
A7: 2016 | B7: 성동구 | C7: 1.013 | D7: 4
A8: 2016 | B8: 광진구 | C8: 0.867 | D8: 22
A9: 2016 | B9: 동대문구 | C9: 0.889 | D9: 20
A10: 2016 | B10: 중랑구 | C10: 0.995 | D10: 7
A11: 2016 | B11: 성북구 | C11: 0.909 | D11: 18
A12: 2016 | B12: 강북구 | C12: 0.878 | D12: 21
A13: 2016 | B13: 도봉구 | C13: 0.947 | D13: 10
A14: 2016 | B14: 노원구 | C14: 1.068 | D14: 2
A15: 2016 | B15: 은평구 | C15: 0.943 | D15: 13
A16: 2016 | B16: 서대문구 | C16: 0.934 | D16: 15
A17: 2016 | B17: 마포구 | C17: 0.945 | D17: 11
A18: 2016 | B18: 양천구 | C18: 1.008 | D18: 6
A19: 2016 | B19: 강서구 | C19: 1.059 | D19: 3
A20: 2016 | B20: 구로구 | C20: 1.07 | D20: 1
A21: 2016 | B21: 금천구 | C21: 0.944 | D21: 12
A22: 2016 | B22: 영등포구 | C22: 1.011 | D22: 5
A23: 2016 | B23: 동작구 | C23: 0.912 | D23: 17
A24: 2016 | B24: 관악구 | C24: 0.777 | D24: 25
A25: 2016 | B25: 서초구 | C25: 0.928 | D25: 16
A26: 2016 | B26: 강남구 | C26: 0.802 | D26: 23
A27: 2016 | B27: 송파구 | C27: 0.958 | D27: 9
A28: 2016 | B28: 강동구 | C28: 0.938 | D28: 14

Sheet 성별연령별혼인상태별 가구주현황(2015년)
A1: 성별 연령별 혼인상태별 세대구성별 가구주 현황(2015년)
A3: 행정구역별 | B3: 성별 | C3: 가구주의 연령별 | D3: 가구주의 혼인상태 | E3: 2015 | F3: 2015 | G3: 2015 | H3: 2015 | I3: 2015 | J3: 2015 | K3: 2015 | L3: 2015 | M3: 2015 | N3: 2015 | O3: 2015 | P3: 2015 | Q3: 2015 | R3: 2015 | S3: 2015 | T3: 2015 | U3: 2015 | V3: 2015 | W3: 2015 | X3: 2015 | Y3: 2015 | Z3: 2015 | AA3: 2015 | AB3: 2015 | AC3: 2015 | AD3: 2015
A4: 행정구역별 | B4: 성별 | C4: 가구주의 연령별 | D4: 가구주의 혼인상태 | E4: 일반가구 | F4: 1세대가구-계 | G4: 1세대가구-부부 | H4: 1세대가구-부부+미혼형제자매 | I4: 1세대가구-부부+기타친인척 | J4: 1세대가구-가구주+미혼형제자매 | K4: 1세대가구-가구주+기타친인척 | L4: 1세대가구-기타 | M4: 2세대가구-계 | N4: 2세대가구-부부+미혼자녀 | O4: 2세대가구-부+미혼자녀 | P4: 2세대가구-모+미혼자녀 | Q4: 2세대가구-부부+양친 | R4: 2세대가구-부부+한부모 | S4: 2세대가구-부부+미혼자녀+부부미혼형제자매 | T4: 2세대가구-조부모+미혼손자녀 | U4: 2세대가구-조부 또는 조모+미혼손자녀 | V4: 2세대가구-기타 | W4: 3세대가구-계 | X4: 3세대가구-부부+미혼자녀+양친 | Y4: 3세대가구-부부+미혼자녀+부친 | Z4: 3세대가구-부부+미혼자녀+모친 | AA4: 3세대가구-기타 | AB4: 4세대이상 가구 | AC4: 1인가구 | AD4: 비친족가구
A5: 서울특별시 | B5: 계 | C5: 합계 | D5: 합계 | E5: 3785433 | F5: 647733 | G5: 548544 | H5: 2510 | I5: 4881 | J5: 64906 | K5: 16624 | L5: 10268 | M5: 1811024 | N5: 1286119 | O5: 69005 | P5: 321908 | Q5: 4958 | R5: 17157 | S5: 8180 | T5: 6915 | U5: 10594 | V5: 86188 | W5: 177181 | X5: 24538 | Y5: 11863 | Z5: 71454 | AA5: 69326 | AB5: 1611 | AC5: 1114964 | AD5: 32920
D6: 미혼 | E6: 845660 | F6: 77226 | G6: - | H6: - | I6: - | J6: 61909 | K6: 10982 | L6: 4335 | M6: 73414 | N6: 13056 | O6: 5042 | P6: 46937 | Q6: - | R6: - | S6: 96 | T6: 73 | U6: 1530 | V6: 6680 | W6: 2792 | X6: 7 | Y6: 24 | Z6: 207 | AA6: 2554 | AB6: 28 | AC6: 666685 | AD6: 25515
D7: 배우자 있음 | E7: 2233406 | F7: 562380 | G7: 548544 | H7: 2510 | I7: 4881 | J7: 1230 | K7: 1627 | L7: 3588 | M7: 1441988 | N7: 1273063 | O7: 14768 | P7: 71503 | Q7: 4958 | R7: 14272 | S7: 8084 | T7: 6842 | U7: 685 | V7: 47813 | W7: 133396 | X7: 24531 | Y7: 9524 | Z7: 61618 | AA7: 37723 | AB7: 1149 | AC7: 90634 | AD7: 3859
D8: 사별 | E8: 370021 | F8: 3549 | G8: - | H8: - | I8: - | J8: 485 | K8: 1958 | L8: 1106 | M8: 135303 | N8: - | O8: 15146 | P8: 94038 | Q8: - | R8: 2369 | S8: - | T8: - | U8: 7537 | V8: 16213 | W8: 25205 | X8: - | Y8: 1852 | Z8: 8426 | AA8: 14927 | AB8: 298 | AC8: 204096 | AD8: 1570
D9: 이혼 | E9: 336346 | F9: 4578 | G9: - | H9: - | I9: - | J9: 1282 | K9: 2057 | L9: 1239 | M9: 160319 | N9: - | O9: 34049 | P9: 109430 | Q9: - | R9: 516 | S9: - | T9: - | U9: 842 | V9: 15482 | W9: 15788 | X9: - | Y9: 463 | Z9: 1203 | AA9: 14122 | AB9: 136 | AC9: 153549 | AD9: 1976
C10: 15세미만 | D10: 합계 | E10: 44 | F10: 24 | G10: - | H10: - | I10: - | J10: 24 | K10: - | L10: - | M10: - | N10: - | O10: - | P10: - | Q10: - | R10: - | S10: - | T10: - | U10: - | V10: - | W10: - | X10: - | Y10: - | Z10: - | AA10: - | AB10: - | AC10: 20 | AD10: -
D11: 미혼 | E11: 44 | F11: 24 | G11: - | H11: - | I11: - | J11: 24 | K11: - | L11: - | M11: - | N11: - | O11: - | P11: - | Q11: - | R11: - | S11: - | T11: - | U11: - | V11: - | W11: - | X11: - | Y11: - | Z11: - | AA11: - | AB11: - | AC11: 20 | AD11: -
C12: 15 ~ 19세 | D12: 합계 | E12: 14708 | F12: 903 | G12: 24 | H12: - | I12: - | J12: 650 | K12: 223 | L12: 6 | M12: 276 | N12: 66 | O12: 9 | P12: 112 | Q12: - | R12: - | S12: - | T12: 10 | U12: 54 | V12: 25 | W12: - | X12: - | Y12: - | Z12: - | AA12: - | AB12: 5 | AC12: 12592 | AD12: 932
D13: 미혼 | E13: 14678 | F13: 879 | G13: - | H13: - | I13: - | J13: 650 | K13: 223 | L13: 6 | M13: 270 | N13: 60 | O13: 9 | P13: 112 | Q13: - | R13: - | S13: - | T13: 10 | U13: 54 | V13: 25 | W13: - | X13: - | Y13: - | Z13: - | AA13: - | AB13: 5 | AC13: 12592 | AD13: 932
D14: 배우자 있음 | E14: 30 | F14: 24 | G14: 24 | H14: - | I14: - | J14: - | K14: - | L14: - | M14: 6 | N14: 6 | O14: - | P14: - | Q14: - | R14: - | S14: - | T14: - | U14: - | V14: - | W14: - | X14: - | Y14: - | Z14: - | AA14: - | AB14: - | AC14: - | AD14: -
C15: 20 ~ 24세 | D15: 합계 | E15: 117409 | F15: 12795 | G15: 839 | H15: 6 | I15: - | J15: 10010 | K15: 1659 | L15: 281 | M15: 4538 | N15: 1312 | O15: 394 | P15: 2032 | Q15: 8 | R15: 11 | S15: 12 | T15: 8 | U15: 331 | V15: 430 | W15: 149 | X15: - | Y15: 6 | Z15: 40 | AA15: 103 | AB15: - | AC15: 93906 | AD15: 6021
D16: 미혼 | E16: 115336 | F16: 11927 | G16: - | H16: - | I16: - | J16: 10003 | K16: 1655 | L16: 269 | M16: 3574 | N16: 569 | O16: 365 | P16: 1921 | Q16: - | R16: - | S16: 6 | T16: 8 | U16: 331 | V16: 374 | W16: 118 | X16: - | Y16: 6 | Z16: 29 | AA16: 83 | AB16: - | AC16: 93766 | AD16: 5951
D17: 배우자 있음 | E17: 1903 | F17: 868 | G17: 839 | H17: 6 | I17: - | J17: 7 | K17: 4 | L17: 12 | M17: 864 | N17: 743 | O17: - | P17: 59 | Q17: 8 | R17: 11 | S17: 6 | T17: - | U17: - | V17: 37 | W17: 25 | X17: - | Y17: - | Z17: 11 | AA17: 14 | AB17: - | AC17: 82 | AD17: 64
D18: 사별 | E18: 9 | F18: - | G18: - | H18: - | I18: - | J18: - | K18: - | L18: - | M18: - | N18: - | O18: - | P18: - | Q18: - | R18: - | S18: - | T18: - | U18: - | V18: - | W18: - | X18: - | Y18: - | Z18: - | AA18: - | AB18: - | AC18: 9 | AD18: -
D19: 이혼 | E19: 161 | F19: - | G19: - | H19: - | I19: - | J19: - | K19: - | L19: - | M19: 100 | N19: - | O19: 29 | P19: 52 | Q19: - | R19: - | S19: - | T19: - | U19: - | V19: 19 | W19: 6 | X19: - | Y19: - | Z19: - | AA19: 6 | AB19: - | AC19: 49 | AD19: 6
C20: 25 ~ 29세 | D20: 합계 | E20: 224906 | F20: 40220 | G20: 14690 | H20: 125 | I20: 68 | J20: 22199 | K20: 2502 | L20: 636 | M20: 18915 | N20: 9760 | O20: 1049 | P20: 6434 | Q20: 18 | R20: 152 | S20: 113 | T20: 24 | U20: 413 | V20: 952 | W20: 837 | X20: 84 | Y20: 25 | Z20: 276 | AA20: 452 | AB20: 16 | AC20: 157730 | AD20: 7188
D21: 미혼 | E21: 198316 | F21: 25116 | G21: - | H21: - | I21: - | J21: 22087 | K21: 2452 | L21: 577 | M21: 10093 | N21: 2295 | O21: 1006 | P21: 5737 | Q21: - | R21: - | S21: 12 | T21: 24 | U21: 413 | V21: 606 | W21: 339 | X21: 7 | Y21: 6 | Z21: 84 | AA21: 242 | AB21: 6 | AC21: 155884 | AD21: 6878
D22: 배우자 있음 | E22: 25904 | F22: 15096 | G22: 14690 | H22: 125 | I22: 68 | J22: 104 | K22: 50 | L22: 59 | M22: 8461 | N22: 7465 | O22: 26 | P22: 416 | Q22: 18 | R22: 152 | S22: 101 | T22: - | U22: - | V22: 283 | W22: 436 | X22: 77 | Y22: 19 | Z22: 192 | AA22: 148 | AB22: 10 | AC22: 1596 | AD22: 305
D23: 사별 | E23: 63 | F23: - | G23: - | H23: - | I23: - | J23: - | K23: - | L23: - | M23: 44 | N23: - | O23: - | P23: 24 | Q23: - | R23: - | S23: - | T23: - | U23: - | V23: 20 | W23: 6 | X23: - | Y23: - | Z23: - | AA23: 6 | AB23: - | AC23: 13 | AD23: -
D24: 이혼 | E24: 623 | F24: 8 | G24: - | H24: - | I24: - | J24: 8 | K24: - | L24: - | M24: 317 | N24: - | O24: 17 | P24: 257 | Q24: - | R24: - | S24: - | T24: - | U24: - | V24: 43 | W24: 56 | X24: - | Y24: - | Z24: - | AA24: 56 | AB24: - | AC24: 237 | AD24: 5
C25: 30 ~ 34세 | D25: 합계 | E25: 332738 | F25: 80098 | G25: 61442 | H25: 553 | I25: 280 | J25: 15071 | K25: 2001 | L25: 751 | M25: 97769 | N25: 77948 | O25: 1840 | P25: 12719 | Q25: 191 | R25: 701 | S25: 830 | T25: 25 | U25: 454 | V25: 3061 | W25: 5010 | X25: 574 | Y25: 411 | Z25: 2030 | AA25: 1995 | AB25: 46 | AC25: 144964 | AD25: 4851
D26: 미혼 | E26: 174094 | F26: 17044 | G26: - | H26: - | I26: - | J26: 14658 | K26: 1841 | L26: 545 | M26: 15119 | N26: 3540 | O26: 1234 | P26: 8892 | Q26: - | R26: - | S26: 23 | T26: 25 | U26: 454 | V26: 951 | W26: 525 | X26: - | Y26: 5 | Z26: 72 | AA26: 448 | AB26: 11 | AC26: 137032 | AD26: 4363
D27: 배우자 있음 | E27: 154432 | F27: 62942 | G27: 61442 | H27: 553 | I27: 280 | J27: 322 | K27: 150 | L27: 195 | M27: 80796 | N27: 74408 | O27: 364 | P27: 2471 | Q27: 191 | R27: 701 | S27: 807 | T27: - | U27: - | V27: 1854 | W27: 4143 | X27: 574 | Y27: 406 | Z27: 1958 | AA27: 1205 | AB27: 29 | AC27: 6065 | AD27: 457
D28: 사별 | E28: 200 | F28: - | G28: - | H28: - | I28: - | J28: - | K28: - | L28: - | M28: 105 | N28: - | O28: 21 | P28: 77 | Q28: - | R28: - | S28: - | T28: - | U28: - | V28: 7 | W28: 42 | X28: - | Y28: - | Z28: - | AA28: 42 | AB28: 6 | AC28: 47 | AD28: -
D29: 이혼 | E29: 4012 | F29: 112 | G29: - | H29: - | I29: - | J29: 91 | K29: 10 | L29: 11 | M29: 1749 | N29: - | O29: 221 | P29: 1279 | Q29: - | R29: - | S29: - | T29: - | U29: - | V29: 249 | W29: 300 | X29: - | Y29: - | Z29: - | AA29: 300 | AB29: - | AC29: 1820 | AD29: 31
C30: 35 ~ 39세 | D30: 합계 | E30: 349061 | F30: 50047 | G30: 40150 | H30: 466 | I30: 268 | J30: 6745 | K30: 1605 | L30: 813 | M30: 183548 | N30: 153670 | O30: 2813 | P30: 18813 | Q30: 223 | R30: 889 | S30: 1794 | T30: 17 | U30: 145 | V30: 5184 | W30: 12430 | X30: 1714 | Y30: 1248 | Z30: 5831 | AA30: 3637 | AB30: 90 | AC30: 100013 | AD30: 2933
D31: 미혼 | E31: 111352 | F31: 8316 | G31: - | H31: - | I31: - | J31: 6382 | K31: 1343 | L31: 591 | M31: 12962 | N31: 2797 | O31: 974 | P31: 8057 | Q31: - | R31: - | S31: 15 | T31: 6 | U31: 145 | V31: 968 | W31: 457 | X31: - | Y31: - | Z31: 22 | AA31: 435 | AB31: - | AC31: 87127 | AD31: 2490
D32: 배우자 있음 | E32: 223315 | F32: 41491 | G32: 40150 | H32: 466 | I32: 268 | J32: 256 | K32: 146 | L32: 205 | M32: 163211 | N32: 150873 | O32: 836 | P32: 5069 | Q32: 223 | R32: 889 | S32: 1779 | T32: 11 | U32: - | V32: 3531 | W32: 10812 | X32: 1714 | Y32: 1248 | Z32: 5809 | AA32: 2041 | AB32: 63 | AC32: 7363 | AD32: 375
D33: 사별 | E33: 1180 | F33: 22 | G33: - | H33: - | I33: - | J33: 8 | K33: 14 | L33: - | M33: 831 | N33: - | O33: 62 | P33: 717 | Q33: - | R33: - | S33: - | T33: - | U33: - | V33: 52 | W33: 122 | X33: - | Y33: - | Z33: - | AA33: 122 | AB33: 5 | AC33: 200 | AD33: -
D34: 이혼 | E34: 13214 | F34: 218 | G34: - | H34: - | I34: - | J34: 99 | K34: 102 | L34: 17 | M34: 6544 | N34: - | O34: 941 | P34: 4970 | Q34: - | R34: - | S34: - | T34: - | U34: - | V34: 633 | W34: 1039 | X34: - | Y34: - | Z34: - | AA34: 1039 | AB34: 22 | AC34: 5323 | AD34: 68
C35: 40 ~ 44세 | D35: 합계 | E35: 401896 | F35: 32328 | G35: 25259 | H35: 297 | I35: 219 | J35: 4168 | K35: 1406 | L35: 979 | M35: 256842 | N35: 200725 | O35: 5789 | P35: 38846 | Q35: 149 | R35: 1155 | S35: 2015 | T35: 13 | U35: 83 | V35: 8067 | W35: 21762 | X35: 2779 | Y35: 1994 | Z35: 10887 | AA35: 6102 | AB35: 121 | AC35: 88614 | AD35: 2229
D36: 미혼 | E36: 87838 | F36: 5501 | G36: - | H36: - | I36: - | J36: 3750 | K36: 1092 | L36: 659 | M36: 13404 | N36: 2291 | O36: 708 | P36: 9214 | Q36: - | R36: - | S36: 23 | T36: - | U36: 83 | V36: 1085 | W36: 462 | X36: - | Y36: 7 | Z36: - | AA36: 455 | AB36: 6 | AC36: 66794 | AD36: 1671
D37: 배우자 있음 | E37: 274075 | F37: 26314 | G37: 25259 | H37: 297 | I37: 219 | J37: 184 | K37: 145 | L37: 210 | M37: 218992 | N37: 198434 | O37: 1623 | P37: 10809 | Q37: 149 | R37: 1125 | S37: 1992 | T37: 13 | U37: - | V37: 4847 | W37: 18538 | X37: 2779 | Y37: 1987 | Z37: 10872 | AA37: 2900 | AB37: 87 | AC37: 9785 | AD37: 359
D38: 사별 | E38: 3815 | F38: 36 | G38: - | H38: - | I38: - | J38: - | K38: 16 | L38: 20 | M38: 3023 | N38: - | O38: 329 | P38: 2493 | Q38: - | R38: 7 | S38: - | T38: - | U38: - | V38: 194 | W38: 277 | X38: - | Y38: - | Z38: - | AA38: 277 | AB38: - | AC38: 466 | AD38: 13
D39: 이혼 | E39: 36168 | F39: 477 | G39: - | H39: - | I39: - | J39: 234 | K39: 153 | L39: 90 | M39: 21423 | N39: - | O39: 3129 | P39: 16330 | Q39: - | R39: 23 | S39: - | T39: - | U39: - | V39: 1941 | W39: 2485 | X39: - | Y39: - | Z39: 15 | AA39: 2470 | AB39: 28 | AC39: 11569 | AD39: 186
C40: 45 ~ 49세 | D40: 합계 | E40: 419343 | F40: 25712 | G40: 21027 | H40: 211 | I40: 261 | J40: 2246 | K40: 1188 | L40: 779 | M40: 291899 | N40: 214341 | O40: 10120 | P40: 55222 | Q40: 170 | R40: 1016 | S40: 1303 | T40: 20 | U40: 33 | V40: 9674 | W40: 24008 | X40: 2256 | Y40: 1846 | Z40: 12430 | AA40: 7476 | AB40: 48 | AC40: 75893 | AD40: 1783
D41: 미혼 | E41: 57098 | F41: 3192 | G41: - | H41: - | I41: - | J41: 1949 | K41: 801 | L41: 442 | M41: 8604 | N41: 1069 | O41: 354 | P41: 6108 | Q41: - | R41: - | S41: 12 | T41: - | U41: 27 | V41: 1034 | W41: 360 | X41: - | Y41: - | Z41: - | AA41: 360 | AB41: - | AC41: 43922 | AD41: 1020
D42: 배우자 있음 | E42: 293155 | F42: 22034 | G42: 21027 | H42: 211 | I42: 261 | J42: 107 | K42: 216 | L42: 212 | M42: 239433 | N42: 213272 | O42: 2231 | P42: 15940 | Q42: 170 | R42: 999 | S42: 1291 | T42: 20 | U42: - | V42: 5510 | W42: 19419 | X42: 2256 | Y42: 1837 | Z42: 12393 | AA42: 2933 | AB42: 35 | AC42: 11754 | AD42: 480
D43: 사별 | E43: 9967 | F43: 57 | G43: - | H43: - | I43: - | J43: 13 | K43: 14 | L43: 30 | M43: 7878 | N43: - | O43: 926 | P43: 6549 | Q43: - | R43: 8 | S43: - | T43: - | U43: - | V43: 395 | W43: 657 | X43: - | Y43: 9 | Z43: 6 | AA43: 642 | AB43: - | AC43: 1370 | AD43: 5
D44: 이혼 | E44: 59123 | F44: 429 | G44: - | H44: - | I44: - | J44: 177 | K44: 157 | L44: 95 | M44: 35984 | N44: - | O44: 6609 | P44: 26625 | Q44: - | R44: 9 | S44: - | T44: - | U44: 6 | V44: 2735 | W44: 3572 | X44: - | Y44: - | Z44: 31 | AA44: 3541 | AB44: 13 | AC44: 18847 | AD44: 278
C45: 50 ~ 54세 | D45: 합계 | E45: 428227 | F45: 33058 | G45: 28844 | H45: 169 | I45: 375 | J45: 1552 | K45: 1180 | L45: 938 | M45: 299177 | N45: 211880 | O45: 13663 | P45: 60587 | Q45: 274 | R45: 1478 | S45: 884 | T45: 64 | U45: 133 | V45: 10214 | W45: 22078 | X45: 1581 | Y45: 1787 | Z45: 12004 | AA45: 6706 | AB45: 96 | AC45: 72223 | AD45: 1595
D46: 미혼 | E46: 35948 | F46: 2053 | G46: - | H46: - | I46: - | J46: 1127 | K46: 547 | L46: 379 | M46: 4916 | N46: 302 | O46: 289 | P46: 3616 | Q46: - | R46: - | S46: 5 | T46: - | U46: 23 | V46: 681 | W46: 281 | X46: - | Y46: - | Z46: - | AA46: 281 | AB46: - | AC46: 27993 | AD46: 705
D47: 배우자 있음 | E47: 300779 | F47: 30009 | G47: 28844 | H47: 169 | I47: 375 | J47: 132 | K47: 207 | L47: 282 | M47: 239495 | N47: 211578 | O47: 2856 | P47: 16768 | Q47: 274 | R47: 1340 | S47: 879 | T47: 64 | U47: 27 | V47: 5709 | W47: 18014 | X47: 1581 | Y47: 1753 | Z47: 11800 | AA47: 2880 | AB47: 63 | AC47: 12726 | AD47: 472
D48: 사별 | E48: 21477 | F48: 181 | G48: - | H48: - | I48: - | J48: 56 | K48: 79 | L48: 46 | M48: 15634 | N48: - | O48: 1890 | P48: 12899 | Q48: - | R48: 40 | S48: - | T48: - | U48: 15 | V48: 790 | W48: 993 | X48: - | Y48: - | Z48: 110 | AA48: 883 | AB48: - | AC48: 4616 | AD48: 53
D49: 이혼 | E49: 70023 | F49: 815 | G49: - | H49: - | I49: - | J49: 237 | K49: 347 | L49: 231 | M49: 39132 | N49: - | O49: 8628 | P49: 27304 | Q49: - | R49: 98 | S49: - | T49: - | U49: 68 | V49: 3034 | W49: 2790 | X49: - | Y49: 34 | Z49: 94 | AA49: 2662 | AB49: 33 | AC49: 26888 | AD49: 365
C50: 55 ~ 59세 | D50: 합계 | E50: 427233 | F50: 53709 | G50: 49537 | H50: 168 | I50: 511 | J50: 857 | K50: 1377 | L50: 1259 | M50: 271750 | N50: 189663 | O50: 13590 | P50: 51357 | Q50: 836 | R50: 2874 | S50: 596 | T50: 285 | U50: 198 | V50: 12351 | W50: 21889 | X50: 1616 | Y50: 1179 | Z50: 11631 | AA50: 7463 | AB50: 221 | AC50: 77869 | AD50: 1795
D51: 미혼 | E51: 25176 | F51: 1394 | G51: - | H51: - | I51: - | J51: 581 | K51: 406 | L51: 407 | M51: 3072 | N51: 112 | O51: 87 | P51: 2279 | Q51: - | R51: - | S51: - | T51: - | U51: - | V51: 594 | W51: 222 | X51: - | Y51: - | Z51: - | AA51: 222 | AB51: - | AC51: 19828 | AD51: 660
D52: 배우자 있음 | E52: 299134 | F52: 50928 | G52: 49537 | H52: 168 | I52: 511 | J52: 32 | K52: 247 | L52: 433 | M52: 216436 | N52: 189551 | O52: 3113 | P52: 12354 | Q52: 836 | R52: 2464 | S52: 596 | T52: 285 | U52: 69 | V52: 7168 | W52: 17271 | X52: 1616 | Y52: 1065 | Z52: 10683 | AA52: 3907 | AB52: 192 | AC52: 13748 | AD52: 559
D53: 사별 | E53: 36765 | F53: 440 | G53: - | H53: - | I53: - | J53: 48 | K53: 264 | L53: 128 | M53: 21610 | N53: - | O53: 2954 | P53: 16977 | Q53: - | R53: 255 | S53: - | T53: - | U53: 42 | V53: 1382 | W53: 1917 | X53: - | Y53: 32 | Z53: 562 | AA53: 1323 | AB53: 13 | AC53: 12644 | AD53: 141
D54: 이혼 | E54: 66158 | F54: 947 | G54: - | H54: - | I54: - | J54: 196 | K54: 460 | L54: 291 | M54: 30632 | N54: - | O54: 7436 | P54: 19747 | Q54: - | R54: 155 | S54: - | T54: - | U54: 87 | V54: 3207 | W54: 2479 | X54: - | Y54: 82 | Z54: 386 | AA54: 2011 | AB54: 16 | AC54: 31649 | AD54: 435
C55: 60 ~ 64세 | D55: 합계 | E55: 327818 | F55: 76962 | G55: 72794 | H55: 170 | I55: 920 | J55: 722 | K55: 1158 | L55: 1198 | M55: 165002 | N55: 111780 | O55: 8163 | P55: 29597 | Q55: 1038 | R55: 3141 | S55: 347 | T55: 659 | U55: 672 | V55: 9605 | W55: 17706 | X55: 2628 | Y55: 830 | Z55: 6705 | AA55: 7543 | AB55: 319 | AC55: 66776 | AD55: 1053
D56: 미혼 | E56: 12246 | F56: 918 | G56: - | H56: - | I56: - | J56: 401 | K56: 274 | L56: 243 | M56: 937 | N56: 21 | O56: 11 | P56: 685 | Q56: - | R56: - | S56: - | T56: - | U56: - | V56: 220 | W56: - | X56: - | Y56: - | Z56: - | AA56: - | AB56: - | AC56: 10058 | AD56: 333
D57: 배우자 있음 | E57: 228022 | F57: 74760 | G57: 72794 | H57: 170 | I57: 920 | J57: 74 | K57: 233 | L57: 569 | M57: 128773 | N57: 111759 | O57: 1768 | P57: 4672 | Q57: 1038 | R57: 2779 | S57: 347 | T57: 659 | U57: 116 | V57: 5635 | W57: 13409 | X57: 2628 | Y57: 619 | Z57: 5197 | AA57: 4965 | AB57: 278 | AC57: 10412 | AD57: 390
D58: 사별 | E58: 47470 | F58: 514 | G58: - | H58: - | I58: - | J58: 91 | K58: 267 | L58: 156 | M58: 21149 | N58: - | O58: 2536 | P58: 16114 | Q58: - | R58: 260 | S58: - | T58: - | U58: 376 | V58: 1863 | W58: 2793 | X58: - | Y58: 100 | Z58: 1208 | AA58: 1485 | AB58: 32 | AC58: 22852 | AD58: 130
D59: 이혼 | E59: 40080 | F59: 770 | G59: - | H59: - | I59: - | J59: 156 | K59: 384 | L59: 230 | M59: 14143 | N59: - | O59: 3848 | P59: 8126 | Q59: - | R59: 102 | S59: - | T59: - | U59: 180 | V59: 1887 | W59: 1504 | X59: - | Y59: 111 | Z59: 300 | AA59: 1093 | AB59: 9 | AC59: 23454 | AD59: 200
C60: 65 ~ 69세 | D60: 합계 | E60: 267918 | F60: 85142 | G60: 81855 | H60: 154 | I60: 822 | J60: 338 | K60: 809 | L60: 1164 | M60: 100021 | N60: 60444 | O60: 5015 | P60: 19519 | Q60: 767 | R60: 3067 | S60: 189 | T60: 1461 | U60: 1291 | V60: 8268 | W60: 16445 | X60: 3477 | Y60: 617 | Z60: 4057 | AA60: 8294 | AB60: 303 | AC60: 65104 | AD60: 903
D61: 미혼 | E61: 6572 | F61: 427 | G61: - | H61: - | I61: - | J61: 199 | K61: 148 | L61: 80 | M61: 390 | N61: - | O61: 5 | P61: 279 | Q61: - | R61: - | S61: - | T61: - | U61: - | V61: 106 | W61: 22 | X61: - | Y61: - | Z61: - | AA61: 22 | AB61: - | AC61: 5466 | AD61: 267
D62: 배우자 있음 | E62: 174926 | F62: 83504 | G62: 81855 | H62: 154 | I62: 822 | J62: 12 | K62: 60 | L62: 601 | M62: 72803 | N62: 60444 | O62: 918 | P62: 1741 | Q62: 767 | R62: 2546 | S62: 189 | T62: 1461 | U62: 158 | V62: 4579 | W62: 11133 | X62: 3477 | Y62: 297 | Z62: 1955 | AA62: 5404 | AB62: 260 | AC62: 7048 | AD62: 178
D63: 사별 | E63: 61106 | F63: 725 | G63: - | H63: - | I63: - | J63: 72 | K63: 381 | L63: 272 | M63: 20392 | N63: - | O63: 2072 | P63: 14437 | Q63: - | R63: 460 | S63: - | T63: - | U63: 962 | V63: 2461 | W63: 4431 | X63: - | Y63: 209 | Z63: 1902 | AA63: 2320 | AB63: 28 | AC63: 35296 | AD63: 234
D64: 이혼 | E64: 25314 | F64: 486 | G64: - | H64: - | I64: - | J64: 55 | K64: 220 | L64: 211 | M64: 6436 | N64: - | O64: 2020 | P64: 3062 | Q64: - | R64: 61 | S64: - | T64: - | U64: 171 | V64: 1122 | W64: 859 | X64: - | Y64: 111 | Z64: 200 | AA64: 548 | AB64: 15 | AC64: 17294 | AD64: 224
C65: 70 ~ 74세 | D65: 합계 | E65: 214991 | F65: 76009 | G65: 73799 | H65: 85 | I65: 686 | J65: 187 | K65: 573 | L65: 679 | M65: 61821 | N65: 32834 | O65: 3417 | P65: 13418 | Q65: 382 | R65: 1413 | S65: 84 | T65: 1616 | U65: 2000 | V65: 6657 | W65: 15624 | X65: 3724 | Y65: 642 | Z65: 2655 | AA65: 8603 | AB65: 107 | AC65: 60875 | AD65: 555
D66: 미혼 | E66: 3587 | F66: 202 | G66: - | H66: - | I66: - | J66: 42 | K66: 79 | L66: 81 | M66: 44 | N66: - | O66: - | P66: 31 | Q66: - | R66: - | S66: - | T66: - | U66: - | V66: 13 | W66: - | X66: - | Y66: - | Z66: - | AA66: - | AB66: - | AC66: 3220 | AD66: 121
D67: 배우자 있음 | E67: 131361 | F67: 75023 | G67: 73799 | H67: 85 | I67: 686 | J67: - | K67: 73 | L67: 380 | M67: 41077 | N67: 32834 | O67: 584 | P67: 774 | Q67: 382 | R67: 1035 | S67: 84 | T67: 1616 | U67: 114 | V67: 3654 | W67: 9993 | X67: 3724 | Y67: 148 | Z67: 571 | AA67: 5550 | AB67: 68 | AC67: 5110 | AD67: 90
D68: 사별 | E68: 66468 | F68: 572 | G68: - | H68: - | I68: - | J68: 123 | K68: 284 | L68: 165 | M68: 18111 | N68: - | O68: 1952 | P68: 11515 | Q68: - | R68: 347 | S68: - | T68: - | U68: 1693 | V68: 2604 | W68: 5175 | X68: - | Y68: 412 | Z68: 1966 | AA68: 2797 | AB68: 39 | AC68: 42329 | AD68: 242
D69: 이혼 | E69: 13575 | F69: 212 | G69: - | H69: - | I69: - | J69: 22 | K69: 137 | L69: 53 | M69: 2589 | N69: - | O69: 881 | P69: 1098 | Q69: - | R69: 31 | S69: - | T69: - | U69: 193 | V69: 386 | W69: 456 | X69: - | Y69: 82 | Z69: 118 | AA69: 256 | AB69: - | AC69: 10216 | AD69: 102
C70: 75 ~ 79세 | D70: 합계 | E70: 148189 | F70: 49693 | G70: 48288 | H70: 55 | I70: 327 | J70: 80 | K70: 443 | L70: 500 | M70: 36672 | N70: 15720 | O70: 2055 | P70: 8372 | Q70: 517 | R70: 611 | S70: 13 | T70: 1624 | U70: 2177 | V70: 5583 | W70: 11333 | X70: 2668 | Y70: 642 | Z70: 1675 | AA70: 6348 | AB70: 114 | AC70: 49976 | AD70: 401
D71: 미혼 | E71: 2010 | F71: 149 | G71: - | H71: - | I71: - | J71: 28 | K71: 75 | L71: 46 | M71: 29 | N71: - | O71: - | P71: 6 | Q71: - | R71: - | S71: - | T71: - | U71: - | V71: 23 | W71: 6 | X71: - | Y71: - | Z71: - | AA71: 6 | AB71: - | AC71: 1780 | AD71: 46
D72: 배우자 있음 | E72: 80151 | F72: 49004 | G72: 48288 | H72: 55 | I72: 327 | J72: - | K72: 61 | L72: 273 | M72: 21338 | N72: 15720 | O72: 311 | P72: 297 | Q72: 517 | R72: 198 | S72: 13 | T72: 1624 | U72: 113 | V72: 2545 | W72: 6645 | X72: 2668 | Y72: 64 | Z72: 139 | AA72: 3774 | AB72: 30 | AC72: 3077 | AD72: 57
D73: 사별 | E73: 60337 | F73: 481 | G73: - | H73: - | I73: - | J73: 52 | K73: 253 | L73: 176 | M73: 14337 | N73: - | O73: 1495 | P73: 7599 | Q73: - | R73: 382 | S73: - | T73: - | U73: 1989 | V73: 2872 | W73: 4501 | X73: - | Y73: 551 | Z73: 1485 | AA73: 2465 | AB73: 84 | AC73: 40672 | AD73: 262
D74: 이혼 | E74: 5691 | F74: 59 | G74: - | H74: - | I74: - | J74: - | K74: 54 | L74: 5 | M74: 968 | N74: - | O74: 249 | P74: 470 | Q74: - | R74: 31 | S74: - | T74: - | U74: 75 | V74: 143 | W74: 181 | X74: - | Y74: 27 | Z74: 51 | AA74: 103 | AB74: - | AC74: 4447 | AD74: 36
C75: 80 ~ 84세 | D75: 합계 | E75: 75745 | F75: 22284 | G75: 21643 | H75: 26 | I75: 118 | J75: 50 | K75: 294 | L75: 153 | M75: 15795 | N75: 4727 | O75: 797 | P75: 3448 | Q75: 247 | R75: 331 | S75: - | T75: 767 | U75: 1670 | V75: 3808 | W75: 5515 | X75: 1056 | Y75: 410 | Z75: 775 | AA75: 3274 | AB75: 70 | AC75: 31734 | AD75: 347
D76: 미혼 | E76: 980 | F76: 42 | G76: - | H76: - | I76: - | J76: 21 | K76: 21 | L76: - | M76: - | N76: - | O76: - | P76: - | Q76: - | R76: - | S76: - | T76: - | U76: - | V76: - | W76: - | X76: - | Y76: - | Z76: - | AA76: - | AB76: - | AC76: 882 | AD76: 56
D77: 배우자 있음 | E77: 33714 | F77: 21886 | G77: 21643 | H77: 26 | I77: 118 | J77: - | K77: 13 | L77: 86 | M77: 7684 | N77: 4727 | O77: 103 | P77: 106 | Q77: 247 | R77: 9 | S77: - | T77: 767 | U77: 51 | V77: 1674 | W77: 2699 | X77: 1056 | Y77: 60 | Z77: 27 | AA77: 1556 | AB77: 14 | AC77: 1399 | AD77: 32
D78: 사별 | E78: 39449 | F78: 323 | G78: - | H78: - | I78: - | J78: 22 | K78: 234 | L78: 67 | M78: 7913 | N78: - | O78: 659 | P78: 3277 | Q78: - | R78: 316 | S78: - | T78: - | U78: 1568 | V78: 2093 | W78: 2776 | X78: - | Y78: 342 | Z78: 748 | AA78: 1686 | AB78: 56 | AC78: 28144 | AD78: 237
D79: 이혼 | E79: 1602 | F79: 33 | G79: - | H79: - | I79: - | J79: 7 | K79: 26 | L79: - | M79: 198 | N79: - | O79: 35 | P79: 65 | Q79: - | R79: 6 | S79: - | T79: - | U79: 51 | V79: 41 | W79: 40 | X79: - | Y79: 8 | Z79: - | AA79: 32 | AB79: - | AC79: 1309 | AD79: 22
C80: 85세이상 | D80: 합계 | E80: 35207 | F80: 8749 | G80: 8353 | H80: 25 | I80: 26 | J80: 7 | K80: 206 | L80: 132 | M80: 6999 | N80: 1249 | O80: 291 | P80: 1432 | Q80: 138 | R80: 318 | S80: - | T80: 322 | U80: 940 | V80: 2309 | W80: 2395 | X80: 381 | Y80: 226 | Z80: 458 | AA80: 1330 | AB80: 55 | AC80: 16675 | AD80: 334
D81: 미혼 | E81: 385 | F81: 42 | G81: - | H81: - | I81: - | J81: 7 | K81: 25 | L81: 10 | M81: - | N81: - | O81: - | P81: - | Q81: - | R81: - | S81: - | T81: - | U81: - | V81: - | W81: - | X81: - | Y81: - | Z81: - | AA81: - | AB81: - | AC81: 321 | AD81: 22
D82: 배우자 있음 | E82: 12505 | F82: 8497 | G82: 8353 | H82: 25 | I82: 26 | J82: - | K82: 22 | L82: 71 | M82: 2619 | N82: 1249 | O82: 35 | P82: 27 | Q82: 138 | R82: 24 | S82: - | T82: 322 | U82: 37 | V82: 787 | W82: 859 | X82: 381 | Y82: 21 | Z82: 11 | AA82: 446 | AB82: 20 | AC82: 469 | AD82: 41
D83: 사별 | E83: 21715 | F83: 198 | G83: - | H83: - | I83: - | J83: - | K83: 152 | L83: 46 | M83: 4276 | N83: - | O83: 250 | P83: 1360 | Q83: - | R83: 294 | S83: - | T83: - | U83: 892 | V83: 1480 | W83: 1515 | X83: - | Y83: 197 | Z83: 439 | AA83: 879 | AB83: 35 | AC83: 15438 | AD83: 253
D84: 이혼 | E84: 602 | F84: 12 | G84: - | H84: - | I84: - | J84: - | K84: 7 | L84: 5 | M84: 104 | N84: - | O84: 6 | P84: 45 | Q84: - | R84: - | S84: - | T84: - | U84: 11 | V84: 42 | W84: 21 | X84: - | Y84: 8 | Z84: 8 | AA84: 5 | AB84: - | AC84: 447 | AD84: 18
B85: 남자 | C85: 합계 | D85: 합계 | E85: 2586174 | F85: 544793 | G85: 502332 | H85: 1981 | I85: 4567 | J85: 23563 | K85: 6831 | L85: 5519 | M85: 1380569 | N85: 1199611 | O85: 66973 | P85: 29220 | Q85: 4656 | R85: 13221 | S85: 7188 | T85: 6469 | U85: 1656 | V85: 51575 | W85: 131246 | X85: 22958 | Y85: 11318 | Z85: 56635 | AA85: 40335 | AB85: 1191 | AC85: 511647 | AD85: 16728
D86: 미혼 | E86: 438730 | F86: 29111 | G86: - | H86: - | I86: - | J86: 22389 | K86: 4853 | L86: 1869 | M86: 44195 | N86: 7809 | O86: 3010 | P86: 29220 | Q86: - | R86: - | S86: 54 | T86: 59 | U86: 861 | V86: 3182 | W86: 1555 | X86: 7 | Y86: 13 | Z86: 88 | AA86: 1447 | AB86: 17 | AC86: 351095 | AD86: 12757
D87: 배우자 있음 | E87: 1961784 | F87: 513059 | G87: 502332 | H87: 1981 | I87: 4567 | J87: 537 | K87: 810 | L87: 2832 | M87: 1276641 | N87: 1191802 | O87: 14768 | P87: - | Q87: 4656 | R87: 12595 | S87: 7134 | T87: 6410 | U87: 163 | V87: 39113 | W87: 118409 | X87: 22951 | Y87: 8990 | Z87: 56547 | AA87: 29921 | AB87: 1070 | AC87: 50131 | AD87: 2474
D88: 사별 | E88: 57538 | F88: 597 | G88: - | H88: - | I88: - | J88: 100 | K88: 270 | L88: 227 | M88: 18481 | N88: - | O88: 15146 | P88: - | Q88: - | R88: 479 | S88: - | T88: - | U88: 502 | V88: 2354 | W88: 4110 | X88: - | Y88: 1852 | Z88: - | AA88: 2258 | AB88: 44 | AC88: 33842 | AD88: 464
D89: 이혼 | E89: 128122 | F89: 2026 | G89: - | H89: - | I89: - | J89: 537 | K89: 898 | L89: 591 | M89: 41252 | N89: - | O89: 34049 | P89: - | Q89: - | R89: 147 | S89: - | T89: - | U89: 130 | V89: 6926 | W89: 7172 | X89: - | Y89: 463 | Z89: - | AA89: 6709 | AB89: 60 | AC89: 76579 | AD89: 1033
C90: 15세미만 | D90: 합계 | E90: 13 | F90: 7 | G90: - | H90: - | I90: - | J90: 7 | K90: - | L90: - | M90: - | N90: - | O90: - | P90: - | Q90: - | R90: - | S90: - | T90: - | U90: - | V90: - | W90: - | X90: - | Y90: - | Z90: - | AA90: - | AB90: - | AC90: 6 | AD90: -
D91: 미혼 | E91: 13 | F91: 7 | G91: - | H91: - | I91: - | J91: 7 | K91: - | L91: - | M91: - | N91: - | O91: - | P91: - | Q91: - | R91: - | S91: - | T91: - | U91: - | V91: - | W91: - | X91: - | Y91: - | Z91: - | AA91: - | AB91: - | AC91: 6 | AD91: -
C92: 15 ~ 19세 | D92: 합계 | E92: 6620 | F92: 385 | G92: 16 | H92: - | I92: - | J92: 292 | K92: 77 | L92: - | M92: 128 | N92: 37 | O92: - | P92: 40 | Q92: - | R92: - | S92: - | T92: 10 | U92: 30 | V92: 11 | W92: - | X92: - | Y92: - | Z92: - | AA92: - | AB92: - | AC92: 5767 | AD92: 340
D93: 미혼 | E93: 6598 | F93: 369 | G93: - | H93: - | I93: - | J93: 292 | K93: 77 | L93: - | M93: 122 | N93: 31 | O93: - | P93: 40 | Q93: - | R93: - | S93: - | T93: 10 | U93: 30 | V93: 11 | W93: - | X93: - | Y93: - | Z93: - | AA93: - | AB93: - | AC93: 5767 | AD93: 340
D94: 배우자 있음 | E94: 22 | F94: 16 | G94: 16 | H94: - | I94: - | J94: - | K94: - | L94: - | M94: 6 | N94: 6 | O94: - | P94: - | Q94: - | R94: - | S94: - | T94: - | U94: - | V94: - | W94: - | X94: - | Y94: - | Z94: - | AA94: - | AB94: - | AC94: - | AD94: -
C95: 20 ~ 24세 | D95: 합계 | E95: 45622 | F95: 4245 | G95: 554 | H95: 6 | I95: - | J95: 2979 | K95: 582 | L95: 124 | M95: 2244 | N95: 809 | O95: 205 | P95: 867 | Q95: 8 | R95: - | S95: 6 | T95: 8 | U95: 131 | V95: 210 | W95: 53 | X95: - | Y95: - | Z95: 11 | AA95: 42 | AB95: - | AC95: 36840 | AD95: 2240
D96: 미혼 | E96: 44323 | F96: 3675 | G96: - | H96: - | I96: - | J96: 2979 | K96: 578 | L96: 118 | M96: 1640 | N96: 260 | O96: 176 | P96: 867 | Q96: - | R96: - | S96: 6 | T96: 8 | U96: 131 | V96: 192 | W96: 22 | X96: - | Y96: - | Z96: - | AA96: 22 | AB96: - | AC96: 36785 | AD96: 2201
D97: 배우자 있음 | E97: 1239 | F97: 570 | G97: 554 | H97: 6 | I97: - | J97: - | K97: 4 | L97: 6 | M97: 575 | N97: 549 | O97: - | P97: - | Q97: 8 | R97: - | S97: - | T97: - | U97: - | V97: 18 | W97: 25 | X97: - | Y97: - | Z97: 11 | AA97: 14 | AB97: - | AC97: 36 | AD97: 33
D98: 이혼 | E98: 60 | F98: - | G98: - | H98: - | I98: - | J98: - | K98: - | L98: - | M98: 29 | N98: - | O98: 29 | P98: - | Q98: - | R98: - | S98: - | T98: - | U98: - | V98: - | W98: 6 | X98: - | Y98: - | Z98: - | AA98: 6 | AB98: - | AC98: 19 | AD98: 6
C99: 25 ~ 29세 | D99: 합계 | E99: 114990 | F99: 20304 | G99: 11295 | H99: 60 | I99: 68 | J99: 7524 | K99: 1104 | L99: 253 | M99: 11800 | N99: 7388 | O99: 581 | P99: 2947 | Q99: 12 | R99: 107 | S99: 79 | T99: 19 | U99: 204 | V99: 463 | W99: 535 | X99: 77 | Y99: 15 | Z99: 170 | AA99: 273 | AB99: 16 | AC99: 78727 | AD99: 3608
D100: 미혼 | E100: 95753 | F100: 8821 | G100: - | H100: - | I100: - | J100: 7516 | K100: 1083 | L100: 222 | M100: 5205 | N100: 1208 | O100: 538 | P100: 2947 | Q100: - | R100: - | S100: 12 | T100: 19 | U100: 204 | V100: 277 | W100: 212 | X100: 7 | Y100: 6 | Z100: 34 | AA100: 165 | AB100: 6 | AC100: 78071 | AD100: 3438
D101: 배우자 있음 | E101: 19102 | F101: 11483 | G101: 11295 | H101: 60 | I101: 68 | J101: 8 | K101: 21 | L101: 31 | M101: 6555 | N101: 6180 | O101: 26 | P101: - | Q101: 12 | R101: 107 | S101: 67 | T101: - | U101: - | V101: 163 | W101: 304 | X101: 70 | Y101: 9 | Z101: 136 | AA101: 89 | AB101: 10 | AC101: 585 | AD101: 165
D102: 사별 | E102: 17 | F102: - | G102: - | H102: - | I102: - | J102: - | K102: - | L102: - | M102: 10 | N102: - | O102: - | P102: - | Q102: - | R102: - | S102: - | T102: - | U102: - | V102: 10 | W102: - | X102: - | Y102: - | Z102: - | AA102: - | AB102: - | AC102: 7 | AD102: -
D103: 이혼 | E103: 118 | F103: - | G103: - | H103: - | I103: - | J103: - | K103: - | L103: - | M103: 30 | N103: - | O103: 17 | P103: - | Q103: - | R103: - | S103: - | T103: - | U103: - | V103: 13 | W103: 19 | X103: - | Y103: - | Z103: - | AA103: 19 | AB103: - | AC103: 64 | AD103: 5
C104: 30 ~ 34세 | D104: 합계 | E104: 226651 | F104: 60724 | G104: 53078 | H104: 376 | I104: 262 | J104: 5610 | K104: 1034 | L104: 364 | M104: 78173 | N104: 67644 | O104: 1483 | P104: 5396 | Q104: 143 | R104: 554 | S104: 618 | T104: 16 | U104: 309 | V104: 2010 | W104: 3526 | X104: 444 | Y104: 352 | Z104: 1599 | AA104: 1131 | AB104: 46 | AC104: 81357 | AD104: 2825
D105: 미혼 | E105: 96166 | F105: 6614 | G105: - | H105: - | I105: - | J105: 5426 | K105: 959 | L105: 229 | M105: 9453 | N105: 2254 | O105: 877 | P105: 5396 | Q105: - | R105: - | S105: 8 | T105: 16 | U105: 309 | V105: 593 | W105: 338 | X105: - | Y105: - | Z105: 47 | AA105: 291 | AB105: 11 | AC105: 77242 | AD105: 2508
D106: 배우자 있음 | E106: 129180 | F106: 54088 | G106: 53078 | H106: 376 | I106: 262 | J106: 162 | K106: 75 | L106: 135 | M106: 68393 | N106: 65390 | O106: 364 | P106: - | Q106: 143 | R106: 554 | S106: 610 | T106: - | U106: - | V106: 1332 | W106: 3052 | X106: 444 | Y106: 352 | Z106: 1552 | AA106: 704 | AB106: 29 | AC106: 3319 | AD106: 299
D107: 사별 | E107: 68 | F107: - | G107: - | H107: - | I107: - | J107: - | K107: - | L107: - | M107: 21 | N107: - | O107: 21 | P107: - | Q107: - | R107: - | S107: - | T107: - | U107: - | V107: - | W107: 19 | X107: - | Y107: - | Z107: - | AA107: 19 | AB107: 6 | AC107: 22 | AD107: -
D108: 이혼 | E108: 1237 | F108: 22 | G108: - | H108: - | I108: - | J108: 22 | K108: - | L108: - | M108: 306 | N108: - | O108: 221 | P108: - | Q108: - | R108: - | S108: - | T108: - | U108: - | V108: 85 | W108: 117 | X108: - | Y108: - | Z108: - | AA108: 117 | AB108: - | AC108: 774 | AD108: 18
C109: 35 ~ 39세 | D109: 합계 | E109: 258865 | F109: 39469 | G109: 35140 | H109: 353 | I109: 250 | J109: 2601 | K109: 758 | L109: 367 | M109: 151917 | N109: 138320 | O109: 2447 | P109: 5335 | Q109: 196 | R109: 756 | S109: 1571 | T109: 17 | U109: 83 | V109: 3192 | W109: 9441 | X109: 1415 | Y109: 1104 | Z109: 5038 | AA109: 1884 | AB109: 51 | AC109: 56290 | AD109: 1697
D110: 미혼 | E110: 62393 | F110: 3316 | G110: - | H110: - | I110: - | J110: 2449 | K110: 610 | L110: 257 | M110: 8323 | N110: 1792 | O110: 608 | P110: 5335 | Q110: - | R110: - | S110: - | T110: 6 | U110: 83 | V110: 499 | W110: 265 | X110: - | Y110: - | Z110: 7 | AA110: 258 | AB110: - | AC110: 49088 | AD110: 1401
D111: 배우자 있음 | E111: 192187 | F111: 36070 | G111: 35140 | H111: 353 | I111: 250 | J111: 112 | K111: 110 | L111: 105 | M111: 142402 | N111: 136528 | O111: 836 | P111: - | Q111: 196 | R111: 756 | S111: 1571 | T111: 11 | U111: - | V111: 2504 | W111: 8740 | X111: 1415 | Y111: 1104 | Z111: 5031 | AA111: 1190 | AB111: 45 | AC111: 4679 | AD111: 251
D112: 사별 | E112: 214 | F112: - | G112: - | H112: - | I112: - | J112: - | K112: - | L112: - | M112: 62 | N112: - | O112: 62 | P112: - | Q112: - | R112: - | S112: - | T112: - | U112: - | V112: - | W112: 41 | X112: - | Y112: - | Z112: - | AA112: 41 | AB112: - | AC112: 111 | AD112: -
D113: 이혼 | E113: 4071 | F113: 83 | G113: - | H113: - | I113: - | J113: 40 | K113: 38 | L113: 5 | M113: 1130 | N113: - | O113: 941 | P113: - | Q113: - | R113: - | S113: - | T113: - | U113: - | V113: 189 | W113: 395 | X113: - | Y113: - | Z113: - | AA113: 395 | AB113: 6 | AC113: 2412 | AD113: 45
C114: 40 ~ 44세 | D114: 합계 | E114: 301071 | F114: 25610 | G114: 22248 | H114: 251 | I114: 192 | J114: 1808 | K114: 668 | L114: 443 | M114: 205531 | N114: 185736 | O114: 5494 | P114: 6175 | Q114: 122 | R114: 893 | S114: 1847 | T114: 13 | U114: 61 | V114: 5190 | W114: 17258 | X114: 2544 | Y114: 1858 | Z114: 9859 | AA114: 2997 | AB114: 101 | AC114: 51234 | AD114: 1337
D115: 미혼 | E115: 51376 | F115: 2412 | G115: - | H115: - | I115: - | J115: 1609 | K115: 528 | L115: 275 | M115: 8616 | N115: 1381 | O115: 413 | P115: 6175 | Q115: - | R115: - | S115: 23 | T115: - | U115: 61 | V115: 563 | W115: 219 | X115: - | Y115: 7 | Z115: - | AA115: 212 | AB115: - | AC115: 39169 | AD115: 960
D116: 배우자 있음 | E116: 238374 | F116: 22980 | G116: 22248 | H116: 251 | I116: 192 | J116: 97 | K116: 75 | L116: 117 | M116: 192641 | N116: 184355 | O116: 1623 | P116: - | Q116: 122 | R116: 886 | S116: 1824 | T116: 13 | U116: - | V116: 3818 | W116: 15983 | X116: 2544 | Y116: 1851 | Z116: 9859 | AA116: 1729 | AB116: 87 | AC116: 6422 | AD116: 261
D117: 사별 | E117: 591 | F117: - | G117: - | H117: - | I117: - | J117: - | K117: - | L117: - | M117: 350 | N117: - | O117: 329 | P117: - | Q117: - | R117: - | S117: - | T117: - | U117: - | V117: 21 | W117: 96 | X117: - | Y117: - | Z117: - | AA117: 96 | AB117: - | AC117: 138 | AD117: 7
D118: 이혼 | E118: 10730 | F118: 218 | G118: - | H118: - | I118: - | J118: 102 | K118: 65 | L118: 51 | M118: 3924 | N118: - | O118: 3129 | P118: - | Q118: - | R118: 7 | S118: - | T118: - | U118: - | V118: 788 | W118: 960 | X118: - | Y118: - | Z118: - | AA118: 960 | AB118: 14 | AC118: 5505 | AD118: 109
C119: 45 ~ 49세 | D119: 합계 | E119: 308935 | F119: 20485 | G119: 18050 | H119: 178 | I119: 227 | J119: 1114 | K119: 524 | L119: 392 | M119: 223287 | N119: 200781 | O119: 9962 | P119: 4329 | Q119: 158 | R119: 835 | S119: 1135 | T119: 20 | U119: 20 | V119: 6047 | W119: 19820 | X119: 2144 | Y119: 1775 | Z119: 11674 | AA119: 4227 | AB119: 48 | AC119: 44115 | AD119: 1180
D120: 미혼 | E120: 35091 | F120: 1554 | G120: - | H120: - | I120: - | J120: 978 | K120: 404 | L120: 172 | M120: 5686 | N120: 689 | O120: 196 | P120: 4329 | Q120: - | R120: - | S120: - | T120: - | U120: 20 | V120: 452 | W120: 214 | X120: - | Y120: - | Z120: - | AA120: 214 | AB120: - | AC120: 26929 | AD120: 708
D121: 배우자 있음 | E121: 252684 | F121: 18726 | G121: 18050 | H121: 178 | I121: 227 | J121: 56 | K121: 67 | L121: 148 | M121: 208718 | N121: 200092 | O121: 2231 | P121: - | Q121: 158 | R121: 835 | S121: 1135 | T121: 20 | U121: - | V121: 4247 | W121: 17403 | X121: 2144 | Y121: 1766 | Z121: 11674 | AA121: 1819 | AB121: 35 | AC121: 7449 | AD121: 353
D122: 사별 | E122: 1691 | F122: 15 | G122: - | H122: - | I122: - | J122: - | K122: - | L122: 15 | M122: 978 | N122: - | O122: 926 | P122: - | Q122: - | R122: - | S122: - | T122: - | U122: - | V122: 52 | W122: 279 | X122: - | Y122: 9 | Z122: - | AA122: 270 | AB122: - | AC122: 414 | AD122: 5
D123: 이혼 | E123: 19469 | F123: 190 | G123: - | H123: - | I123: - | J123: 80 | K123: 53 | L123: 57 | M123: 7905 | N123: - | O123: 6609 | P123: - | Q123: - | R123: - | S123: - | T123: - | U123: - | V123: 1296 | W123: 1924 | X123: - | Y123: - | Z123: - | AA123: 1924 | AB123: 13 | AC123: 9323 | AD123: 114
C124: 50 ~ 54세 | D124: 합계 | E124: 309489 | F124: 27727 | G124: 25296 | H124: 137 | I124: 351 | J124: 798 | K124: 613 | L124: 532 | M124: 223533 | N124: 199001 | O124: 13524 | P124: 2382 | Q124: 245 | R124: 1153 | S124: 787 | T124: 39 | U124: 33 | V124: 6369 | W124: 18159 | X124: 1482 | Y124: 1713 | Z124: 11136 | AA124: 3828 | AB124: 64 | AC124: 39105 | AD124: 901
D125: 미혼 | E125: 21730 | F125: 1082 | G125: - | H125: - | I125: - | J125: 606 | K125: 277 | L125: 199 | M125: 3050 | N125: 152 | O125: 150 | P125: 2382 | Q125: - | R125: - | S125: 5 | T125: - | U125: 23 | V125: 338 | W125: 172 | X125: - | Y125: - | Z125: - | AA125: 172 | AB125: - | AC125: 17030 | AD125: 396
D126: 배우자 있음 | E126: 258408 | F126: 26186 | G126: 25296 | H126: 137 | I126: 351 | J126: 63 | K126: 145 | L126: 194 | M126: 208303 | N126: 198849 | O126: 2856 | P126: - | Q126: 245 | R126: 1126 | S126: 782 | T126: 39 | U126: - | V126: 4406 | W126: 16197 | X126: 1482 | Y126: 1679 | Z126: 11136 | AA126: 1900 | AB126: 53 | AC126: 7380 | AD126: 289
D127: 사별 | E127: 3551 | F127: 45 | G127: - | H127: - | I127: - | J127: 20 | K127: 12 | L127: 13 | M127: 2098 | N127: - | O127: 1890 | P127: - | Q127: - | R127: 11 | S127: - | T127: - | U127: - | V127: 197 | W127: 305 | X127: - | Y127: - | Z127: - | AA127: 305 | AB127: - | AC127: 1085 | AD127: 18
D128: 이혼 | E128: 25800 | F128: 414 | G128: - | H128: - | I128: - | J128: 109 | K128: 179 | L128: 126 | M128: 10082 | N128: - | O128: 8628 | P128: - | Q128: - | R128: 16 | S128: - | T128: - | U128: 10 | V128: 1428 | W128: 1485 | X128: - | Y128: 34 | Z128: - | AA128: 1451 | AB128: 11 | AC128: 13610 | AD128: 198
C129: 55 ~ 59세 | D129: 합계 | E129: 307440 | F129: 46131 | G129: 43953 | H129: 138 | I129: 465 | J129: 393 | K129: 510 | L129: 672 | M129: 206656 | N129: 180378 | O129: 13544 | P129: 1252 | Q129: 772 | R129: 2262 | S129: 538 | T129: 232 | U129: 30 | V129: 7648 | W129: 17110 | X129: 1452 | Y129: 1140 | Z129: 10104 | AA129: 4414 | AB129: 186 | AC129: 36365 | AD129: 992
D130: 미혼 | E130: 13973 | F130: 694 | G130: - | H130: - | I130: - | J130: 296 | K130: 181 | L130: 217 | M130: 1492 | N130: 42 | O130: 41 | P130: 1252 | Q130: - | R130: - | S130: - | T130: - | U130: - | V130: 157 | W130: 105 | X130: - | Y130: - | Z130: - | AA130: 105 | AB130: - | AC130: 11332 | AD130: 350
D131: 배우자 있음 | E131: 261045 | F131: 44992 | G131: 43953 | H131: 138 | I131: 465 | J131: 14 | K131: 91 | L131: 331 | M131: 192979 | N131: 180336 | O131: 3113 | P131: - | Q131: 772 | R131: 2191 | S131: 538 | T131: 232 | U131: 17 | V131: 5780 | W131: 15417 | X131: 1452 | Y131: 1026 | Z131: 10104 | AA131: 2835 | AB131: 179 | AC131: 7109 | AD131: 369
D132: 사별 | E132: 5887 | F132: 59 | G132: - | H132: - | I132: - | J132: 12 | K132: 40 | L132: 7 | M132: 3216 | N132: - | O132: 2954 | P132: - | Q132: - | R132: 35 | S132: - | T132: - | U132: 13 | V132: 214 | W132: 392 | X132: - | Y132: 32 | Z132: - | AA132: 360 | AB132: - | AC132: 2171 | AD132: 49
D133: 이혼 | E133: 26535 | F133: 386 | G133: - | H133: - | I133: - | J133: 71 | K133: 198 | L133: 117 | M133: 8969 | N133: - | O133: 7436 | P133: - | Q133: - | R133: 36 | S133: - | T133: - | U133: - | V133: 1497 | W133: 1196 | X133: - | Y133: 82 | Z133: - | AA133: 1114 | AB133: 7 | AC133: 15753 | AD133: 224
C134: 60 ~ 64세 | D134: 합계 | E134: 235061 | F134: 69239 | G134: 66787 | H134: 142 | I134: 863 | J134: 250 | K134: 415 | L134: 782 | M134: 126735 | N134: 107553 | O134: 8163 | P134: 315 | Q134: 1002 | R134: 2638 | S134: 327 | T134: 573 | U134: 41 | V134: 6123 | W134: 12769 | X134: 2431 | Y134: 830 | Z134: 4752 | AA134: 4756 | AB134: 257 | AC134: 25523 | AD134: 538
D135: 미혼 | E135: 6048 | F135: 325 | G135: - | H135: - | I135: - | J135: 149 | K135: 57 | L135: 119 | M135: 375 | N135: - | O135: 11 | P135: 315 | Q135: - | R135: - | S135: - | T135: - | U135: - | V135: 49 | W135: - | X135: - | Y135: - | Z135: - | AA135: - | AB135: - | AC135: 5160 | AD135: 188
D136: 배우자 있음 | E136: 204345 | F136: 68430 | G136: 66787 | H136: 142 | I136: 863 | J136: 21 | K136: 125 | L136: 492 | M136: 118616 | N136: 107553 | O136: 1768 | P136: - | Q136: 1002 | R136: 2545 | S136: 327 | T136: 573 | U136: 24 | V136: 4824 | W136: 12031 | X136: 2431 | Y136: 619 | Z136: 4752 | AA136: 4229 | AB136: 248 | AC136: 4831 | AD136: 189
D137: 사별 | E137: 7359 | F137: 121 | G137: - | H137: - | I137: - | J137: 8 | K137: 53 | L137: 60 | M137: 2959 | N137: - | O137: 2536 | P137: - | Q137: - | R137: 53 | S137: - | T137: - | U137: 12 | V137: 358 | W137: 276 | X137: - | Y137: 100 | Z137: - | AA137: 176 | AB137: - | AC137: 3935 | AD137: 68
D138: 이혼 | E138: 17309 | F138: 363 | G138: - | H138: - | I138: - | J138: 72 | K138: 180 | L138: 111 | M138: 4785 | N138: - | O138: 3848 | P138: - | Q138: - | R138: 40 | S138: - | T138: - | U138: 5 | V138: 892 | W138: 462 | X138: - | Y138: 111 | Z138: - | AA138: 351 | AB138: 9 | AC138: 11597 | AD138: 93
C139: 65 ~ 69세 | D139: 합계 | E139: 185620 | F139: 79557 | G139: 77637 | H139: 149 | I139: 774 | J139: 117 | K139: 179 | L139: 701 | M139: 73444 | N139: 58531 | O139: 5010 | P139: 155 | Q139: 762 | R139: 2508 | S139: 183 | T139: 1355 | U139: 86 | V139: 4854 | W139: 10926 | X139: 3317 | Y139: 611 | Z139: 1719 | AA139: 5279 | AB139: 252 | AC139: 20943 | AD139: 498
D140: 미혼 | E140: 3001 | F140: 130 | G140: - | H140: - | I140: - | J140: 61 | K140: 42 | L140: 27 | M140: 199 | N140: - | O140: - | P140: 155 | Q140: - | R140: - | S140: - | T140: - | U140: - | V140: 44 | W140: 8 | X140: - | Y140: - | Z140: - | AA140: 8 | AB140: - | AC140: 2509 | AD140: 155
D141: 배우자 있음 | E141: 161361 | F141: 79100 | G141: 77637 | H141: 149 | I141: 774 | J141: 4 | K141: 19 | L141: 517 | M141: 68190 | N141: 58531 | O141: 918 | P141: - | Q141: 762 | R141: 2413 | S141: 183 | T141: 1355 | U141: 30 | V141: 3998 | W141: 10191 | X141: 3317 | Y141: 291 | Z141: 1719 | AA141: 4864 | AB141: 252 | AC141: 3531 | AD141: 97
D142: 사별 | E142: 8771 | F142: 101 | G142: - | H142: - | I142: - | J142: 20 | K142: 28 | L142: 53 | M142: 2471 | N142: - | O142: 2072 | P142: - | Q142: - | R142: 78 | S142: - | T142: - | U142: 16 | V142: 305 | W142: 396 | X142: - | Y142: 209 | Z142: - | AA142: 187 | AB142: - | AC142: 5703 | AD142: 100
D143: 이혼 | E143: 12487 | F143: 226 | G143: - | H143: - | I143: - | J143: 32 | K143: 90 | L143: 104 | M143: 2584 | N143: - | O143: 2020 | P143: - | Q143: - | R143: 17 | S143: - | T143: - | U143: 40 | V143: 507 | W143: 331 | X143: - | Y143: 111 | Z143: - | AA143: 220 | AB143: - | AC143: 9200 | AD143: 146
C144: 70 ~ 74세 | D144: 합계 | E144: 142201 | F144: 72718 | G144: 71348 | H144: 85 | I144: 656 | J144: 47 | K144: 167 | L144: 415 | M144: 42601 | N144: 32106 | O144: 3417 | P144: 27 | Q144: 368 | R144: 1084 | S144: 84 | T144: 1534 | U144: 165 | V144: 3816 | W144: 10098 | X144: 3613 | Y144: 642 | Z144: 477 | AA144: 5366 | AB144: 86 | AC144: 16464 | AD144: 234
D145: 미혼 | E145: 1451 | F145: 38 | G145: - | H145: - | I145: - | J145: 14 | K145: 11 | L145: 13 | M145: 34 | N145: - | O145: - | P145: 27 | Q145: - | R145: - | S145: - | T145: - | U145: - | V145: 7 | W145: - | X145: - | Y145: - | Z145: - | AA145: - | AB145: - | AC145: 1326 | AD145: 53
D146: 배우자 있음 | E146: 123337 | F146: 72462 | G146: 71348 | H146: 85 | I146: 656 | J146: - | K146: 31 | L146: 342 | M146: 39034 | N146: 32106 | O146: 584 | P146: - | Q146: 368 | R146: 993 | S146: 84 | T146: 1534 | U146: 8 | V146: 3357 | W146: 9305 | X146: 3613 | Y146: 148 | Z146: 477 | AA146: 5067 | AB146: 68 | AC146: 2390 | AD146: 78
D147: 사별 | E147: 10691 | F147: 125 | G147: - | H147: - | I147: - | J147: 24 | K147: 56 | L147: 45 | M147: 2475 | N147: - | O147: 1952 | P147: - | Q147: - | R147: 79 | S147: - | T147: - | U147: 127 | V147: 317 | W147: 628 | X147: - | Y147: 412 | Z147: - | AA147: 216 | AB147: 18 | AC147: 7407 | AD147: 38
D148: 이혼 | E148: 6722 | F148: 93 | G148: - | H148: - | I148: - | J148: 9 | K148: 69 | L148: 15 | M148: 1058 | N148: - | O148: 881 | P148: - | Q148: - | R148: 12 | S148: - | T148: - | U148: 30 | V148: 135 | W148: 165 | X148: - | Y148: 82 | Z148: - | AA148: 83 | AB148: - | AC148: 5341 | AD148: 65
C149: 75 ~ 79세 | D149: 합계 | E149: 88774 | F149: 48067 | G149: 47265 | H149: 55 | I149: 315 | J149: 10 | K149: 102 | L149: 320 | M149: 22855 | N149: 15409 | O149: 2055 | P149: - | Q149: 501 | R149: 286 | S149: 13 | T149: 1560 | U149: 194 | V149: 2837 | W149: 7137 | X149: 2608 | Y149: 642 | Z149: 85 | AA149: 3802 | AB149: 39 | AC149: 10496 | AD149: 180
D150: 미혼 | E150: 602 | F150: 57 | G150: - | H150: - | I150: - | J150: - | K150: 36 | L150: 21 | M150: - | N150: - | O150: - | P150: - | Q150: - | R150: - | S150: - | T150: - | U150: - | V150: - | W150: - | X150: - | Y150: - | Z150: - | AA150: - | AB150: - | AC150: 517 | AD150: 28
D151: 배우자 있음 | E151: 76206 | F151: 47931 | G151: 47265 | H151: 55 | I151: 315 | J151: - | K151: 28 | L151: 268 | M151: 20405 | N151: 15409 | O151: 311 | P151: - | Q151: 501 | R151: 189 | S151: 13 | T151: 1560 | U151: 29 | V151: 2393 | W151: 6304 | X151: 2608 | Y151: 64 | Z151: 85 | AA151: 3547 | AB151: 30 | AC151: 1493 | AD151: 43
D152: 사별 | E152: 9294 | F152: 60 | G152: - | H152: - | I152: - | J152: 10 | K152: 24 | L152: 26 | M152: 2098 | N152: - | O152: 1495 | P152: - | Q152: - | R152: 78 | S152: - | T152: - | U152: 140 | V152: 385 | W152: 754 | X152: - | Y152: 551 | Z152: - | AA152: 203 | AB152: 9 | AC152: 6274 | AD152: 99
D153: 이혼 | E153: 2672 | F153: 19 | G153: - | H153: - | I153: - | J153: - | K153: 14 | L153: 5 | M153: 352 | N153: - | O153: 249 | P153: - | Q153: - | R153: 19 | S153: - | T153: - | U153: 25 | V153: 59 | W153: 79 | X153: - | Y153: 27 | Z153: - | AA153: 52 | AB153: - | AC153: 2212 | AD153: 10
C154: 80 ~ 84세 | D154: 합계 | E154: 38865 | F154: 21631 | G154: 21335 | H154: 26 | I154: 118 | J154: 6 | K154: 64 | L154: 82 | M154: 8508 | N154: 4669 | O154: 797 | P154: - | Q154: 229 | R154: 81 | S154: - | T154: 751 | U154: 152 | V154: 1829 | W154: 3173 | X154: 1050 | Y154: 410 | Z154: 6 | AA154: 1707 | AB154: 19 | AC154: 5441 | AD154: 93
D155: 미혼 | E155: 126 | F155: 5 | G155: - | H155: - | I155: - | J155: - | K155: 5 | L155: - | M155: - | N155: - | O155: - | P155: - | Q155: - | R155: - | S155: - | T155: - | U155: - | V155: - | W155: - | X155: - | Y155: - | Z155: - | AA155: - | AB155: - | AC155: 106 | AD155: 15
D156: 배우자 있음 | E156: 32227 | F156: 21566 | G156: 21335 | H156: 26 | I156: 118 | J156: - | K156: 5 | L156: 82 | M156: 7324 | N156: 4669 | O156: 103 | P156: - | Q156: 229 | R156: - | S156: - | T156: 751 | U156: 35 | V156: 1537 | W156: 2610 | X156: 1050 | Y156: 60 | Z156: 6 | AA156: 1494 | AB156: 14 | AC156: 693 | AD156: 20
D157: 사별 | E157: 5825 | F157: 48 | G157: - | H157: - | I157: - | J157: 6 | K157: 42 | L157: - | M157: 1112 | N157: - | O157: 659 | P157: - | Q157: - | R157: 81 | S157: - | T157: - | U157: 97 | V157: 275 | W157: 543 | X157: - | Y157: 342 | Z157: - | AA157: 201 | AB157: 5 | AC157: 4059 | AD157: 58
D158: 이혼 | E158: 687 | F158: 12 | G158: - | H158: - | I158: - | J158: - | K158: 12 | L158: - | M158: 72 | N158: - | O158: 35 | P158: - | Q158: - | R158: - | S158: - | T158: - | U158: 20 | V158: 17 | W158: 20 | X158: - | Y158: 8 | Z158: - | AA158: 12 | AB158: - | AC158: 583 | AD158: -
C159: 85세이상 | D159: 합계 | E159: 15957 | F159: 8494 | G159: 8330 | H159: 25 | I159: 26 | J159: 7 | K159: 34 | L159: 72 | M159: 3157 | N159: 1249 | O159: 291 | P159: - | Q159: 138 | R159: 64 | S159: - | T159: 322 | U159: 117 | V159: 976 | W159: 1241 | X159: 381 | Y159: 226 | Z159: 5 | AA159: 629 | AB159: 26 | AC159: 2974 | AD159: 65
D160: 미혼 | E160: 86 | F160: 12 | G160: - | H160: - | I160: - | J160: 7 | K160: 5 | L160: - | M160: - | N160: - | O160: - | P160: - | Q160: - | R160: - | S160: - | T160: - | U160: - | V160: - | W160: - | X160: - | Y160: - | Z160: - | AA160: - | AB160: - | AC160: 58 | AD160: 16
D161: 배우자 있음 | E161: 12067 | F161: 8459 | G161: 8330 | H161: 25 | I161: 26 | J161: - | K161: 14 | L161: 64 | M161: 2500 | N161: 1249 | O161: 35 | P161: - | Q161: 138 | R161: - | S161: - | T161: 322 | U161: 20 | V161: 736 | W161: 847 | X161: 381 | Y161: 21 | Z161: 5 | AA161: 440 | AB161: 20 | AC161: 214 | AD161: 27
D162: 사별 | E162: 3579 | F162: 23 | G162: - | H162: - | I162: - | J162: - | K162: 15 | L162: 8 | M162: 631 | N162: - | O162: 250 | P162: - | Q162: - | R162: 64 | S162: - | T162: - | U162: 97 | V162: 220 | W162: 381 | X162: - | Y162: 197 | Z162: - | AA162: 184 | AB162: 6 | AC162: 2516 | AD162: 22
D163: 이혼 | E163: 225 | F163: - | G163: - | H163: - | I163: - | J163: - | K163: - | L163: - | M163: 26 | N163: - | O163: 6 | P163: - | Q163: - | R163: - | S163: - | T163: - | U163: - | V163: 20 | W163: 13 | X163: - | Y163: 8 | Z163: - | AA163: 5 | AB163: - | AC163: 186 | AD163: -
B164: 여자 | C164: 합계 | D164: 합계 | E164: 1199259 | F164: 102940 | G164: 46212 | H164: 529 | I164: 314 | J164: 41343 | K164: 9793 | L164: 4749 | M164: 430455 | N164: 86508 | O164: 2032 | P164: 292688 | Q164: 302 | R164: 3936 | S164: 992 | T164: 446 | U164: 8938 | V164: 34613 | W164: 45935 | X164: 1580 | Y164: 545 | Z164: 14819 | AA164: 28991 | AB164: 420 | AC164: 603317 | AD164: 16192
D165: 미혼 | E165: 406930 | F165: 48115 | G165: - | H165: - | I165: - | J165: 39520 | K165: 6129 | L165: 2466 | M165: 29219 | N165: 5247 | O165: 2032 | P165: 17717 | Q165: - | R165: - | S165: 42 | T165: 14 | U165: 669 | V165: 3498 | W165: 1237 | X165: - | Y165: 11 | Z165: 119 | AA165: 1107 | AB165: 11 | AC165: 315590 | AD165: 12758
D166: 배우자 있음 | E166: 271622 | F166: 49321 | G166: 46212 | H166: 529 | I166: 314 | J166: 693 | K166: 817 | L166: 756 | M166: 165347 | N166: 81261 | O166: - | P166: 71503 | Q166: 302 | R166: 1677 | S166: 950 | T166: 432 | U166: 522 | V166: 8700 | W166: 14987 | X166: 1580 | Y166: 534 | Z166: 5071 | AA166: 7802 | AB166: 79 | AC166: 40503 | AD166: 1385
D167: 사별 | E167: 312483 | F167: 2952 | G167: - | H167: - | I167: - | J167: 385 | K167: 1688 | L167: 879 | M167: 116822 | N167: - | O167: - | P167: 94038 | Q167: - | R167: 1890 | S167: - | T167: - | U167: 7035 | V167: 13859 | W167: 21095 | X167: - | Y167: - | Z167: 8426 | AA167: 12669 | AB167: 254 | AC167: 170254 | AD167: 1106
D168: 이혼 | E168: 208224 | F168: 2552 | G168: - | H168: - | I168: - | J168: 745 | K168: 1159 | L168: 648 | M168: 119067 | N168: - | O168: - | P168: 109430 | Q168: - | R168: 369 | S168: - | T168: - | U168: 712 | V168: 8556 | W168: 8616 | X168: - | Y168: - | Z168: 1203 | AA168: 7413 | AB168: 76 | AC168: 76970 | AD168: 943
C169: 15세미만 | D169: 합계 | E169: 31 | F169: 17 | G169: - | H169: - | I169: - | J169: 17 | K169: - | L169: - | M169: - | N169: - | O169: - | P169: - | Q169: - | R169: - | S169: - | T169: - | U169: - | V169: - | W169: - | X169: - | Y169: - | Z169: - | AA169: - | AB169: - | AC169: 14 | AD169: -
D170: 미혼 | E170: 31 | F170: 17 | G170: - | H170: - | I170: - | J170: 17 | K170: - | L170: - | M170: - | N170: - | O170: - | P170: - | Q170: - | R170: - | S170: - | T170: - | U170: - | V170: - | W170: - | X170: - | Y170: - | Z170: - | AA170: - | AB170: - | AC170: 14 | AD170: -
C171: 15 ~ 19세 | D171: 합계 | E171: 8088 | F171: 518 | G171: 8 | H171: - | I171: - | J171: 358 | K171: 146 | L171: 6 | M171: 148 | N171: 29 | O171: 9 | P171: 72 | Q171: - | R171: - | S171: - | T171: - | U171: 24 | V171: 14 | W171: - | X171: - | Y171: - | Z171: - | AA171: - | AB171: 5 | AC171: 6825 | AD171: 592
D172: 미혼 | E172: 8080 | F172: 510 | G172: - | H172: - | I172: - | J172: 358 | K172: 146 | L172: 6 | M172: 148 | N172: 29 | O172: 9 | P172: 72 | Q172: - | R172: - | S172: - | T172: - | U172: 24 | V172: 14 | W172: - | X172: - | Y172: - | Z172: - | AA172: - | AB172: 5 | AC172: 6825 | AD172: 592
D173: 배우자 있음 | E173: 8 | F173: 8 | G173: 8 | H173: - | I173: - | J173: - | K173: - | L173: - | M173: - | N173: - | O173: - | P173: - | Q173: - | R173: - | S173: - | T173: - | U173: - | V173: - | W173: - | X173: - | Y173: - | Z173: - | AA173: - | AB173: - | AC173: - | AD173: -
C174: 20 ~ 24세 | D174: 합계 | E174: 71787 | F174: 8550 | G174: 285 | H174: - | I174: - | J174: 7031 | K174: 1077 | L174: 157 | M174: 2294 | N174: 503 | O174: 189 | P174: 1165 | Q174: - | R174: 11 | S174: 6 | T174: - | U174: 200 | V174: 220 | W174: 96 | X174: - | Y174: 6 | Z174: 29 | AA174: 61 | AB174: - | AC174: 57066 | AD174: 3781
D175: 미혼 | E175: 71013 | F175: 8252 | G175: - | H175: - | I175: - | J175: 7024 | K175: 1077 | L175: 151 | M175: 1934 | N175: 309 | O175: 189 | P175: 1054 | Q175: - | R175: - | S175: - | T175: - | U175: 200 | V175: 182 | W175: 96 | X175: - | Y175: 6 | Z175: 29 | AA175: 61 | AB175: - | AC175: 56981 | AD175: 3750
D176: 배우자 있음 | E176: 664 | F176: 298 | G176: 285 | H176: - | I176: - | J176: 7 | K176: - | L176: 6 | M176: 289 | N176: 194 | O176: - | P176: 59 | Q176: - | R176: 11 | S176: 6 | T176: - | U176: - | V176: 19 | W176: - | X176: - | Y176: - | Z176: - | AA176: - | AB176: - | AC176: 46 | AD176: 31
D177: 사별 | E177: 9 | F177: - | G177: - | H177: - | I177: - | J177: - | K177: - | L177: - | M177: - | N177: - | O177: - | P177: - | Q177: - | R177: - | S177: - | T177: - | U177: - | V177: - | W177: - | X177: - | Y177: - | Z177: - | AA177: - | AB177: - | AC177: 9 | AD177: -
D178: 이혼 | E178: 101 | F178: - | G178: - | H178: - | I178: - | J178: - | K178: - | L178: - | M178: 71 | N178: - | O178: - | P178: 52 | Q178: - | R178: - | S178: - | T178: - | U178: - | V178: 19 | W178: - | X178: - | Y178: - | Z178: - | AA178: - | AB178: - | AC178: 30 | AD178: -
C179: 25 ~ 29세 | D179: 합계 | E179: 109916 | F179: 19916 | G179: 3395 | H179: 65 | I179: - | J179: 14675 | K179: 1398 | L179: 383 | M179: 7115 | N179: 2372 | O179: 468 | P179: 3487 | Q179: 6 | R179: 45 | S179: 34 | T179: 5 | U179: 209 | V179: 489 | W179: 302 | X179: 7 | Y179: 10 | Z179: 106 | AA179: 179 | AB179: - | AC179: 79003 | AD179: 3580
D180: 미혼 | E180: 102563 | F180: 16295 | G180: - | H180: - | I180: - | J180: 14571 | K180: 1369 | L180: 355 | M180: 4888 | N180: 1087 | O180: 468 | P180: 2790 | Q180: - | R180: - | S180: - | T180: 5 | U180: 209 | V180: 329 | W180: 127 | X180: - | Y180: - | Z180: 50 | AA180: 77 | AB180: - | AC180: 77813 | AD180: 3440
D181: 배우자 있음 | E181: 6802 | F181: 3613 | G181: 3395 | H181: 65 | I181: - | J181: 96 | K181: 29 | L181: 28 | M181: 1906 | N181: 1285 | O181: - | P181: 416 | Q181: 6 | R181: 45 | S181: 34 | T181: - | U181: - | V181: 120 | W181: 132 | X181: 7 | Y181: 10 | Z181: 56 | AA181: 59 | AB181: - | AC181: 1011 | AD181: 140
D182: 사별 | E182: 46 | F182: - | G182: - | H182: - | I182: - | J182: - | K182: - | L182: - | M182: 34 | N182: - | O182: - | P182: 24 | Q182: - | R182: - | S182: - | T182: - | U182: - | V182: 10 | W182: 6 | X182: - | Y182: - | Z182: - | AA182: 6 | AB182: - | AC182: 6 | AD182: -
D183: 이혼 | E183: 505 | F183: 8 | G183: - | H183: - | I183: - | J183: 8 | K183: - | L183: - | M183: 287 | N183: - | O183: - | P183: 257 | Q183: - | R183: - | S183: - | T183: - | U183: - | V183: 30 | W183: 37 | X183: - | Y183: - | Z183: - | AA183: 37 | AB183: - | AC183: 173 | AD183: -
C184: 30 ~ 34세 | D184: 합계 | E184: 106087 | F184: 19374 | G184: 8364 | H184: 177 | I184: 18 | J184: 9461 | K184: 967 | L184: 387 | M184: 19596 | N184: 10304 | O184: 357 | P184: 7323 | Q184: 48 | R184: 147 | S184: 212 | T184: 9 | U184: 145 | V184: 1051 | W184: 1484 | X184: 130 | Y184: 59 | Z184: 431 | AA184: 864 | AB184: - | AC184: 63607 | AD184: 2026
D185: 미혼 | E185: 77928 | F185: 10430 | G185: - | H185: - | I185: - | J185: 9232 | K185: 882 | L185: 316 | M185: 5666 | N185: 1286 | O185: 357 | P185: 3496 | Q185: - | R185: - | S185: 15 | T185: 9 | U185: 145 | V185: 358 | W185: 187 | X185: - | Y185: 5 | Z185: 25 | AA185: 157 | AB185: - | AC185: 59790 | AD185: 1855
D186: 배우자 있음 | E186: 25252 | F186: 8854 | G186: 8364 | H186: 177 | I186: 18 | J186: 160 | K186: 75 | L186: 60 | M186: 12403 | N186: 9018 | O186: - | P186: 2471 | Q186: 48 | R186: 147 | S186: 197 | T186: - | U186: - | V186: 522 | W186: 1091 | X186: 130 | Y186: 54 | Z186: 406 | AA186: 501 | AB186: - | AC186: 2746 | AD186: 158
D187: 사별 | E187: 132 | F187: - | G187: - | H187: - | I187: - | J187: - | K187: - | L187: - | M187: 84 | N187: - | O187: - | P187: 77 | Q187: - | R187: - | S187: - | T187: - | U187: - | V187: 7 | W187: 23 | X187: - | Y187: - | Z187: - | AA187: 23 | AB187: - | AC187: 25 | AD187: -
D188: 이혼 | E188: 2775 | F188: 90 | G188: - | H188: - | I188: - | J188: 69 | K188: 10 | L188: 11 | M188: 1443 | N188: - | O188: - | P188: 1279 | Q188: - | R188: - | S188: - | T188: - | U188: - | V188: 164 | W188: 183 | X188: - | Y188: - | Z188: - | AA188: 183 | AB188: - | AC188: 1046 | AD188: 13
C189: 35 ~ 39세 | D189: 합계 | E189: 90196 | F189: 10578 | G189: 5010 | H189: 113 | I189: 18 | J189: 4144 | K189: 847 | L189: 446 | M189: 31631 | N189: 15350 | O189: 366 | P189: 13478 | Q189: 27 | R189: 133 | S189: 223 | T189: - | U189: 62 | V189: 1992 | W189: 2989 | X189: 299 | Y189: 144 | Z189: 793 | AA189: 1753 | AB189: 39 | AC189: 43723 | AD189: 1236
D190: 미혼 | E190: 48959 | F190: 5000 | G190: - | H190: - | I190: - | J190: 3933 | K190: 733 | L190: 334 | M190: 4639 | N190: 1005 | O190: 366 | P190: 2722 | Q190: - | R190: - | S190: 15 | T190: - | U190: 62 | V190: 469 | W190: 192 | X190: - | Y190: - | Z190: 15 | AA190: 177 | AB190: - | AC190: 38039 | AD190: 1089
D191: 배우자 있음 | E191: 31128 | F191: 5421 | G191: 5010 | H191: 113 | I191: 18 | J191: 144 | K191: 36 | L191: 100 | M191: 20809 | N191: 14345 | O191: - | P191: 5069 | Q191: 27 | R191: 133 | S191: 208 | T191: - | U191: - | V191: 1027 | W191: 2072 | X191: 299 | Y191: 144 | Z191: 778 | AA191: 851 | AB191: 18 | AC191: 2684 | AD191: 124
D192: 사별 | E192: 966 | F192: 22 | G192: - | H192: - | I192: - | J192: 8 | K192: 14 | L192: - | M192: 769 | N192: - | O192: - | P192: 717 | Q192: - | R192: - | S192: - | T192: - | U192: - | V192: 52 | W192: 81 | X192: - | Y192: - | Z192: - | AA192: 81 | AB192: 5 | AC192: 89 | AD192: -
D193: 이혼 | E193: 9143 | F193: 135 | G193: - | H193: - | I193: - | J193: 59 | K193: 64 | L193: 12 | M193: 5414 | N193: - | O193: - | P193: 4970 | Q193: - | R193: - | S193: - | T193: - | U193: - | V193: 444 | W193: 644 | X193: - | Y193: - | Z193: - | AA193: 644 | AB193: 16 | AC193: 2911 | AD193: 23
C194: 40 ~ 44세 | D194: 합계 | E194: 100825 | F194: 6718 | G194: 3011 | H194: 46 | I194: 27 | J194: 2360 | K194: 738 | L194: 536 | M194: 51311 | N194: 14989 | O194: 295 | P194: 32671 | Q194: 27 | R194: 262 | S194: 168 | T194: - | U194: 22 | V194: 2877 | W194: 4504 | X194: 235 | Y194: 136 | Z194: 1028 | AA194: 3105 | AB194: 20 | AC194: 37380 | AD194: 892
D195: 미혼 | E195: 36462 | F195: 3089 | G195: - | H195: - | I195: - | J195: 2141 | K195: 564 | L195: 384 | M195: 4788 | N195: 910 | O195: 295 | P195: 3039 | Q195: - | R195: - | S195: - | T195: - | U195: 22 | V195: 522 | W195: 243 | X195: - | Y195: - | Z195: - | AA195: 243 | AB195: 6 | AC195: 27625 | AD195: 711
D196: 배우자 있음 | E196: 35701 | F196: 3334 | G196: 3011 | H196: 46 | I196: 27 | J196: 87 | K196: 70 | L196: 93 | M196: 26351 | N196: 14079 | O196: - | P196: 10809 | Q196: 27 | R196: 239 | S196: 168 | T196: - | U196: - | V196: 1029 | W196: 2555 | X196: 235 | Y196: 136 | Z196: 1013 | AA196: 1171 | AB196: - | AC196: 3363 | AD196: 98
D197: 사별 | E197: 3224 | F197: 36 | G197: - | H197: - | I197: - | J197: - | K197: 16 | L197: 20 | M197: 2673 | N197: - | O197: - | P197: 2493 | Q197: - | R197: 7 | S197: - | T197: - | U197: - | V197: 173 | W197: 181 | X197: - | Y197: - | Z197: - | AA197: 181 | AB197: - | AC197: 328 | AD197: 6
D198: 이혼 | E198: 25438 | F198: 259 | G198: - | H198: - | I198: - | J198: 132 | K198: 88 | L198: 39 | M198: 17499 | N198: - | O198: - | P198: 16330 | Q198: - | R198: 16 | S198: - | T198: - | U198: - | V198: 1153 | W198: 1525 | X198: - | Y198: - | Z198: 15 | AA198: 1510 | AB198: 14 | AC198: 6064 | AD198: 77
C199: 45 ~ 49세 | D199: 합계 | E199: 110408 | F199: 5227 | G199: 2977 | H199: 33 | I199: 34 | J199: 1132 | K199: 664 | L199: 387 | M199: 68612 | N199: 13560 | O199: 158 | P199: 50893 | Q199: 12 | R199: 181 | S199: 168 | T199: - | U199: 13 | V199: 3627 | W199: 4188 | X199: 112 | Y199: 71 | Z199: 756 | AA199: 3249 | AB199: - | AC199: 31778 | AD199: 603
D200: 미혼 | E200: 22007 | F200: 1638 | G200: - | H200: - | I200: - | J200: 971 | K200: 397 | L200: 270 | M200: 2918 | N200: 380 | O200: 158 | P200: 1779 | Q200: - | R200: - | S200: 12 | T200: - | U200: 7 | V200: 582 | W200: 146 | X200: - | Y200: - | Z200: - | AA200: 146 | AB200: - | AC200: 16993 | AD200: 312
D201: 배우자 있음 | E201: 40471 | F201: 3308 | G201: 2977 | H201: 33 | I201: 34 | J201: 51 | K201: 149 | L201: 64 | M201: 30715 | N201: 13180 | O201: - | P201: 15940 | Q201: 12 | R201: 164 | S201: 156 | T201: - | U201: - | V201: 1263 | W201: 2016 | X201: 112 | Y201: 71 | Z201: 719 | AA201: 1114 | AB201: - | AC201: 4305 | AD201: 127
... 260 more rows

Sheet 은평구 여성가구주 현황 추이(2005~2015년)
A1: 은평구 여성가구주 현황 추이(2005~2015년)
H3: POPULATION 129
A4: 17. 여성가구주 현황 Female Households
A5: 단위 : 가구, % | F5: Unit : household, %
B6: 일반가구수1) No. of general households | C6: 혼인상태별 여성가구주 가구수 Number of households with female breadwinner by marriage status | H6: 여성가구주 가구 비율 Female Households rate
C7: 계 Total | D7: 유배우 Married | E7: 사별 Widowed | F7: 이혼 Divorce | G7: 미혼 Never married
A8: 2000 | B8: 133971 | C8: 25270 | D8: 5374 | E8: 9731 | F8: 4208 | G8: 5957 | H8: 18.9
A9: 2005 | B9: 145477 | C9: 34160 | D9: 6899 | E9: 12228 | F9: 6874 | G9: 8159 | H9: 23.5
A10: 2010 | B10: 154923 | C10: 43075 | D10: 10967 | E10: 13271 | F10: 8943 | G10: 9894 | H10: 27.8041
A11: 2015 | B11: 179794 | C11: 57531 | D11: 13173 | E11: 17142 | F11: 12276 | G11: 14670 | H11: 32
A13: 자료 : 통계청「인구주택총조사」 주 : 1) 일반가구를 대상으로 집계(비혈연가구, 1인가구 포함)단, 집단가구 (6인이상 비혈연가구, 기숙사, 사회시설 등) 및 외국인 가구는 제외 | D13: Source : Statistics Korea「Population and Housing Census」 Note : 1) Counted typical households(not related by blood and one-person-home included), Multiple household (not related by blood if more than 6people, dormitory and other social organizations and etc.) and foreigner household are excluded

Sheet 연령별 출생아수 및 평균출산연령추이(2006~2016년)
A1: 서울시 연령별 출생아수 및 평균출산연령 추이(2006~2016년)
A3: 기간 | B3: 구분 | C3: 모의 평균 출산 연령 | D3: 출생아수 | E3: 모의 연령별 출생아수 | F3: 모의 연령별 출생아수 | G3: 모의 연령별 출생아수 | H3: 모의 연령별 출생아수 | I3: 모의 연령별 출생아수 | J3: 모의 연령별 출생아수 | K3: 모의 연령별 출생아수
A4: 기간 | B4: 구분 | C4: 모의 평균 출산 연령 | D4: 출생아수 | E4: 15-19세 | F4: 20-24세 | G4: 25-29세 | H4: 30-34세 | I4: 35-39세 | J4: 40-44세 | K4: 45-49세
A5: 2006 | B5: 합계 | C5: 31.06 | D5: 92885 | E5: 426 | F5: 3669 | G5: 31908 | H5: 44183 | I5: 11345 | J5: 1152 | K5: 61
A6: 2006 | B6: 종로구 | C6: 31.36 | D6: 1118 | E6: 4 | F6: 41 | G6: 370 | H6: 511 | I6: 168 | J6: 19 | K6: 1
A7: 2006 | B7: 중구 | C7: 31.22 | D7: 1103 | E7: 4 | F7: 48 | G7: 352 | H7: 538 | I7: 139 | J7: 20 | K7: 1
A8: 2006 | B8: 용산구 | C8: 31.27 | D8: 2104 | E8: 6 | F8: 90 | G8: 695 | H8: 963 | I8: 312 | J8: 33 | K8: 3
A9: 2006 | B9: 성동구 | C9: 31.07 | D9: 3422 | E9: 19 | F9: 116 | G9: 1159 | H9: 1697 | I9: 379 | J9: 47 | K9: 2
A10: 2006 | B10: 광진구 | C10: 31.04 | D10: 3531 | E10: 15 | F10: 126 | G10: 1242 | H10: 1637 | I10: 459 | J10: 45 | K10: 1
A11: 2006 | B11: 동대문구 | C11: 30.97 | D11: 3157 | E11: 21 | F11: 149 | G11: 1083 | H11: 1450 | I11: 389 | J11: 57 | K11: -
A12: 2006 | B12: 중랑구 | C12: 30.77 | D12: 3634 | E12: 22 | F12: 236 | G12: 1259 | H12: 1611 | I12: 440 | J12: 51 | K12: 2
A13: 2006 | B13: 성북구 | C13: 31.04 | D13: 4354 | E13: 26 | F13: 184 | G13: 1441 | H13: 2116 | I13: 531 | J13: 52 | K13: 1
A14: 2006 | B14: 강북구 | C14: 30.97 | D14: 2747 | E14: 18 | F14: 159 | G14: 925 | H14: 1230 | I14: 376 | J14: 36 | K14: 1
A15: 2006 | B15: 도봉구 | C15: 31.01 | D15: 3093 | E15: 19 | F15: 131 | G15: 1054 | H15: 1429 | I15: 413 | J15: 35 | K15: 3
A16: 2006 | B16: 노원구 | C16: 31.16 | D16: 5821 | E16: 22 | F16: 196 | G16: 1977 | H16: 2814 | I16: 735 | J16: 66 | K16: 3
A17: 2006 | B17: 은평구 | C17: 30.91 | D17: 4194 | E17: 33 | F17: 195 | G17: 1469 | H17: 1932 | I17: 502 | J17: 57 | K17: 3
A18: 2006 | B18: 서대문구 | C18: 31.21 | D18: 3002 | E18: 17 | F18: 119 | G18: 976 | H18: 1440 | I18: 403 | J18: 36 | K18: 4
A19: 2006 | B19: 마포구 | C19: 31.28 | D19: 4095 | E19: 16 | F19: 124 | G19: 1319 | H19: 2072 | I19: 513 | J19: 44 | K19: 1
A20: 2006 | B20: 양천구 | C20: 31.02 | D20: 4080 | E20: 27 | F20: 166 | G20: 1433 | H20: 1887 | I20: 515 | J20: 44 | K20: 4
A21: 2006 | B21: 강서구 | C21: 30.94 | D21: 5554 | E21: 31 | F21: 205 | G21: 2021 | H21: 2593 | I21: 638 | J21: 59 | K21: 3
A22: 2006 | B22: 구로구 | C22: 30.88 | D22: 4661 | E22: 20 | F22: 174 | G22: 1723 | H22: 2192 | I22: 481 | J22: 60 | K22: 1
A23: 2006 | B23: 금천구 | C23: 30.58 | D23: 2340 | E23: 8 | F23: 148 | G23: 902 | H23: 1001 | I23: 229 | J23: 41 | K23: 1
A24: 2006 | B24: 영등포구 | C24: 31.07 | D24: 4484 | E24: 10 | F24: 162 | G24: 1540 | H24: 2207 | I24: 517 | J24: 37 | K24: 3
A25: 2006 | B25: 동작구 | C25: 31.14 | D25: 4163 | E25: 7 | F25: 157 | G25: 1411 | H25: 2037 | I25: 498 | J25: 45 | K25: 3
A26: 2006 | B26: 관악구 | C26: 30.95 | D26: 5205 | E26: 21 | F26: 226 | G26: 1797 | H26: 2523 | I26: 580 | J26: 49 | K26: -
A27: 2006 | B27: 서초구 | C27: 31.57 | D27: 3571 | E27: 1 | F27: 66 | G27: 1129 | H27: 1844 | I27: 467 | J27: 58 | K27: 4
A28: 2006 | B28: 강남구 | C28: 31.38 | D28: 4272 | E28: 14 | F28: 109 | G28: 1424 | H28: 2071 | I28: 591 | J28: 54 | K28: 7
A29: 2006 | B29: 송파구 | C29: 31.01 | D29: 5326 | E29: 35 | F29: 177 | G29: 1884 | H29: 2538 | I29: 619 | J29: 62 | K29: 5
A30: 2006 | B30: 강동구 | C30: 30.97 | D30: 3854 | E30: 10 | F30: 165 | G30: 1323 | H30: 1850 | I30: 451 | J30: 45 | K30: 4
A31: 2007 | B31: 합계 | C31: 31.23 | D31: 100107 | E31: 418 | F31: 3709 | G31: 33490 | H31: 47174 | I31: 13846 | J31: 1243 | K31: 59
A32: 2007 | B32: 종로구 | C32: 31.42 | D32: 1182 | E32: 7 | F32: 53 | G32: 393 | H32: 504 | I32: 195 | J32: 26 | K32: 2
A33: 2007 | B33: 중구 | C33: 31.22 | D33: 1250 | E33: 3 | F33: 58 | G33: 409 | H33: 573 | I33: 184 | J33: 18 | K33: 1
A34: 2007 | B34: 용산구 | C34: 31.41 | D34: 2391 | E34: 8 | F34: 96 | G34: 747 | H34: 1121 | I34: 388 | J34: 27 | K34: -
A35: 2007 | B35: 성동구 | C35: 31.23 | D35: 3721 | E35: 14 | F35: 135 | G35: 1236 | H35: 1790 | I35: 489 | J35: 44 | K35: 4
A36: 2007 | B36: 광진구 | C36: 31.05 | D36: 3678 | E36: 19 | F36: 146 | G36: 1289 | H36: 1703 | I36: 476 | J36: 36 | K36: 6
A37: 2007 | B37: 동대문구 | C37: 31.24 | D37: 3322 | E37: 22 | F37: 152 | G37: 1091 | H37: 1514 | I37: 484 | J37: 55 | K37: 1
A38: 2007 | B38: 중랑구 | C38: 30.81 | D38: 3854 | E38: 28 | F38: 214 | G38: 1403 | H38: 1629 | I38: 503 | J38: 57 | K38: 1
A39: 2007 | B39: 성북구 | C39: 31.27 | D39: 4789 | E39: 21 | F39: 166 | G39: 1569 | H39: 2313 | I39: 656 | J39: 55 | K39: 2
A40: 2007 | B40: 강북구 | C40: 30.95 | D40: 3097 | E40: 14 | F40: 174 | G40: 1088 | H40: 1396 | I40: 373 | J40: 46 | K40: 3
A41: 2007 | B41: 도봉구 | C41: 31.18 | D41: 3266 | E41: 17 | F41: 141 | G41: 1107 | H41: 1460 | I41: 489 | J41: 42 | K41: 2
A42: 2007 | B42: 노원구 | C42: 31.3 | D42: 6196 | E42: 23 | F42: 198 | G42: 2055 | H42: 2965 | I42: 880 | J42: 65 | K42: 4
A43: 2007 | B43: 은평구 | C43: 31.22 | D43: 4374 | E43: 17 | F43: 202 | G43: 1469 | H43: 1976 | I43: 634 | J43: 59 | K43: 4
A44: 2007 | B44: 서대문구 | C44: 31.37 | D44: 3242 | E44: 15 | F44: 137 | G44: 1005 | H44: 1529 | I44: 505 | J44: 46 | K44: 2
A45: 2007 | B45: 마포구 | C45: 31.54 | D45: 4547 | E45: 15 | F45: 123 | G45: 1431 | H45: 2212 | I45: 703 | J45: 60 | K45: 3
A46: 2007 | B46: 양천구 | C46: 31.27 | D46: 4440 | E46: 12 | F46: 185 | G46: 1481 | H46: 2067 | I46: 619 | J46: 68 | K46: 1
A47: 2007 | B47: 강서구 | C47: 31.11 | D47: 6051 | E47: 32 | F47: 218 | G47: 2129 | H47: 2781 | I47: 804 | J47: 73 | K47: 3
A48: 2007 | B48: 구로구 | C48: 30.97 | D48: 4974 | E48: 21 | F48: 192 | G48: 1675 | H48: 2478 | I48: 558 | J48: 42 | K48: 1
A49: 2007 | B49: 금천구 | C49: 30.99 | D49: 2286 | E49: 15 | F49: 137 | G49: 775 | H49: 1004 | I49: 315 | J49: 36 | K49: -
A50: 2007 | B50: 영등포구 | C50: 31.24 | D50: 4850 | E50: 14 | F50: 145 | G50: 1647 | H50: 2346 | I50: 634 | J50: 54 | K50: 1
A51: 2007 | B51: 동작구 | C51: 31.35 | D51: 4315 | E51: 10 | F51: 121 | G51: 1395 | H51: 2158 | I51: 593 | J51: 33 | K51: 1
A52: 2007 | B52: 관악구 | C52: 31.07 | D52: 5654 | E52: 30 | F52: 213 | G52: 2001 | H52: 2629 | I52: 701 | J52: 67 | K52: 1
A53: 2007 | B53: 서초구 | C53: 31.58 | D53: 3824 | E53: 9 | F53: 69 | G53: 1180 | H53: 1971 | I53: 539 | J53: 52 | K53: 2
A54: 2007 | B54: 강남구 | C54: 31.57 | D54: 4763 | E54: 15 | F54: 114 | G54: 1516 | H54: 2319 | I54: 724 | J54: 63 | K54: 3
A55: 2007 | B55: 송파구 | C55: 31.3 | D55: 5869 | E55: 19 | F55: 170 | G55: 1967 | H55: 2817 | I55: 811 | J55: 66 | K55: 5
A56: 2007 | B56: 강동구 | C56: 31.22 | D56: 4172 | E56: 18 | F56: 150 | G56: 1432 | H56: 1919 | I56: 589 | J56: 53 | K56: 6
A57: 2008 | B57: 합계 | C57: 31.48 | D57: 94736 | E57: 341 | F57: 3235 | G57: 29669 | H57: 45494 | I57: 14352 | J57: 1425 | K57: 63
A58: 2008 | B58: 종로구 | C58: 31.9 | D58: 1176 | E58: 1 | F58: 46 | G58: 329 | H58: 542 | I58: 215 | J58: 36 | K58: 1
A59: 2008 | B59: 중구 | C59: 31.68 | D59: 1141 | E59: 4 | F59: 35 | G59: 342 | H59: 533 | I59: 195 | J59: 24 | K59: 3
A60: 2008 | B60: 용산구 | C60: 31.78 | D60: 2332 | E60: 10 | F60: 72 | G60: 670 | H60: 1105 | I60: 433 | J60: 38 | K60: -
A61: 2008 | B61: 성동구 | C61: 31.49 | D61: 3372 | E61: 17 | F61: 117 | G61: 990 | H61: 1687 | I61: 512 | J61: 43 | K61: 1
A62: 2008 | B62: 광진구 | C62: 31.31 | D62: 3479 | E62: 25 | F62: 119 | G62: 1140 | H62: 1613 | I62: 536 | J62: 42 | K62: 3
A63: 2008 | B63: 동대문구 | C63: 31.53 | D63: 3236 | E63: 18 | F63: 115 | G63: 996 | H63: 1517 | I63: 531 | J63: 48 | K63: 3
A64: 2008 | B64: 중랑구 | C64: 31.11 | D64: 3711 | E64: 25 | F64: 188 | G64: 1246 | H64: 1634 | I64: 535 | J64: 65 | K64: 4
A65: 2008 | B65: 성북구 | C65: 31.56 | D65: 4415 | E65: 29 | F65: 134 | G65: 1340 | H65: 2125 | I65: 703 | J65: 69 | K65: 3
A66: 2008 | B66: 강북구 | C66: 31.26 | D66: 2858 | E66: 18 | F66: 141 | G66: 926 | H66: 1250 | I66: 466 | J66: 51 | K66: 1
A67: 2008 | B67: 도봉구 | C67: 31.3 | D67: 3035 | E67: 26 | F67: 125 | G67: 983 | H67: 1380 | I67: 464 | J67: 49 | K67: 2
A68: 2008 | B68: 노원구 | C68: 31.43 | D68: 5721 | E68: 29 | F68: 183 | G68: 1760 | H68: 2834 | I68: 831 | J68: 71 | K68: 2
A69: 2008 | B69: 은평구 | C69: 31.4 | D69: 3856 | E69: 16 | F69: 176 | G69: 1219 | H69: 1754 | I69: 622 | J69: 59 | K69: 5
A70: 2008 | B70: 서대문구 | C70: 31.74 | D70: 2937 | E70: 11 | F70: 109 | G70: 834 | H70: 1393 | I70: 524 | J70: 59 | K70: 2
A71: 2008 | B71: 마포구 | C71: 31.63 | D71: 4144 | E71: 9 | F71: 124 | G71: 1228 | H71: 2077 | I71: 640 | J71: 63 | K71: 1
A72: 2008 | B72: 양천구 | C72: 31.38 | D72: 4110 | E72: 13 | F72: 173 | G72: 1357 | H72: 1865 | I72: 627 | J72: 68 | K72: 2
A73: 2008 | B73: 강서구 | C73: 31.39 | D73: 5979 | E73: 14 | F73: 231 | G73: 1911 | H73: 2879 | I73: 862 | J73: 73 | K73: 5
A74: 2008 | B74: 구로구 | C74: 31.24 | D74: 4883 | E74: 11 | F74: 178 | G74: 1617 | H74: 2409 | I74: 614 | J74: 47 | K74: 2
A75: 2008 | B75: 금천구 | C75: 31.03 | D75: 2102 | E75: 8 | F75: 111 | G75: 747 | H75: 910 | I75: 275 | J75: 44 | K75: 2
A76: 2008 | B76: 영등포구 | C76: 31.49 | D76: 4453 | E76: 9 | F76: 126 | G76: 1317 | H76: 2346 | I76: 590 | J76: 51 | K76: 5
A77: 2008 | B77: 동작구 | C77: 31.63 | D77: 4044 | E77: 5 | F77: 106 | G77: 1227 | H77: 2056 | I77: 588 | J77: 55 | K77: 3
A78: 2008 | B78: 관악구 | C78: 31.26 | D78: 5306 | E78: 14 | F78: 189 | G78: 1779 | H78: 2535 | I78: 704 | J78: 70 | K78: 4
A79: 2008 | B79: 서초구 | C79: 31.88 | D79: 3846 | E79: 3 | F79: 71 | G79: 1137 | H79: 1935 | I79: 619 | J79: 74 | K79: 3
A80: 2008 | B80: 강남구 | C80: 31.81 | D80: 4586 | E80: 4 | F80: 87 | G80: 1370 | H80: 2311 | I80: 724 | J80: 76 | K80: 1
A81: 2008 | B81: 송파구 | C81: 31.62 | D81: 5995 | E81: 14 | F81: 155 | G81: 1901 | H81: 2851 | I81: 970 | J81: 96 | K81: 4
A82: 2008 | B82: 강동구 | C82: 31.42 | D82: 4019 | E82: 8 | F82: 124 | G82: 1303 | H82: 1953 | I82: 572 | J82: 54 | K82: 1
A83: 2009 | B83: 합계 | C83: 31.66 | D83: 89595 | E83: 314 | F83: 2806 | G83: 26873 | H83: 43101 | I83: 14756 | J83: 1550 | K83: 67
A84: 2009 | B84: 종로구 | C84: 31.88 | D84: 1095 | E84: - | F84: 45 | G84: 302 | H84: 501 | I84: 212 | J84: 30 | K84: -
A85: 2009 | B85: 중구 | C85: 31.6 | D85: 1052 | E85: 8 | F85: 35 | G85: 320 | H85: 492 | I85: 175 | J85: 18 | K85: 1
A86: 2009 | B86: 용산구 | C86: 31.81 | D86: 2159 | E86: 10 | F86: 55 | G86: 649 | H86: 1011 | I86: 386 | J86: 45 | K86: -
A87: 2009 | B87: 성동구 | C87: 31.82 | D87: 2823 | E87: 17 | F87: 76 | G87: 780 | H87: 1395 | I87: 499 | J87: 51 | K87: 2
A88: 2009 | B88: 광진구 | C88: 31.39 | D88: 3258 | E88: 23 | F88: 106 | G88: 1050 | H88: 1557 | I88: 474 | J88: 42 | K88: 6
A89: 2009 | B89: 동대문구 | C89: 31.63 | D89: 2879 | E89: 15 | F89: 110 | G89: 857 | H89: 1336 | I89: 479 | J89: 68 | K89: 4
A90: 2009 | B90: 중랑구 | C90: 31.27 | D90: 3495 | E90: 33 | F90: 147 | G90: 1163 | H90: 1548 | I90: 537 | J90: 58 | K90: -
A91: 2009 | B91: 성북구 | C91: 31.8 | D91: 4218 | E91: 20 | F91: 136 | G91: 1225 | H91: 1976 | I91: 780 | J91: 69 | K91: -
A92: 2009 | B92: 강북구 | C92: 31.44 | D92: 2784 | E92: 17 | F92: 126 | G92: 855 | H92: 1269 | I92: 460 | J92: 48 | K92: 1
A93: 2009 | B93: 도봉구 | C93: 31.44 | D93: 3030 | E93: 16 | F93: 120 | G93: 975 | H93: 1376 | I93: 488 | J93: 52 | K93: 2
A94: 2009 | B94: 노원구 | C94: 31.65 | D94: 5178 | E94: 22 | F94: 140 | G94: 1577 | H94: 2516 | I94: 823 | J94: 93 | K94: 3
A95: 2009 | B95: 은평구 | C95: 31.65 | D95: 3804 | E95: 13 | F95: 154 | G95: 1154 | H95: 1708 | I95: 678 | J95: 87 | K95: 3
A96: 2009 | B96: 서대문구 | C96: 31.83 | D96: 2602 | E96: 12 | F96: 96 | G96: 727 | H96: 1219 | I96: 485 | J96: 56 | K96: 3
A97: 2009 | B97: 마포구 | C97: 31.97 | D97: 3735 | E97: 4 | F97: 104 | G97: 1023 | H97: 1842 | I97: 692 | J97: 60 | K97: 7
A98: 2009 | B98: 양천구 | C98: 31.72 | D98: 3674 | E98: 9 | F98: 119 | G98: 1114 | H98: 1714 | I98: 645 | J98: 62 | K98: 6
A99: 2009 | B99: 강서구 | C99: 31.46 | D99: 5740 | E99: 13 | F99: 201 | G99: 1774 | H99: 2779 | I99: 884 | J99: 84 | K99: 1
A100: 2009 | B100: 구로구 | C100: 31.4 | D100: 4560 | E100: 7 | F100: 149 | G100: 1490 | H100: 2229 | I100: 626 | J100: 55 | K100: 2
A101: 2009 | B101: 금천구 | C101: 31.29 | D101: 1978 | E101: 11 | F101: 101 | G101: 624 | H101: 898 | I101: 300 | J101: 36 | K101: 1
A102: 2009 | B102: 영등포구 | C102: 31.68 | D102: 4119 | E102: 7 | F102: 116 | G102: 1214 | H102: 2023 | I102: 681 | J102: 64 | K102: 3
A103: 2009 | B103: 동작구 | C103: 31.85 | D103: 3829 | E103: 11 | F103: 83 | G103: 1065 | H103: 1980 | I103: 610 | J103: 76 | K103: 1
A104: 2009 | B104: 관악구 | C104: 31.63 | D104: 4836 | E104: 13 | F104: 176 | G104: 1437 | H104: 2335 | I104: 783 | J104: 80 | K104: 5
A105: 2009 | B105: 서초구 | C105: 32.07 | D105: 3746 | E105: 6 | F105: 52 | G105: 995 | H105: 1981 | I105: 640 | J105: 68 | K105: 3
A106: 2009 | B106: 강남구 | C106: 32.06 | D106: 4388 | E106: 2 | F106: 72 | G106: 1232 | H106: 2221 | I106: 763 | J106: 92 | K106: 6
A107: 2009 | B107: 송파구 | C107: 31.64 | D107: 6363 | E107: 15 | F107: 152 | G107: 1950 | H107: 3162 | I107: 991 | J107: 85 | K107: 6
A108: 2009 | B108: 강동구 | C108: 31.6 | D108: 4250 | E108: 10 | F108: 135 | G108: 1321 | H108: 2033 | I108: 665 | J108: 71 | K108: 1
A109: 2010 | B109: 합계 | C109: 31.93 | D109: 93268 | E109: 349 | F109: 2707 | G109: 24631 | H109: 46740 | I109: 16649 | J109: 1977 | K109: 76
A110: 2010 | B110: 종로구 | C110: 32.19 | D110: 1107 | E110: 5 | F110: 33 | G110: 276 | H110: 534 | I110: 220 | J110: 38 | K110: 1
A111: 2010 | B111: 중구 | C111: 32.22 | D111: 1170 | E111: 8 | F111: 30 | G111: 284 | H111: 576 | I111: 239 | J111: 29 | K111: 1
A112: 2010 | B112: 용산구 | C112: 32.1 | D112: 2312 | E112: 5 | F112: 67 | G112: 627 | H112: 1081 | I112: 461 | J112: 66 | K112: 1
A113: 2010 | B113: 성동구 | C113: 32.04 | D113: 2886 | E113: 7 | F113: 75 | G113: 731 | H113: 1491 | I113: 520 | J113: 55 | K113: 5
A114: 2010 | B114: 광진구 | C114: 31.93 | D114: 3366 | E114: 16 | F114: 86 | G114: 918 | H114: 1669 | I114: 589 | J114: 82 | K114: 3
A115: 2010 | B115: 동대문구 | C115: 32.04 | D115: 2880 | E115: 10 | F115: 89 | G115: 738 | H115: 1428 | I115: 549 | J115: 61 | K115: 3
A116: 2010 | B116: 중랑구 | C116: 31.71 | D116: 3570 | E116: 19 | F116: 160 | G116: 983 | H116: 1678 | I116: 645 | J116: 76 | K116: 1
A117: 2010 | B117: 성북구 | C117: 32.11 | D117: 4409 | E117: 18 | F117: 123 | G117: 1103 | H117: 2170 | I117: 889 | J117: 95 | K117: 3
A118: 2010 | B118: 강북구 | C118: 31.73 | D118: 2801 | E118: 12 | F118: 131 | G118: 792 | H118: 1270 | I118: 527 | J118: 59 | K118: 4
A119: 2010 | B119: 도봉구 | C119: 31.63 | D119: 3158 | E119: 13 | F119: 128 | G119: 922 | H119: 1473 | I119: 557 | J119: 63 | K119: 1
A120: 2010 | B120: 노원구 | C120: 31.94 | D120: 5298 | E120: 17 | F120: 141 | G120: 1370 | H120: 2720 | I120: 926 | J120: 117 | K120: 1
A121: 2010 | B121: 은평구 | C121: 31.78 | D121: 4095 | E121: 17 | F121: 168 | G121: 1123 | H121: 1970 | I121: 733 | J121: 81 | K121: 1
A122: 2010 | B122: 서대문구 | C122: 32.09 | D122: 2713 | E122: 15 | F122: 88 | G122: 682 | H122: 1328 | I122: 504 | J122: 82 | K122: 4
A123: 2010 | B123: 마포구 | C123: 32.18 | D123: 3824 | E123: 11 | F123: 91 | G123: 917 | H123: 1964 | I123: 746 | J123: 85 | K123: 4
A124: 2010 | B124: 양천구 | C124: 31.88 | D124: 3678 | E124: 10 | F124: 116 | G124: 971 | H124: 1889 | I124: 607 | J124: 78 | K124: 3
A125: 2010 | B125: 강서구 | C125: 31.79 | D125: 5720 | E125: 21 | F125: 180 | G125: 1569 | H125: 2864 | I125: 975 | J125: 103 | K125: 4
A126: 2010 | B126: 구로구 | C126: 31.82 | D126: 4770 | E126: 24 | F126: 129 | G126: 1247 | H126: 2489 | I126: 794 | J126: 79 | K126: 4
A127: 2010 | B127: 금천구 | C127: 31.62 | D127: 2002 | E127: 16 | F127: 84 | G127: 568 | H127: 942 | I127: 326 | J127: 48 | K127: 5
A128: 2010 | B128: 영등포구 | C128: 32.01 | D128: 4289 | E128: 16 | F128: 84 | G128: 1120 | H128: 2231 | I128: 748 | J128: 77 | K128: 1
A129: 2010 | B129: 동작구 | C129: 32.08 | D129: 3847 | E129: 9 | F129: 81 | G129: 981 | H129: 1990 | I129: 707 | J129: 66 | K129: 4
A130: 2010 | B130: 관악구 | C130: 31.75 | D130: 4738 | E130: 24 | F130: 176 | G130: 1280 | H130: 2343 | I130: 794 | J130: 104 | K130: 5
A131: 2010 | B131: 서초구 | C131: 32.42 | D131: 4403 | E131: 6 | F131: 68 | G131: 1041 | H131: 2261 | I131: 900 | J131: 122 | K131: 3
A132: 2010 | B132: 강남구 | C132: 32.17 | D132: 4836 | E132: 12 | F132: 76 | G132: 1213 | H132: 2541 | I132: 873 | J132: 105 | K132: 6
A133: 2010 | B133: 송파구 | C133: 31.87 | D133: 6750 | E133: 18 | F133: 162 | G133: 1839 | H133: 3492 | I133: 1112 | J133: 122 | K133: 3
A134: 2010 | B134: 강동구 | C134: 31.62 | D134: 4646 | E134: 20 | F134: 141 | G134: 1336 | H134: 2346 | I134: 708 | J134: 84 | K134: 5
A135: 2011 | B135: 합계 | C135: 32.11 | D135: 91526 | E135: 302 | F135: 2739 | G135: 22379 | H135: 46716 | I135: 17060 | J135: 2192 | K135: 82
A136: 2011 | B136: 종로구 | C136: 32.24 | D136: 1103 | E136: 3 | F136: 44 | G136: 269 | H136: 521 | I136: 226 | J136: 40 | K136: -
A137: 2011 | B137: 중구 | C137: 32.4 | D137: 1105 | E137: 2 | F137: 39 | G137: 252 | H137: 534 | I137: 228 | J137: 45 | K137: 4
A138: 2011 | B138: 용산구 | C138: 32.56 | D138: 2309 | E138: 2 | F138: 63 | G138: 486 | H138: 1182 | I138: 492 | J138: 80 | K138: 2
A139: 2011 | B139: 성동구 | C139: 32.32 | D139: 2776 | E139: 11 | F139: 56 | G139: 620 | H139: 1464 | I139: 556 | J139: 67 | K139: 2
A140: 2011 | B140: 광진구 | C140: 32.06 | D140: 3184 | E140: 11 | F140: 86 | G140: 792 | H140: 1664 | I140: 547 | J140: 80 | K140: 2
A141: 2011 | B141: 동대문구 | C141: 32.14 | D141: 2947 | E141: 10 | F141: 105 | G141: 727 | H141: 1447 | I141: 565 | J141: 87 | K141: 4
A142: 2011 | B142: 중랑구 | C142: 31.76 | D142: 3450 | E142: 16 | F142: 176 | G142: 889 | H142: 1664 | I142: 619 | J142: 81 | K142: -
A143: 2011 | B143: 성북구 | C143: 32.23 | D143: 4414 | E143: 7 | F143: 119 | G143: 1046 | H143: 2277 | I143: 849 | J143: 109 | K143: 5
A144: 2011 | B144: 강북구 | C144: 31.82 | D144: 2789 | E144: 16 | F144: 140 | G144: 741 | H144: 1271 | I144: 533 | J144: 84 | K144: 2
A145: 2011 | B145: 도봉구 | C145: 31.81 | D145: 3005 | E145: 11 | F145: 131 | G145: 813 | H145: 1396 | I145: 579 | J145: 69 | K145: 3
A146: 2011 | B146: 노원구 | C146: 32.08 | D146: 5063 | E146: 16 | F146: 155 | G146: 1238 | H146: 2621 | I146: 918 | J146: 108 | K146: 6
A147: 2011 | B147: 은평구 | C147: 32.05 | D147: 4318 | E147: 20 | F147: 156 | G147: 1072 | H147: 2095 | I147: 868 | J147: 100 | K147: 4
A148: 2011 | B148: 서대문구 | C148: 32.15 | D148: 2368 | E148: 20 | F148: 70 | G148: 584 | H148: 1164 | I148: 457 | J148: 68 | K148: 3
A149: 2011 | B149: 마포구 | C149: 32.39 | D149: 3859 | E149: 9 | F149: 94 | G149: 895 | H149: 1944 | I149: 835 | J149: 79 | K149: 2
A150: 2011 | B150: 양천구 | C150: 32.09 | D150: 3727 | E150: 13 | F150: 122 | G150: 926 | H150: 1875 | I150: 676 | J150: 108 | K150: 5
A151: 2011 | B151: 강서구 | C151: 31.84 | D151: 5753 | E151: 8 | F151: 193 | G151: 1514 | H151: 2969 | I151: 959 | J151: 106 | K151: 3
A152: 2011 | B152: 구로구 | C152: 31.97 | D152: 4633 | E152: 21 | F152: 121 | G152: 1181 | H152: 2402 | I152: 816 | J152: 87 | K152: 4
A153: 2011 | B153: 금천구 | C153: 31.8 | D153: 1927 | E153: 17 | F153: 91 | G153: 496 | H153: 916 | I153: 358 | J153: 43 | K153: 3
A154: 2011 | B154: 영등포구 | C154: 32.07 | D154: 4050 | E154: 10 | F154: 99 | G154: 970 | H154: 2213 | I154: 676 | J154: 76 | K154: 3
A155: 2011 | B155: 동작구 | C155: 32.25 | D155: 3837 | E155: 9 | F155: 83 | G155: 947 | H155: 1946 | I155: 751 | J155: 96 | K155: 2
A156: 2011 | B156: 관악구 | C156: 32.02 | D156: 4729 | E156: 17 | F156: 169 | G156: 1137 | H156: 2441 | I156: 838 | J156: 117 | K156: 4
A157: 2011 | B157: 서초구 | C157: 32.45 | D157: 4190 | E157: 8 | F157: 62 | G157: 932 | H157: 2252 | I157: 835 | J157: 92 | K157: 5
A158: 2011 | B158: 강남구 | C158: 32.47 | D158: 4761 | E158: 2 | F158: 76 | G158: 1085 | H158: 2537 | I158: 915 | J158: 136 | K158: 5
A159: 2011 | B159: 송파구 | C159: 32.12 | D159: 6574 | E159: 14 | F159: 154 | G159: 1592 | H159: 3496 | I159: 1168 | J159: 146 | K159: 3
A160: 2011 | B160: 강동구 | C160: 31.91 | D160: 4655 | E160: 29 | F160: 135 | G160: 1175 | H160: 2425 | I160: 796 | J160: 88 | K160: 6
A161: 2012 | B161: 합계 | C161: 32.26 | D161: 93914 | E161: 353 | F161: 2652 | G161: 20545 | H161: 49918 | I161: 17898 | J161: 2463 | K161: 68
A162: 2012 | B162: 종로구 | C162: 32.65 | D162: 1100 | E162: 1 | F162: 33 | G162: 216 | H162: 570 | I162: 235 | J162: 43 | K162: 1
A163: 2012 | B163: 중구 | C163: 32.3 | D163: 1215 | E163: 9 | F163: 34 | G163: 279 | H163: 614 | I163: 239 | J163: 40 | K163: -
A164: 2012 | B164: 용산구 | C164: 32.56 | D164: 2411 | E164: 5 | F164: 48 | G164: 483 | H164: 1274 | I164: 529 | J164: 72 | K164: -
A165: 2012 | B165: 성동구 | C165: 32.34 | D165: 2835 | E165: 13 | F165: 78 | G165: 592 | H165: 1499 | I165: 587 | J165: 65 | K165: 1
A166: 2012 | B166: 광진구 | C166: 32.23 | D166: 3319 | E166: 10 | F166: 89 | G166: 749 | H166: 1761 | I166: 639 | J166: 68 | K166: 1
A167: 2012 | B167: 동대문구 | C167: 32.27 | D167: 2963 | E167: 12 | F167: 87 | G167: 668 | H167: 1508 | I167: 604 | J167: 83 | K167: 1
A168: 2012 | B168: 중랑구 | C168: 31.9 | D168: 3659 | E168: 25 | F168: 152 | G168: 861 | H168: 1885 | I168: 640 | J168: 92 | K168: 4
A169: 2012 | B169: 성북구 | C169: 32.29 | D169: 4217 | E169: 19 | F169: 127 | G169: 922 | H169: 2196 | I169: 835 | J169: 113 | K169: 4
A170: 2012 | B170: 강북구 | C170: 31.94 | D170: 2818 | E170: 21 | F170: 125 | G170: 669 | H170: 1407 | I170: 517 | J170: 76 | K170: 3
A171: 2012 | B171: 도봉구 | C171: 32.04 | D171: 3083 | E171: 15 | F171: 118 | G171: 701 | H171: 1584 | I171: 604 | J171: 58 | K171: -
A172: 2012 | B172: 노원구 | C172: 32.35 | D172: 5296 | E172: 8 | F172: 141 | G172: 1110 | H172: 2874 | I172: 1006 | J172: 155 | K172: 2
A173: 2012 | B173: 은평구 | C173: 32.27 | D173: 4654 | E173: 27 | F173: 182 | G173: 991 | H173: 2382 | I173: 927 | J173: 141 | K173: 4
A174: 2012 | B174: 서대문구 | C174: 32.36 | D174: 2470 | E174: 15 | F174: 73 | G174: 525 | H174: 1269 | I174: 503 | J174: 78 | K174: 5
A175: 2012 | B175: 마포구 | C175: 32.46 | D175: 3797 | E175: 20 | F175: 93 | G175: 783 | H175: 1985 | I175: 798 | J175: 115 | K175: 2
A176: 2012 | B176: 양천구 | C176: 32.25 | D176: 3869 | E176: 16 | F176: 100 | G176: 841 | H176: 2128 | I176: 673 | J176: 110 | K176: 1
A177: 2012 | B177: 강서구 | C177: 32.07 | D177: 5875 | E177: 8 | F177: 171 | G177: 1410 | H177: 3129 | I177: 1033 | J177: 122 | K177: 1
A178: 2012 | B178: 구로구 | C178: 32.19 | D178: 4936 | E178: 18 | F178: 140 | G178: 1090 | H178: 2673 | I178: 904 | J178: 107 | K178: 2
A179: 2012 | B179: 금천구 | C179: 31.92 | D179: 2077 | E179: 9 | F179: 99 | G179: 496 | H179: 1045 | I179: 376 | J179: 51 | K179: 1
A180: 2012 | B180: 영등포구 | C180: 32.31 | D180: 4050 | E180: 16 | F180: 90 | G180: 867 | H180: 2230 | I180: 758 | J180: 85 | K180: 4
A181: 2012 | B181: 동작구 | C181: 32.36 | D181: 3883 | E181: 8 | F181: 99 | G181: 835 | H181: 2093 | I181: 730 | J181: 116 | K181: 2
A182: 2012 | B182: 관악구 | C182: 32.08 | D182: 4596 | E182: 21 | F182: 185 | G182: 1053 | H182: 2383 | I182: 825 | J182: 122 | K182: 7
A183: 2012 | B183: 서초구 | C183: 32.68 | D183: 4439 | E183: 9 | F183: 52 | G183: 882 | H183: 2426 | I183: 921 | J183: 143 | K183: 6
A184: 2012 | B184: 강남구 | C184: 32.59 | D184: 4903 | E184: 17 | F184: 60 | G184: 982 | H184: 2712 | I184: 986 | J184: 134 | K184: 9
A185: 2012 | B185: 송파구 | C185: 32.26 | D185: 6859 | E185: 17 | F185: 139 | G185: 1516 | H185: 3770 | I185: 1250 | J185: 164 | K185: 3
A186: 2012 | B186: 강동구 | C186: 32.1 | D186: 4590 | E186: 14 | F186: 137 | G186: 1024 | H186: 2521 | I186: 779 | J186: 110 | K186: 4
A187: 2013 | B187: 합계 | C187: 32.47 | D187: 84066 | E187: 359 | F187: 2411 | G187: 16477 | H187: 45022 | I187: 17349 | J187: 2265 | K187: 50
A188: 2013 | B188: 종로구 | C188: 32.71 | D188: 873 | E188: - | F188: 27 | G188: 184 | H188: 439 | I188: 182 | J188: 40 | K188: 1
A189: 2013 | B189: 중구 | C189: 32.38 | D189: 1022 | E189: 5 | F189: 29 | G189: 232 | H189: 520 | I189: 198 | J189: 31 | K189: -
A190: 2013 | B190: 용산구 | C190: 32.81 | D190: 2129 | E190: 5 | F190: 41 | G190: 383 | H190: 1147 | I190: 465 | J190: 78 | K190: 2
A191: 2013 | B191: 성동구 | C191: 32.58 | D191: 2838 | E191: 6 | F191: 60 | G191: 529 | H191: 1583 | I191: 583 | J191: 71 | K191: -
A192: 2013 | B192: 광진구 | C192: 32.31 | D192: 2990 | E192: 9 | F192: 102 | G192: 625 | H192: 1577 | I192: 606 | J192: 70 | K192: -
A193: 2013 | B193: 동대문구 | C193: 32.41 | D193: 2651 | E193: 12 | F193: 92 | G193: 500 | H193: 1411 | I193: 574 | J193: 62 | K193: -
A194: 2013 | B194: 중랑구 | C194: 32.11 | D194: 3265 | E194: 25 | F194: 154 | G194: 650 | H194: 1712 | I194: 639 | J194: 82 | K194: 3
A195: 2013 | B195: 성북구 | C195: 32.56 | D195: 3831 | E195: 23 | F195: 114 | G195: 757 | H195: 1963 | I195: 849 | J195: 121 | K195: 2
A196: 2013 | B196: 강북구 | C196: 32.3 | D196: 2491 | E196: 17 | F196: 117 | G196: 497 | H196: 1269 | I196: 495 | J196: 94 | K196: -
A197: 2013 | B197: 도봉구 | C197: 32.19 | D197: 2530 | E197: 12 | F197: 102 | G197: 525 | H197: 1353 | I197: 479 | J197: 57 | K197: 1
A198: 2013 | B198: 노원구 | C198: 32.47 | D198: 4668 | E198: 15 | F198: 130 | G198: 887 | H198: 2569 | I198: 953 | J198: 106 | K198: 2
A199: 2013 | B199: 은평구 | C199: 32.42 | D199: 4157 | E199: 13 | F199: 182 | G199: 823 | H199: 2122 | I199: 897 | J199: 116 | K199: 2
A200: 2013 | B200: 서대문구 | C200: 32.52 | D200: 2358 | E200: 28 | F200: 57 | G200: 436 | H200: 1230 | I200: 516 | J200: 84 | K200: -
A201: 2013 | B201: 마포구 | C201: 32.68 | D201: 3320 | E201: 16 | F201: 67 | G201: 645 | H201: 1758 | I201: 714 | J201: 114 | K201: 2
... 89 more rows

Sheet 은평구 출생아수 및 출산율 추이(2006~2016년)
A1: 은평구 출생아수 및 출산율 추이(2006~2016년)
A3: 연도 | B3: 출생아 수 | D3: 평균 | E3: 합계 | F3: 모(母)의 연령별 출산율(여성 천명당 출생아수)
C4: 전년비 | D4: 출산 연령 | E4: 출산율 | F4: 15~19세 | G4: 20~24세 | H4: 25~29세 | I4: 30~34세 | J4: 35~39세 | K4: 40~44세 | L4: 45~49세
A5: 2006 | B5: 4194 | C5: 0.1 | D5: 30.9 | E5: 0.98 | F5: 2.4 | G5: 11.6 | H5: 69.8 | I5: 86 | J5: 23.4 | K5: 3 | L5: 0.1
A6: 2007 | B6: 4374 | C6: 4.3 | D6: 31.2 | E6: 1.06 | F6: 1.2 | G6: 13.1 | H6: 71.3 | I6: 93.5 | J6: 29 | K6: 3.2 | L6: 0.2
A7: 2008 | B7: 3856 | C7: -11.8 | D7: 31.4 | E7: 0.97 | F7: 1.2 | G7: 12.1 | H7: 59.7 | I7: 88.4 | J7: 28.4 | K7: 3.2 | L7: 0.2
A8: 2009 | B8: 3804 | C8: -1.3 | D8: 31.7 | E8: 0.96 | F8: 0.9 | G8: 11 | H8: 57.3 | I8: 88.3 | J8: 31 | K8: 4.5 | L8: 0.2
A9: 2010 | B9: 4095 | C9: 7.6 | D9: 31.8 | E9: 1.02 | F9: 1.2 | G9: 11.9 | H9: 57.5 | I9: 98.4 | J9: 33.5 | K9: 4 | L9: 0.1
A10: 2011 | B10: 4318 | C10: 5.4 | D10: 32.1 | E10: 1.06 | F10: 1.3 | G10: 10.7 | H10: 57.5 | I10: 100.2 | J10: 40.1 | K10: 4.7 | L10: 0.2
A11: 2012 | B11: 4654 | C11: 7.8 | D11: 32.3 | E11: 1.14 | F11: 1.8 | G11: 12.1 | H11: 55.7 | I11: 110.4 | J11: 43.7 | K11: 6.4 | L11: 0.2
A12: 2013 | B12: 4157 | C12: -10.7 | D12: 32.4 | E12: 1.02 | F12: 0.9 | G12: 11.7 | H12: 47.9 | I12: 96.5 | J12: 43.6 | K12: 5.1 | L12: 0.1
A13: 2014 | B13: 4085 | C13: -1.7 | D13: 32.6 | E13: 1.03 | F13: 1.2 | G13: 8.5 | H13: 47.9 | I13: 95.6 | J13: 45.7 | K13: 6.5 | L13: 0.1
A14: 2015 | B14: 3870 | C14: -5.3 | D14: 32.7 | E14: 1 | F14: 1.1 | G14: 7.5 | H14: 44.8 | I14: 95 | J14: 46.3 | K14: 5.8 | L14: 0.2
A15: 2016 | B15: 3522 | C15: -9 | D15: 33.1 | E15: 0.94 | F15: 0.5 | G15: 6.6 | H15: 36.4 | I15: 89.5 | J15: 48.7 | K15: 7.5 | L15: 0.1
